Body,Body Name,Transaction Number,Invoice Ref.,Supplier Name,Expense Code,Expense Type,Date,Amount
http://statistics.data.gov.uk/id/local-authority-district/23UB,Cheltenham Borough Council,439990,2010356,ADLIB INFORMATION SYSTEMS LIMITED,C-L41100-3599,AG & M-Special Project,14-Jan-11,"2,936.25"
http://statistics.data.gov.uk/id/local-authority-district/23UB,Cheltenham Borough Council,440396,2011012,ADLIB INFORMATION SYSTEMS LIMITED,C-L41100-3537,AG & M-Collections documentation,19-Jan-11,"1,072.69"
http://statistics.data.gov.uk/id/local-authority-district/23UB,Cheltenham Borough Council,439655,137984,A&E FIRE EQUIPMENT LTD,C-H46200-1104,Fire. Syst.Serv-Council House repairs,07-Jan-11,4.70
http://statistics.data.gov.uk/id/local-authority-district/23UB,Cheltenham Borough Council,439656,137985,A&E FIRE EQUIPMENT LTD,C-H46200-1104,Fire. Syst.Serv-Council House repairs,07-Jan-11,6.58
http://statistics.data.gov.uk/id/local-authority-district/23UB,Cheltenham Borough Council,439659,138141,A&E FIRE EQUIPMENT LTD,C-H46200-1104,Fire. Syst.Serv-Council House repairs,07-Jan-11,135.00
http://statistics.data.gov.uk/id/local-authority-district/23UB,Cheltenham Borough Council,439661,138146,A&E FIRE EQUIPMENT LTD,C-H46200-1104,Fire. Syst.Serv-Council House repairs,07-Jan-11,135.00
http://statistics.data.gov.uk/id/local-authority-district/23UB,Cheltenham Borough Council,439663,138149,A&E FIRE EQUIPMENT LTD,C-H46200-1104,Fire. Syst.Serv-Council House repairs,07-Jan-11,135.00
http://statistics.data.gov.uk/id/local-authority-district/23UB,Cheltenham Borough Council,439665,138147,A&E FIRE EQUIPMENT LTD,C-H46200-1104,Fire. Syst.Serv-Council House repairs,07-Jan-11,135.00
http://statistics.data.gov.uk/id/local-authority-district/23UB,Cheltenham Borough Council,439667,138143,A&E FIRE EQUIPMENT LTD,C-H46200-1104,Fire. Syst.Serv-Council House repairs,07-Jan-11,135.00
http://statistics.data.gov.uk/id/local-authority-district/23UB,Cheltenham Borough Council,439668,138144,A&E FIRE EQUIPMENT LTD,C-H46200-1104,Fire. Syst.Serv-Council House repairs,07-Jan-11,135.00
http://statistics.data.gov.uk/id/local-authority-district/23UB,Cheltenham Borough Council,439666,138142,A&E FIRE EQUIPMENT LTD,C-H46200-1104,Fire. Syst.Serv-Council House repairs,07-Jan-11,135.00
http://statistics.data.gov.uk/id/local-authority-district/23UB,Cheltenham Borough Council,439664,138148,A&E FIRE EQUIPMENT LTD,C-H46200-1104,Fire. Syst.Serv-Council House repairs,07-Jan-11,135.00
http://statistics.data.gov.uk/id/local-authority-district/23UB,Cheltenham Borough Council,439662,138145,A&E FIRE EQUIPMENT LTD,C-H46200-1104,Fire. Syst.Serv-Council House repairs,07-Jan-11,135.00
http://statistics.data.gov.uk/id/local-authority-district/23UB,Cheltenham Borough Council,439660,138150,A&E FIRE EQUIPMENT LTD,C-H46200-1104,Fire. Syst.Serv-Council House repairs,07-Jan-11,135.00
http://statistics.data.gov.uk/id/local-authority-district/23UB,Cheltenham Borough Council,439657,137931,A&E FIRE EQUIPMENT LTD,C-H46200-1104,Fire. Syst.Serv-Council House repairs,07-Jan-11,6.58
http://statistics.data.gov.uk/id/local-authority-district/23UB,Cheltenham Borough Council,439669,138151,A&E FIRE EQUIPMENT LTD,C-HC4068-C302,Sheltered Hsg-Building Contractor,07-Jan-11,"1,268.40"
http://statistics.data.gov.uk/id/local-authority-district/23UB,Cheltenham Borough Council,440121,138935,A&E FIRE EQUIPMENT LTD,C-H44600-1104,Fire. Syst.Serv-Council House repairs,14-Jan-11,53.58
http://statistics.data.gov.uk/id/local-authority-district/23UB,Cheltenham Borough Council,440117,138943,A&E FIRE EQUIPMENT LTD,C-H46200-1104,Fire. Syst.Serv-Council House repairs,14-Jan-11,6.58
http://statistics.data.gov.uk/id/local-authority-district/23UB,Cheltenham Borough Council,440123,138933,A&E FIRE EQUIPMENT LTD,C-H46200-1104,Fire. Syst.Serv-Council House repairs,14-Jan-11,60.16
http://statistics.data.gov.uk/id/local-authority-district/23UB,Cheltenham Borough Council,440125,138930,A&E FIRE EQUIPMENT LTD,C-H46200-1104,Fire. Syst.Serv-Council House repairs,14-Jan-11,1.88
http://statistics.data.gov.uk/id/local-authority-district/23UB,Cheltenham Borough Council,440134,138916,A&E FIRE EQUIPMENT LTD,C-H46200-1104,Fire. Syst.Serv-Council House repairs,14-Jan-11,108.68
http://statistics.data.gov.uk/id/local-authority-district/23UB,Cheltenham Borough Council,440133,138939,A&E FIRE EQUIPMENT LTD,C-H46200-1104,Fire. Syst.Serv-Council House repairs,14-Jan-11,24.44
http://statistics.data.gov.uk/id/local-authority-district/23UB,Cheltenham Borough Council,440132,138942,A&E FIRE EQUIPMENT LTD,C-H46200-1104,Fire. Syst.Serv-Council House repairs,14-Jan-11,6.58
http://statistics.data.gov.uk/id/local-authority-district/23UB,Cheltenham Borough Council,440131,138917,A&E FIRE EQUIPMENT LTD,C-H46200-1104,Fire. Syst.Serv-Council House repairs,14-Jan-11,49.96
http://statistics.data.gov.uk/id/local-authority-district/23UB,Cheltenham Borough Council,440130,138937,A&E FIRE EQUIPMENT LTD,C-H46200-1104,Fire. Syst.Serv-Council House repairs,14-Jan-11,19.68
http://statistics.data.gov.uk/id/local-authority-district/23UB,Cheltenham Borough Council,440129,138938,A&E FIRE EQUIPMENT LTD,C-H46200-1104,Fire. Syst.Serv-Council House repairs,14-Jan-11,23.50
http://statistics.data.gov.uk/id/local-authority-district/23UB,Cheltenham Borough Council,440128,138940,A&E FIRE EQUIPMENT LTD,C-H46200-1104,Fire. Syst.Serv-Council House repairs,14-Jan-11,15.04
http://statistics.data.gov.uk/id/local-authority-district/23UB,Cheltenham Borough Council,440127,138941,A&E FIRE EQUIPMENT LTD,C-H46200-1104,Fire. Syst.Serv-Council House repairs,14-Jan-11,15.04
http://statistics.data.gov.uk/id/local-authority-district/23UB,Cheltenham Borough Council,440126,138936,A&E FIRE EQUIPMENT LTD,C-H46200-1104,Fire. Syst.Serv-Council House repairs,14-Jan-11,1.88
http://statistics.data.gov.uk/id/local-authority-district/23UB,Cheltenham Borough Council,440141,138989,A&E FIRE EQUIPMENT LTD,C-H46200-1104,Fire. Syst.Serv-Council House repairs,14-Jan-11,33.21
http://statistics.data.gov.uk/id/local-authority-district/23UB,Cheltenham Borough Council,440140,138963,A&E FIRE EQUIPMENT LTD,C-H46200-1104,Fire. Syst.Serv-Council House repairs,14-Jan-11,2.82
http://statistics.data.gov.uk/id/local-authority-district/23UB,Cheltenham Borough Council,440137,138927,A&E FIRE EQUIPMENT LTD,C-H46200-1104,Fire. Syst.Serv-Council House repairs,14-Jan-11,4.70
http://statistics.data.gov.uk/id/local-authority-district/23UB,Cheltenham Borough Council,440136,138931,A&E FIRE EQUIPMENT LTD,C-H46200-1104,Fire. Syst.Serv-Council House repairs,14-Jan-11,15.04
http://statistics.data.gov.uk/id/local-authority-district/23UB,Cheltenham Borough Council,440135,138928,A&E FIRE EQUIPMENT LTD,C-H46200-1104,Fire. Syst.Serv-Council House repairs,14-Jan-11,43.24
http://statistics.data.gov.uk/id/local-authority-district/23UB,Cheltenham Borough Council,440124,138932,A&E FIRE EQUIPMENT LTD,C-H46200-1104,Fire. Syst.Serv-Council House repairs,14-Jan-11,16.92
http://statistics.data.gov.uk/id/local-authority-district/23UB,Cheltenham Borough Council,440122,138934,A&E FIRE EQUIPMENT LTD,C-H46200-1104,Fire. Syst.Serv-Council House repairs,14-Jan-11,24.74
http://statistics.data.gov.uk/id/local-authority-district/23UB,Cheltenham Borough Council,440118,138944,A&E FIRE EQUIPMENT LTD,C-H46200-1104,Fire. Syst.Serv-Council House repairs,14-Jan-11,6.58
http://statistics.data.gov.uk/id/local-authority-district/23UB,Cheltenham Borough Council,440119,138929,A&E FIRE EQUIPMENT LTD,C-H46200-1104,Fire. Syst.Serv-Council House repairs,14-Jan-11,31.96
http://statistics.data.gov.uk/id/local-authority-district/23UB,Cheltenham Borough Council,440120,138945,A&E FIRE EQUIPMENT LTD,C-H46200-1104,Fire. Syst.Serv-Council House repairs,14-Jan-11,6.58
http://statistics.data.gov.uk/id/local-authority-district/23UB,Cheltenham Borough Council,440161,H1421,A&E FIRE EQUIPMENT LTD,C-HC4069-C302,Fire Protection-Building Contractor,14-Jan-11,"13,040.12"
http://statistics.data.gov.uk/id/local-authority-district/23UB,Cheltenham Borough Council,440494,139051,A&E FIRE EQUIPMENT LTD,C-C22120-1808,Sports & Open S-RM-Routine works,19-Jan-11,"4,071.07"
http://statistics.data.gov.uk/id/local-authority-district/23UB,Cheltenham Borough Council,440499,139055,A&E FIRE EQUIPMENT LTD,C-C22120-1808,Sports & Open S-RM-Routine works,19-Jan-11,10.34
http://statistics.data.gov.uk/id/local-authority-district/23UB,Cheltenham Borough Council,440501,139057,A&E FIRE EQUIPMENT LTD,C-C22120-1808,Sports & Open S-RM-Routine works,19-Jan-11,6.58
http://statistics.data.gov.uk/id/local-authority-district/23UB,Cheltenham Borough Council,440503,139058,A&E FIRE EQUIPMENT LTD,C-C22120-1808,Sports & Open S-RM-Routine works,19-Jan-11,1.88
http://statistics.data.gov.uk/id/local-authority-district/23UB,Cheltenham Borough Council,440506,139062,A&E FIRE EQUIPMENT LTD,C-C22120-1808,Sports & Open S-RM-Routine works,19-Jan-11,1.88
http://statistics.data.gov.uk/id/local-authority-district/23UB,Cheltenham Borough Council,440404,139061,A&E FIRE EQUIPMENT LTD,C-C22120-1808,Sports & Open S-RM-Routine works,19-Jan-11,6.58
http://statistics.data.gov.uk/id/local-authority-district/23UB,Cheltenham Borough Council,440507,139063,A&E FIRE EQUIPMENT LTD,C-C22120-1808,Sports & Open S-RM-Routine works,19-Jan-11,10.34
http://statistics.data.gov.uk/id/local-authority-district/23UB,Cheltenham Borough Council,440502,139059,A&E FIRE EQUIPMENT LTD,C-C22120-1808,Sports & Open S-RM-Routine works,19-Jan-11,2.82
http://statistics.data.gov.uk/id/local-authority-district/23UB,Cheltenham Borough Council,440500,139056,A&E FIRE EQUIPMENT LTD,C-C22120-1808,Sports & Open S-RM-Routine works,19-Jan-11,3.76
http://statistics.data.gov.uk/id/local-authority-district/23UB,Cheltenham Borough Council,440495,139052,A&E FIRE EQUIPMENT LTD,C-C22120-1808,Sports & Open S-RM-Routine works,19-Jan-11,1.88
http://statistics.data.gov.uk/id/local-authority-district/23UB,Cheltenham Borough Council,440490,139047,A&E FIRE EQUIPMENT LTD,C-C22120-1808,Sports & Open S-RM-Routine works,19-Jan-11,9.40
http://statistics.data.gov.uk/id/local-authority-district/23UB,Cheltenham Borough Council,440482,139268,A&E FIRE EQUIPMENT LTD,C-C22120-1808,Sports & Open S-RM-Routine works,19-Jan-11,3.00
http://statistics.data.gov.uk/id/local-authority-district/23UB,Cheltenham Borough Council,440511,138903,A&E FIRE EQUIPMENT LTD,C-C23140-1808,Public Convnces-RM-Routine works,19-Jan-11,6.56
http://statistics.data.gov.uk/id/local-authority-district/23UB,Cheltenham Borough Council,440497,139053,A&E FIRE EQUIPMENT LTD,C-C23140-1808,Public Convnces-RM-Routine works,19-Jan-11,2.82
http://statistics.data.gov.uk/id/local-authority-district/23UB,Cheltenham Borough Council,440498,139054,A&E FIRE EQUIPMENT LTD,C-C23140-1808,Public Convnces-RM-Routine works,19-Jan-11,2.82
http://statistics.data.gov.uk/id/local-authority-district/23UB,Cheltenham Borough Council,440491,139048,A&E FIRE EQUIPMENT LTD,C-C23140-1808,Public Convnces-RM-Routine works,19-Jan-11,9.40
http://statistics.data.gov.uk/id/local-authority-district/23UB,Cheltenham Borough Council,440492,139049,A&E FIRE EQUIPMENT LTD,C-C23140-1808,Public Convnces-RM-Routine works,19-Jan-11,2.82
http://statistics.data.gov.uk/id/local-authority-district/23UB,Cheltenham Borough Council,440484,139198,A&E FIRE EQUIPMENT LTD,C-C23140-1808,Public Convnces-RM-Routine works,19-Jan-11,188.60
http://statistics.data.gov.uk/id/local-authority-district/23UB,Cheltenham Borough Council,440493,139050,A&E FIRE EQUIPMENT LTD,C-C23140-1808,Public Convnces-RM-Routine works,19-Jan-11,3.76
http://statistics.data.gov.uk/id/local-authority-district/23UB,Cheltenham Borough Council,440512,138979,A&E FIRE EQUIPMENT LTD,C-D13100-1808,Muni Off Blgs-RM-Routine works,19-Jan-11,179.89
http://statistics.data.gov.uk/id/local-authority-district/23UB,Cheltenham Borough Council,440487,139092,A&E FIRE EQUIPMENT LTD,C-D14100-1808,Depot Building-RM-Routine works,19-Jan-11,49.96
http://statistics.data.gov.uk/id/local-authority-district/23UB,Cheltenham Borough Council,440489,139046,A&E FIRE EQUIPMENT LTD,C-D14100-1808,Depot Building-RM-Routine works,19-Jan-11,60.16
http://statistics.data.gov.uk/id/local-authority-district/23UB,Cheltenham Borough Council,440504,139060,A&E FIRE EQUIPMENT LTD,C-D30200-1124,Misc Props & Ld-Berkeley Mews  Repairs,19-Jan-11,5.64
http://statistics.data.gov.uk/id/local-authority-district/23UB,Cheltenham Borough Council,440488,139089,A&E FIRE EQUIPMENT LTD,C-D33950-1808,Resource Centre-RM-Routine works,19-Jan-11,40.64
http://statistics.data.gov.uk/id/local-authority-district/23UB,Cheltenham Borough Council,440508,139067,A&E FIRE EQUIPMENT LTD,C-E21100-1808,Car Prks-Off St-RM-Routine works,19-Jan-11,81.78
http://statistics.data.gov.uk/id/local-authority-district/23UB,Cheltenham Borough Council,440510,139069,A&E FIRE EQUIPMENT LTD,C-E21100-1808,Car Prks-Off St-RM-Routine works,19-Jan-11,140.08
http://statistics.data.gov.uk/id/local-authority-district/23UB,Cheltenham Borough Council,440509,139068,A&E FIRE EQUIPMENT LTD,C-E21100-1808,Car Prks-Off St-RM-Routine works,19-Jan-11,130.12
http://statistics.data.gov.uk/id/local-authority-district/23UB,Cheltenham Borough Council,440234,13799,A&E FIRE EQUIPMENT LTD,C-H44600-1104,Fire. Syst.Serv-Council House repairs,19-Jan-11,15.53
http://statistics.data.gov.uk/id/local-authority-district/23UB,Cheltenham Borough Council,440204,138070,A&E FIRE EQUIPMENT LTD,C-H46200-1104,Fire. Syst.Serv-Council House repairs,19-Jan-11,6.58
http://statistics.data.gov.uk/id/local-authority-district/23UB,Cheltenham Borough Council,440208,137997,A&E FIRE EQUIPMENT LTD,C-H46200-1104,Fire. Syst.Serv-Council House repairs,19-Jan-11,11.80
http://statistics.data.gov.uk/id/local-authority-district/23UB,Cheltenham Borough Council,440210,138704,A&E FIRE EQUIPMENT LTD,C-H46200-1104,Fire. Syst.Serv-Council House repairs,19-Jan-11,21.50
http://statistics.data.gov.uk/id/local-authority-district/23UB,Cheltenham Borough Council,440237,138905,A&E FIRE EQUIPMENT LTD,C-H46200-1104,Fire. Syst.Serv-Council House repairs,19-Jan-11,99.92
http://statistics.data.gov.uk/id/local-authority-district/23UB,Cheltenham Borough Council,440236,138904,A&E FIRE EQUIPMENT LTD,C-H46200-1104,Fire. Syst.Serv-Council House repairs,19-Jan-11,72.16
http://statistics.data.gov.uk/id/local-authority-district/23UB,Cheltenham Borough Council,440233,138006,A&E FIRE EQUIPMENT LTD,C-H46200-1104,Fire. Syst.Serv-Council House repairs,19-Jan-11,11.80
http://statistics.data.gov.uk/id/local-authority-district/23UB,Cheltenham Borough Council,440232,138007,A&E FIRE EQUIPMENT LTD,C-H46200-1104,Fire. Syst.Serv-Council House repairs,19-Jan-11,129.92
http://statistics.data.gov.uk/id/local-authority-district/23UB,Cheltenham Borough Council,440231,138005,A&E FIRE EQUIPMENT LTD,C-H46200-1104,Fire. Syst.Serv-Council House repairs,19-Jan-11,11.80
http://statistics.data.gov.uk/id/local-authority-district/23UB,Cheltenham Borough Council,440230,138004,A&E FIRE EQUIPMENT LTD,C-H46200-1104,Fire. Syst.Serv-Council House repairs,19-Jan-11,11.80
http://statistics.data.gov.uk/id/local-authority-district/23UB,Cheltenham Borough Council,440229,138003,A&E FIRE EQUIPMENT LTD,C-H46200-1104,Fire. Syst.Serv-Council House repairs,19-Jan-11,11.80
http://statistics.data.gov.uk/id/local-authority-district/23UB,Cheltenham Borough Council,440219,138745,A&E FIRE EQUIPMENT LTD,C-H46200-1104,Fire. Syst.Serv-Council House repairs,19-Jan-11,135.00
http://statistics.data.gov.uk/id/local-authority-district/23UB,Cheltenham Borough Council,440218,137970,A&E FIRE EQUIPMENT LTD,C-H46200-1104,Fire. Syst.Serv-Council House repairs,19-Jan-11,213.31
http://statistics.data.gov.uk/id/local-authority-district/23UB,Cheltenham Borough Council,440217,137969,A&E FIRE EQUIPMENT LTD,C-H46200-1104,Fire. Syst.Serv-Council House repairs,19-Jan-11,13.10
http://statistics.data.gov.uk/id/local-authority-district/23UB,Cheltenham Borough Council,440216,137968,A&E FIRE EQUIPMENT LTD,C-H46200-1104,Fire. Syst.Serv-Council House repairs,19-Jan-11,15.70
http://statistics.data.gov.uk/id/local-authority-district/23UB,Cheltenham Borough Council,440215,137967,A&E FIRE EQUIPMENT LTD,C-H46200-1104,Fire. Syst.Serv-Council House repairs,19-Jan-11,15.05
http://statistics.data.gov.uk/id/local-authority-district/23UB,Cheltenham Borough Council,440214,137966,A&E FIRE EQUIPMENT LTD,C-H46200-1104,Fire. Syst.Serv-Council House repairs,19-Jan-11,14.40
http://statistics.data.gov.uk/id/local-authority-district/23UB,Cheltenham Borough Council,440213,138754,A&E FIRE EQUIPMENT LTD,C-H46200-1104,Fire. Syst.Serv-Council House repairs,19-Jan-11,74.94
http://statistics.data.gov.uk/id/local-authority-district/23UB,Cheltenham Borough Council,440212,138774,A&E FIRE EQUIPMENT LTD,C-H46200-1104,Fire. Syst.Serv-Council House repairs,19-Jan-11,24.98
http://statistics.data.gov.uk/id/local-authority-district/23UB,Cheltenham Borough Council,440211,138826,A&E FIRE EQUIPMENT LTD,C-H46200-1104,Fire. Syst.Serv-Council House repairs,19-Jan-11,99.92
http://statistics.data.gov.uk/id/local-authority-district/23UB,Cheltenham Borough Council,440228,138002,A&E FIRE EQUIPMENT LTD,C-H46200-1104,Fire. Syst.Serv-Council House repairs,19-Jan-11,11.80
http://statistics.data.gov.uk/id/local-authority-district/23UB,Cheltenham Borough Council,440227,137965,A&E FIRE EQUIPMENT LTD,C-H46200-1104,Fire. Syst.Serv-Council House repairs,19-Jan-11,16.93
http://statistics.data.gov.uk/id/local-authority-district/23UB,Cheltenham Borough Council,440226,138742,A&E FIRE EQUIPMENT LTD,C-H46200-1104,Fire. Syst.Serv-Council House repairs,19-Jan-11,49.96
http://statistics.data.gov.uk/id/local-authority-district/23UB,Cheltenham Borough Council,440225,138057,A&E FIRE EQUIPMENT LTD,C-H46200-1104,Fire. Syst.Serv-Council House repairs,19-Jan-11,31.95
http://statistics.data.gov.uk/id/local-authority-district/23UB,Cheltenham Borough Council,440224,138056,A&E FIRE EQUIPMENT LTD,C-H46200-1104,Fire. Syst.Serv-Council House repairs,19-Jan-11,15.45
http://statistics.data.gov.uk/id/local-authority-district/23UB,Cheltenham Borough Council,440223,138022,A&E FIRE EQUIPMENT LTD,C-H46200-1104,Fire. Syst.Serv-Council House repairs,19-Jan-11,1.50
http://statistics.data.gov.uk/id/local-authority-district/23UB,Cheltenham Borough Council,440222,137998,A&E FIRE EQUIPMENT LTD,C-H46200-1104,Fire. Syst.Serv-Council House repairs,19-Jan-11,11.80
http://statistics.data.gov.uk/id/local-authority-district/23UB,Cheltenham Borough Council,440221,137995,A&E FIRE EQUIPMENT LTD,C-H46200-1104,Fire. Syst.Serv-Council House repairs,19-Jan-11,65.42
http://statistics.data.gov.uk/id/local-authority-district/23UB,Cheltenham Borough Council,440220,137971,A&E FIRE EQUIPMENT LTD,C-H46200-1104,Fire. Syst.Serv-Council House repairs,19-Jan-11,78.75
http://statistics.data.gov.uk/id/local-authority-district/23UB,Cheltenham Borough Council,440209,138727,A&E FIRE EQUIPMENT LTD,C-H46200-1104,Fire. Syst.Serv-Council House repairs,19-Jan-11,13.12
http://statistics.data.gov.uk/id/local-authority-district/23UB,Cheltenham Borough Council,440207,137996,A&E FIRE EQUIPMENT LTD,C-H46200-1104,Fire. Syst.Serv-Council House repairs,19-Jan-11,31.80
http://statistics.data.gov.uk/id/local-authority-district/23UB,Cheltenham Borough Council,440205,138671,A&E FIRE EQUIPMENT LTD,C-H46200-1104,Fire. Syst.Serv-Council House repairs,19-Jan-11,74.94
http://statistics.data.gov.uk/id/local-authority-district/23UB,Cheltenham Borough Council,440206,138058,A&E FIRE EQUIPMENT LTD,C-H46200-1104,Fire. Syst.Serv-Council House repairs,19-Jan-11,15.45
http://statistics.data.gov.uk/id/local-authority-district/23UB,Cheltenham Borough Council,440235,138833,A&E FIRE EQUIPMENT LTD,C-HC4069-C302,Fire Protection-Building Contractor,19-Jan-11,448.00
http://statistics.data.gov.uk/id/local-authority-district/23UB,Cheltenham Borough Council,440485,139142,A&E FIRE EQUIPMENT LTD,C-L11500-1808,Rec Facilities-RM-Routine works,19-Jan-11,109.22
http://statistics.data.gov.uk/id/local-authority-district/23UB,Cheltenham Borough Council,440486,139140,A&E FIRE EQUIPMENT LTD,C-L11500-1808,Rec Facilities-RM-Routine works,19-Jan-11,392.76
http://statistics.data.gov.uk/id/local-authority-district/23UB,Cheltenham Borough Council,440515,139141,A&E FIRE EQUIPMENT LTD,C-L11500-1808,Rec Facilities-RM-Routine works,19-Jan-11,27.26
http://statistics.data.gov.uk/id/local-authority-district/23UB,Cheltenham Borough Council,440513,139071,A&E FIRE EQUIPMENT LTD,C-L21100-1808,Town Hall-RM-Routine works,19-Jan-11,173.90
http://statistics.data.gov.uk/id/local-authority-district/23UB,Cheltenham Borough Council,440514,138984,A&E FIRE EQUIPMENT LTD,C-L21100-1808,Town Hall-RM-Routine works,19-Jan-11,92.25
http://statistics.data.gov.uk/id/local-authority-district/23UB,Cheltenham Borough Council,440483,139229,A&E FIRE EQUIPMENT LTD,C-L21200-1808,Pump Room-RM-Routine works,19-Jan-11,281.99
http://statistics.data.gov.uk/id/local-authority-district/23UB,Cheltenham Borough Council,440480,139270,A&E FIRE EQUIPMENT LTD,C-L41100-1808,AG & M-RM-Routine works,19-Jan-11,69.10
http://statistics.data.gov.uk/id/local-authority-district/23UB,Cheltenham Borough Council,440481,139269,A&E FIRE EQUIPMENT LTD,C-L41100-1808,AG & M-RM-Routine works,19-Jan-11,80.38
http://statistics.data.gov.uk/id/local-authority-district/23UB,Cheltenham Borough Council,439784,33660, AES PUMP LIMITED,C-L11500-1811,Rec Facilities-RM-Plan.& Prev.Mech.Ctrct,12-Jan-11,"1,220.00"
http://statistics.data.gov.uk/id/local-authority-district/23UB,Cheltenham Borough Council,441210,J011442,AIREY CONSULTANCY SERVICES LTD,C-D12430-3623,Housing & CT Be-Cmpter-sftwre lic purch,28-Jan-11,500.00
http://statistics.data.gov.uk/id/local-authority-district/23UB,Cheltenham Borough Council,441210,J011442,AIREY CONSULTANCY SERVICES LTD,C-D12440-3890,Coun Tax overhe-Subscriptions - general,28-Jan-11,150.00
http://statistics.data.gov.uk/id/local-authority-district/23UB,Cheltenham Borough Council,441210,J011442,AIREY CONSULTANCY SERVICES LTD,C-D12480-3890,Business Revenu-Subscriptions - general,28-Jan-11,100.00
http://statistics.data.gov.uk/id/local-authority-district/23UB,Cheltenham Borough Council,440856,PT/30663,ROSS ALDRIDGE SOLICITORS,C-C23160-3934,Env Maint Divn-TP Gen-Imprest/Excess,26-Jan-11,"3,181.88"
http://statistics.data.gov.uk/id/local-authority-district/23UB,Cheltenham Borough Council,440701,4689,ALL ELECTRIC PRODUCTIONS,C-0T14J1-3568,Artist Fees,26-Jan-11,"3,450.00"
http://statistics.data.gov.uk/id/local-authority-district/23UB,Cheltenham Borough Council,439284,49728,ALPHA COLOUR PRINTERS LTD,C-D12430-3401,Housing & CT Be-Printing - general,05-Jan-11,"1,007.00"
http://statistics.data.gov.uk/id/local-authority-district/23UB,Cheltenham Borough Council,439591,49779,ALPHA COLOUR PRINTERS LTD,C-D21100-3403,Dem Process-Printing-Committee Papers,07-Jan-11,45.00
http://statistics.data.gov.uk/id/local-authority-district/23UB,Cheltenham Borough Council,439590,49778,ALPHA COLOUR PRINTERS LTD,C-D21100-3412,Dem Process-Printing - Cabinet Papers,07-Jan-11,237.00
http://statistics.data.gov.uk/id/local-authority-district/23UB,Cheltenham Borough Council,439592,49775,ALPHA COLOUR PRINTERS LTD,C-D21190-3403,O&S Committees-Printing-Committee Papers,07-Jan-11,667.00
http://statistics.data.gov.uk/id/local-authority-district/23UB,Cheltenham Borough Council,439562,49752,ALPHA COLOUR PRINTERS LTD,C-E63100-3401,Cemetery & Crem-Printing - general,07-Jan-11,102.00
http://statistics.data.gov.uk/id/local-authority-district/23UB,Cheltenham Borough Council,440436,49723,ALPHA COLOUR PRINTERS LTD,C-C22120-1301,Spts/Open Space-Routine grounds maint,19-Jan-11,365.00
http://statistics.data.gov.uk/id/local-authority-district/23UB,Cheltenham Borough Council,440314,49735,ALPHA COLOUR PRINTERS LTD,C-D11300-3401,Accountancy-Printing - general,19-Jan-11,274.00
http://statistics.data.gov.uk/id/local-authority-district/23UB,Cheltenham Borough Council,440436,49723,ALPHA COLOUR PRINTERS LTD,C-D21970-3677,Parish Pride-Parish Council - Community,19-Jan-11,610.00
http://statistics.data.gov.uk/id/local-authority-district/23UB,Cheltenham Borough Council,441221,49726,ALPHA COLOUR PRINTERS LTD,C-0T27J1-3406,Christmas Barn-Printing-Promotion/Mkting,28-Jan-11,167.00
http://statistics.data.gov.uk/id/local-authority-district/23UB,Cheltenham Borough Council,441221,49726,ALPHA COLOUR PRINTERS LTD,C-0T27J1-3406,Christmas Barn-Printing-Promotion/Mkting,28-Jan-11,168.00
http://statistics.data.gov.uk/id/local-authority-district/23UB,Cheltenham Borough Council,441315,49761,ALPHA COLOUR PRINTERS LTD,C-C22190-1301,Allotments-Routine grounds maint,28-Jan-11,639.00
http://statistics.data.gov.uk/id/local-authority-district/23UB,Cheltenham Borough Council,441315,49761,ALPHA COLOUR PRINTERS LTD,C-C22190-1301,Allotments-Routine grounds maint,28-Jan-11,226.00
http://statistics.data.gov.uk/id/local-authority-district/23UB,Cheltenham Borough Council,441222,49918,ALPHA COLOUR PRINTERS LTD,C-D12430-3401,Housing & CT Be-Printing - general,28-Jan-11,103.00
http://statistics.data.gov.uk/id/local-authority-district/23UB,Cheltenham Borough Council,441223,49853,ALPHA COLOUR PRINTERS LTD,C-D12430-3401,Housing & CT Be-Printing - general,28-Jan-11,278.00
http://statistics.data.gov.uk/id/local-authority-district/23UB,Cheltenham Borough Council,439525,49725,ALPHA COLOUR PRINTERS,C-C23190-3101,Garden Collectn-Equipment purchases,07-Jan-11,"5,707.00"
http://statistics.data.gov.uk/id/local-authority-district/23UB,Cheltenham Borough Council,440371,OCT-DEC,AON UK,C-P12270-9101,Tenants Ins-Payments,19-Jan-11,"6,648.98"
http://statistics.data.gov.uk/id/local-authority-district/23UB,Cheltenham Borough Council,439854,REDACTED,REDACTED,C-H22400-3828,Homelessness-Prevention Fund,12-Jan-11,600.00
http://statistics.data.gov.uk/id/local-authority-district/23UB,Cheltenham Borough Council,440908,PERFORMANCE,JESSICA ARROWSMITH,C-0T70L0-3568,Folk Festival-Artist Fees,26-Jan-11,600.00
http://statistics.data.gov.uk/id/local-authority-district/23UB,Cheltenham Borough Council,439564,10353,ARTFUL LIMITED,C-B51120-3920,Develt Con-Advertising,07-Jan-11,"2,675.92"
http://statistics.data.gov.uk/id/local-authority-district/23UB,Cheltenham Borough Council,440344,71384,ATS EUROMASTER LTD,C-C24100-3501,Fleet Maint-Hire of outside services,19-Jan-11,"3,089.42"
http://statistics.data.gov.uk/id/local-authority-district/23UB,Cheltenham Borough Council,440332,40409,JUSTIN BATES,C-H35100-3501,Hsg.Direct.Cost-Hire of outside services,19-Jan-11,525.00
http://statistics.data.gov.uk/id/local-authority-district/23UB,Cheltenham Borough Council,440400,646,JASON R C BAYLISS,C-C22110-3152,Parks & Gardens-Commemorative Seats,19-Jan-11,"2,625.00"
http://statistics.data.gov.uk/id/local-authority-district/23UB,Cheltenham Borough Council,440400,646,JASON R C BAYLISS,C-N11250-9227,Excluded,19-Jan-11,-240.00
http://statistics.data.gov.uk/id/local-authority-district/23UB,Cheltenham Borough Council,441343,MB/MJR/131210,CJ BAYLISS (HEREFORD) LTD,C-LC6002-C402,Brizen Rec-Building Contractor,29-Jan-11,"3,340.07"
http://statistics.data.gov.uk/id/local-authority-district/23UB,Cheltenham Borough Council,440903,JB110211A,ALAN BEARMAN MUSIC,C-0T70L0-3568,Folk Festival-Artist Fees,26-Jan-11,"1,400.00"
http://statistics.data.gov.uk/id/local-authority-district/23UB,Cheltenham Borough Council,439493,78117,BERMAN GUEDES STRETTON,C-L41100-3816,AG & M-RIBA - Competition,05-Jan-11,"2,062.50"
http://statistics.data.gov.uk/id/local-authority-district/23UB,Cheltenham Borough Council,440617,22668,BPF INSTRUMENTS LTD,C-C23100-3501,Refuse Collctn-Hire of outside services,21-Jan-11,46.75
http://statistics.data.gov.uk/id/local-authority-district/23UB,Cheltenham Borough Council,440617,22668,BPF INSTRUMENTS LTD,C-C23100-3501,Refuse Collctn-Hire of outside services,21-Jan-11,7.50
http://statistics.data.gov.uk/id/local-authority-district/23UB,Cheltenham Borough Council,440595,22669,BPF INSTRUMENTS LTD,C-D13100-1109,Muni Off Blgs-Storage Relocation Costs,21-Jan-11,149.79
http://statistics.data.gov.uk/id/local-authority-district/23UB,Cheltenham Borough Council,440618,22670,BPF INSTRUMENTS LTD,C-D13120-3636,Mail Room-Area Offs Courier Service,21-Jan-11,330.00
http://statistics.data.gov.uk/id/local-authority-district/23UB,Cheltenham Borough Council,440618,22670,BPF INSTRUMENTS LTD,C-D21100-3501,Dem Process-Hire of outside services,21-Jan-11,188.60
http://statistics.data.gov.uk/id/local-authority-district/23UB,Cheltenham Borough Council,440618,22670,BPF INSTRUMENTS LTD,C-E72500-3501,Built Env Div-Hire of outside services,21-Jan-11,94.30
http://statistics.data.gov.uk/id/local-authority-district/23UB,Cheltenham Borough Council,440618,22670,BPF INSTRUMENTS LTD,C-H22300-3877,One Stop Shop Courier Service,21-Jan-11,33.60
http://statistics.data.gov.uk/id/local-authority-district/23UB,Cheltenham Borough Council,439260,2247,REX BISHOP AND SON,C-H44075-1104,Asbestos-Council House repairs,05-Jan-11,"1,706.00"
http://statistics.data.gov.uk/id/local-authority-district/23UB,Cheltenham Borough Council,440295,SIN003593,BOURNEMOUTH SYMPHONY ORCHESTRA,C-0T18H1-3568,Brnemth Sym Orc-Artist Fees,19-Jan-11,"8,459.52"
http://statistics.data.gov.uk/id/local-authority-district/23UB,Cheltenham Borough Council,440295,SIN003593,BOURNEMOUTH SYMPHONY ORCHESTRA,C-0T18H1-8303,Brnemth Sym Orc-Programme Sales,19-Jan-11,247.77
http://statistics.data.gov.uk/id/local-authority-district/23UB,Cheltenham Borough Council,439750,4145144042,BRISTOL CITY COUNCIL,C-C22140-3127,Nursery-Materials-Bedding,12-Jan-11,70.00
http://statistics.data.gov.uk/id/local-authority-district/23UB,Cheltenham Borough Council,439824,2511450200,BRISTOL CITY COUNCIL,C-E61650-3501,Air Quality-Hire of outside services,12-Jan-11,495.00
http://statistics.data.gov.uk/id/local-authority-district/23UB,Cheltenham Borough Council,440432,1031,D W BROOKES,C-C22110-1301,Parks & Gardens-Routine grounds maint,19-Jan-11,260.00
http://statistics.data.gov.uk/id/local-authority-district/23UB,Cheltenham Borough Council,440433,1031,D W BROOKES,C-C22120-1301,Spts/Open Space-Routine grounds maint,19-Jan-11,485.00
http://statistics.data.gov.uk/id/local-authority-district/23UB,Cheltenham Borough Council,440434,1031,D W BROOKES,C-C22190-1301,Allotments-Routine grounds maint,19-Jan-11,700.00
http://statistics.data.gov.uk/id/local-authority-district/23UB,Cheltenham Borough Council,440870,100377,L G BROWN ASSOCIATES,C-E21100-3401,Car Prks-Off St-Printing - general,26-Jan-11,"1,990.80"
http://statistics.data.gov.uk/id/local-authority-district/23UB,Cheltenham Borough Council,440872,101130,L G BROWN ASSOCIATES,C-E21100-3401,Car Prks-Off St-Printing - general,26-Jan-11,237.00
http://statistics.data.gov.uk/id/local-authority-district/23UB,Cheltenham Borough Council,439645,179929,BRYLAND FIRE PROTECTION LIMITED,C-H46200-1104,Fire. Syst.Serv-Council House repairs,07-Jan-11,"3,150.00"
http://statistics.data.gov.uk/id/local-authority-district/23UB,Cheltenham Borough Council,441275,H1424,BUILDING SOLUTIONS LIMITED,C-HC4120-C302,Option App void-Building Contractor,28-Jan-11,"12,516.25"
http://statistics.data.gov.uk/id/local-authority-district/23UB,Cheltenham Borough Council,440145,REDACTED,REDACTED,C-H22400-3828,Homelessness-Prevention Fund,14-Jan-11,650.00
http://statistics.data.gov.uk/id/local-authority-district/23UB,Cheltenham Borough Council,440899,50,K L BUNKER,C-0T70L0-3568,Folk Festival-Artist Fees,26-Jan-11,600.00
http://statistics.data.gov.uk/id/local-authority-district/23UB,Cheltenham Borough Council,441144,336,M J BURKE,C-H22400-5204,Homelessness-Provision of accommo(B&B),28-Jan-11,217.55
http://statistics.data.gov.uk/id/local-authority-district/23UB,Cheltenham Borough Council,441147,334,M J BURKE,C-H22400-5204,Homelessness-Provision of accommo(B&B),28-Jan-11,641.20
http://statistics.data.gov.uk/id/local-authority-district/23UB,Cheltenham Borough Council,441145,335,M J BURKE,C-H22400-5204,Homelessness-Provision of accommo(B&B),28-Jan-11,251.90
http://statistics.data.gov.uk/id/local-authority-district/23UB,Cheltenham Borough Council,441146,11.1.11,M J BURKE,C-H22400-5204,Homelessness-Provision of accommo(B&B),28-Jan-11,630.00
http://statistics.data.gov.uk/id/local-authority-district/23UB,Cheltenham Borough Council,440395,7029228,BURO HAPPOLD LIMITED,C-L41100-3816,AG & M-RIBA - Competition,19-Jan-11,"15,310.00"
http://statistics.data.gov.uk/id/local-authority-district/23UB,Cheltenham Borough Council,440394,7029227,BURO HAPPOLD LIMITED,C-L41100-3816,AG & M-RIBA - Competition,19-Jan-11,"18,663.34"
http://statistics.data.gov.uk/id/local-authority-district/23UB,Cheltenham Borough Council,440365,SETTLEMENT,VERITY BUTLER,C-N13125-9205,ASH Ledger-Town Hall Invoices Paid,19-Jan-11,-307.60
http://statistics.data.gov.uk/id/local-authority-district/23UB,Cheltenham Borough Council,440365,SETTLEMENT,VERITY BUTLER,C-Z12210-9137,Box Off A/C-PPR Hirers Tkt Pd out,19-Jan-11,975.50
http://statistics.data.gov.uk/id/local-authority-district/23UB,Cheltenham Borough Council,439362,4241,C AND R DECORATORS,C-H4201V-1104,Voids 2201-Council House repairs,05-Jan-11,"1,530.94"
http://statistics.data.gov.uk/id/local-authority-district/23UB,Cheltenham Borough Council,439363,4238,C AND R DECORATORS,C-H4211V-1104,Voids 2211-Council House repairs,05-Jan-11,502.00
http://statistics.data.gov.uk/id/local-authority-district/23UB,Cheltenham Borough Council,439671,4197,C AND R DECORATORS,C-HC4066-C302,Misc Works-Building Contractor,07-Jan-11,"1,366.41"
http://statistics.data.gov.uk/id/local-authority-district/23UB,Cheltenham Borough Council,440249,4262,C AND R DECORATORS,C-H4208G-1104,Gen Wks 2208-Council House repairs,19-Jan-11,"1,124.00"
http://statistics.data.gov.uk/id/local-authority-district/23UB,Cheltenham Borough Council,440248,4252,C AND R DECORATORS,C-H4211G-1104,Gen Wks 2211-Council House repairs,19-Jan-11,26.10
http://statistics.data.gov.uk/id/local-authority-district/23UB,Cheltenham Borough Council,440262, 4247,C AND R DECORATORS,C-H4214V-1104,Voids 2214-Council House repairs,19-Jan-11,502.00
http://statistics.data.gov.uk/id/local-authority-district/23UB,Cheltenham Borough Council,440442,4249,C AND R DECORATORS,C-H43225-1104,Council House repairs,19-Jan-11,"3,800.00"
http://statistics.data.gov.uk/id/local-authority-district/23UB,Cheltenham Borough Council,440241,4242,C AND R DECORATORS,C-HC4050-C302,Major Voids-Building Contractor,19-Jan-11,652.50
http://statistics.data.gov.uk/id/local-authority-district/23UB,Cheltenham Borough Council,440242,4240,C AND R DECORATORS,C-HC4053-C302,Internal Imp-Building Contractor,19-Jan-11,"6,936.20"
http://statistics.data.gov.uk/id/local-authority-district/23UB,Cheltenham Borough Council,441005,4251,C AND R DECORATORS,C-H4207V-1104,Voids 2207-Council House repairs,26-Jan-11,186.49
http://statistics.data.gov.uk/id/local-authority-district/23UB,Cheltenham Borough Council,441008,4263,C AND R DECORATORS,C-H4213G-1104,Gen Wks 2213-Council House repairs,26-Jan-11,"1,290.00"
http://statistics.data.gov.uk/id/local-authority-district/23UB,Cheltenham Borough Council,441007,4250,C AND R DECORATORS,C-H4214G-1104,Gen Wks 2214-Council House repairs,26-Jan-11,78.30
http://statistics.data.gov.uk/id/local-authority-district/23UB,Cheltenham Borough Council,441006,4253,C AND R DECORATORS,C-H4214V-1104,Voids 2214-Council House repairs,26-Jan-11,95.70
http://statistics.data.gov.uk/id/local-authority-district/23UB,Cheltenham Borough Council,441004,4256,C AND R DECORATORS,C-HC4066-C302,Misc Works-Building Contractor,26-Jan-11,702.00
http://statistics.data.gov.uk/id/local-authority-district/23UB,Cheltenham Borough Council,441134,4265,C AND R DECORATORS,C-H4211V-1104,Voids 2211-Council House repairs,28-Jan-11,441.62
http://statistics.data.gov.uk/id/local-authority-district/23UB,Cheltenham Borough Council,441135,4266,C AND R DECORATORS,C-H4211V-1104,Voids 2211-Council House repairs,28-Jan-11,430.92
http://statistics.data.gov.uk/id/local-authority-district/23UB,Cheltenham Borough Council,441133,4267,C AND R DECORATORS,C-H4213V-1104,Voids 2213-Council House repairs,28-Jan-11,731.20
http://statistics.data.gov.uk/id/local-authority-district/23UB,Cheltenham Borough Council,441131,4261,C AND R DECORATORS,C-H44752-1104,Dis Adapts-Tech-Council House repairs,28-Jan-11,"1,177.74"
http://statistics.data.gov.uk/id/local-authority-district/23UB,Cheltenham Borough Council,441132,4264,C AND R DECORATORS,C-HC4050-C302,Major Voids-Building Contractor,28-Jan-11,"4,609.56"
http://statistics.data.gov.uk/id/local-authority-district/23UB,Cheltenham Borough Council,439265,870600,CAUDLE ROOFING,C-H4204G-1104,Gen Wks 2204-Council House repairs,05-Jan-11,550.00
http://statistics.data.gov.uk/id/local-authority-district/23UB,Cheltenham Borough Council,439265,870600,CAUDLE ROOFING,C-N11250-9227,Excluded,05-Jan-11,-40.00
http://statistics.data.gov.uk/id/local-authority-district/23UB,Cheltenham Borough Council,440313,874142,CAUDLE ROOFING,C-H4214G-1104,Gen Wks 2214-Council House repairs,19-Jan-11,"1,270.00"
http://statistics.data.gov.uk/id/local-authority-district/23UB,Cheltenham Borough Council,440313,874142,CAUDLE ROOFING,C-N11250-9227,Excluded,19-Jan-11,-94.00
http://statistics.data.gov.uk/id/local-authority-district/23UB,Cheltenham Borough Council,440666,REDACTED,CGT LETTINGS,C-H22400-3828,Homelessness-Prevention Fund,21-Jan-11,650.00
http://statistics.data.gov.uk/id/local-authority-district/23UB,Cheltenham Borough Council,439262,12793,CHARTERHOUSE SECURITY MANAGEMENT,C-H46400-1104,Door Entry-Council House repairs,05-Jan-11,465.02
http://statistics.data.gov.uk/id/local-authority-district/23UB,Cheltenham Borough Council,439263,12792,CHARTERHOUSE SECURITY MANAGEMENT,C-H46400-1104,Door Entry-Council House repairs,05-Jan-11,879.50
http://statistics.data.gov.uk/id/local-authority-district/23UB,Cheltenham Borough Council,440275,30802,CHARTERHOUSE SECURITY MANAGEMENT,C-H33400-3101,Sheltered.Hsg-Equipment purchases,19-Jan-11,480.00
http://statistics.data.gov.uk/id/local-authority-district/23UB,Cheltenham Borough Council,440253,12795,CHARTERHOUSE SECURITY MANAGEMENT,C-H46400-1104,Door Entry-Council House repairs,19-Jan-11,320.04
http://statistics.data.gov.uk/id/local-authority-district/23UB,Cheltenham Borough Council,440276,12794,CHARTERHOUSE SECURITY MANAGEMENT,C-H46400-1104,Door Entry-Council House repairs,19-Jan-11,641.50
http://statistics.data.gov.uk/id/local-authority-district/23UB,Cheltenham Borough Council,439859,GRANT,CHARLTON KINGS SENIOR CITIZENS WELFARE,C-D32400-4126,Elderly Trspt-Paymts to Bus Cos-Full Far,12-Jan-11,812.50
http://statistics.data.gov.uk/id/local-authority-district/23UB,Cheltenham Borough Council,439243,HC5826,CHAMBERS MANAGEMENT CLIENT ACCOUNT,C-0T09K1-3568,Artist Fees,05-Jan-11,"12,000.00"
http://statistics.data.gov.uk/id/local-authority-district/23UB,Cheltenham Borough Council,440366,SETTLEMENT,CHELTENHAM BACH CHOIR,C-N13125-9205,ASH Ledger-Town Hall Invoices Paid,19-Jan-11,"-1,285.80"
http://statistics.data.gov.uk/id/local-authority-district/23UB,Cheltenham Borough Council,440366,SETTLEMENT,CHELTENHAM BACH CHOIR,C-Z12210-9138,Box Off A/C-TH Hirers Tkt Pd out,19-Jan-11,"3,215.00"
http://statistics.data.gov.uk/id/local-authority-district/23UB,Cheltenham Borough Council,440366,SETTLEMENT,CHELTENHAM BACH CHOIR,C-Z12210-9276,Box Off A/C-Hirers Invoices Pd,19-Jan-11,"-1,210.00"
http://statistics.data.gov.uk/id/local-authority-district/23UB,Cheltenham Borough Council,440356,271110-6,CHELTENHAM CHORAL SOCIETY,C-Z12310-3940,TIC Agency-External Event Payments,19-Jan-11,700.00
http://statistics.data.gov.uk/id/local-authority-district/23UB,Cheltenham Borough Council,440356,271110-6,CHELTENHAM CHORAL SOCIETY,C-Z12310-3940,TIC Agency-External Event Payments,19-Jan-11,-59.58
http://statistics.data.gov.uk/id/local-authority-district/23UB,Cheltenham Borough Council,439810,CHELTDW/11/201,CHELTENHAM ANIMAL SHELTER,C-E61300-3501,Animal Welfare-Hire of outside services,12-Jan-11,765.00
http://statistics.data.gov.uk/id/local-authority-district/23UB,Cheltenham Borough Council,441237,CHELTDW/12/201,CHELTENHAM ANIMAL SHELTER,C-E61300-3501,Animal Welfare-Hire of outside services,28-Jan-11,652.00
http://statistics.data.gov.uk/id/local-authority-district/23UB,Cheltenham Borough Council,441339,CHELTDW/12/201,CHELTENHAM ANIMAL SHELTER,C-E61300-3501,Animal Welfare-Hire of outside services,28-Jan-11,"1,913.25"
http://statistics.data.gov.uk/id/local-authority-district/23UB,Cheltenham Borough Council,440415,INV00292-PIANO ,CHELTENHAM FESTIVALS LTD,C-L21100-3119,Town Hall-Piano Hire/Tuning,19-Jan-11,660.00
http://statistics.data.gov.uk/id/local-authority-district/23UB,Cheltenham Borough Council,441280,100029245,CIEH,C-E71150-3890,Public Prot Div-Subscriptions - general,28-Jan-11,151.00
http://statistics.data.gov.uk/id/local-authority-district/23UB,Cheltenham Borough Council,441285,100011081,CIEH,C-E71150-3890,Public Prot Div-Subscriptions - general,28-Jan-11,151.00
http://statistics.data.gov.uk/id/local-authority-district/23UB,Cheltenham Borough Council,441282,000203462,CIEH,C-E71150-3890,Public Prot Div-Subscriptions - general,28-Jan-11,151.00
http://statistics.data.gov.uk/id/local-authority-district/23UB,Cheltenham Borough Council,441284,100019667,CIEH,C-E71150-3890,Public Prot Div-Subscriptions - general,28-Jan-11,151.00
http://statistics.data.gov.uk/id/local-authority-district/23UB,Cheltenham Borough Council,441283,10011656,CIEH,C-E71150-3890,Public Prot Div-Subscriptions - general,28-Jan-11,151.00
http://statistics.data.gov.uk/id/local-authority-district/23UB,Cheltenham Borough Council,439674,3042630,CIPFA,C-D11300-3411,Accountancy-Profl books & magazines,07-Jan-11,500.00
http://statistics.data.gov.uk/id/local-authority-district/23UB,Cheltenham Borough Council,439563,3042753,CIPFA,C-E72500-3501,Built Env Div-Hire of outside services,07-Jan-11,250.00
http://statistics.data.gov.uk/id/local-authority-district/23UB,Cheltenham Borough Council,439474,C/RB100543,CIVICA UK LIMITED,C-D12446-3623,IBS license ren-Cmpter-sftwre lic purch,05-Jan-11,"1,100.00"
http://statistics.data.gov.uk/id/local-authority-district/23UB,Cheltenham Borough Council,439474,C/RB100543,CIVICA UK LIMITED,C-D12446-3623,IBS license ren-Cmpter-sftwre lic purch,05-Jan-11,"2,750.00"
http://statistics.data.gov.uk/id/local-authority-district/23UB,Cheltenham Borough Council,439500,C/RB100831,CIVICA UK LIMITED,C-D31300-3623,NNDR Collection-Cmpter-sftwre lic purch,07-Jan-11,"6,000.00"
http://statistics.data.gov.uk/id/local-authority-district/23UB,Cheltenham Borough Council,439870,MIRB003150/MIR,CIVICA UK LIMITED,C-D12446-3623,IBS license ren-Cmpter-sftwre lic purch,12-Jan-11,550.00
http://statistics.data.gov.uk/id/local-authority-district/23UB,Cheltenham Borough Council,439870,MIRB003150/MIR,CIVICA UK LIMITED,C-D12446-3623,IBS license ren-Cmpter-sftwre lic purch,12-Jan-11,220.00
http://statistics.data.gov.uk/id/local-authority-district/23UB,Cheltenham Borough Council,440630,M/T7003286,CIVICA UK LIMITED,C-C24150-3623,Fleet Managemnt-Cmpter-sftwre lic purch,21-Jan-11,"2,711.01"
http://statistics.data.gov.uk/id/local-authority-district/23UB,Cheltenham Borough Council,440909,APPEARANCE/W,PETE COE,C-0T70L0-3568,Folk Festival-Artist Fees,26-Jan-11,800.00
http://statistics.data.gov.uk/id/local-authority-district/23UB,Cheltenham Borough Council,441273,PC CHELT,COLE MUSIC PRODUCTIONS,C-0T27H1-3568,Artist Fees,28-Jan-11,"11,727.81"
http://statistics.data.gov.uk/id/local-authority-district/23UB,Cheltenham Borough Council,441273,PC CHELT,COLE MUSIC PRODUCTIONS,C-N13125-9205,ASH Ledger-Town Hall Invoices Paid,28-Jan-11,-501.61
http://statistics.data.gov.uk/id/local-authority-district/23UB,Cheltenham Borough Council,441273,PC CHELT,COLE MUSIC PRODUCTIONS,C-Z12210-9271,Box Off A/C-CBC Invoices Paid,28-Jan-11,"-1,155.00"
http://statistics.data.gov.uk/id/local-authority-district/23UB,Cheltenham Borough Council,439815,17692,COLLETT TRANSPORT SERVICES LIMITED,C-C24100-2701,Fleet Maint-Hired transport,12-Jan-11,"2,040.00"
http://statistics.data.gov.uk/id/local-authority-district/23UB,Cheltenham Borough Council,439814,17695,COLLETT TRANSPORT SERVICES LIMITED,C-C24100-2701,Fleet Maint-Hired transport,12-Jan-11,880.00
http://statistics.data.gov.uk/id/local-authority-district/23UB,Cheltenham Borough Council,440827,17753,COLLETT TRANSPORT SERVICES LIMITED,C-C24100-2701,Fleet Maint-Hired transport,26-Jan-11,900.00
http://statistics.data.gov.uk/id/local-authority-district/23UB,Cheltenham Borough Council,440826,17670,COLLETT TRANSPORT SERVICES LIMITED,C-C24100-3582,Fleet Maint-DSO Invoices,26-Jan-11,13.50
http://statistics.data.gov.uk/id/local-authority-district/23UB,Cheltenham Borough Council,441192,167456,COMMERCIAL LIMITED,C-DC3213-C101,Storage Area-Project Est for this Year,28-Jan-11,"2,685.00"
http://statistics.data.gov.uk/id/local-authority-district/23UB,Cheltenham Borough Council,441192,167456,COMMERCIAL LIMITED,C-DC3213-C101,Storage Area-Project Est for this Year,28-Jan-11,"1,790.00"
http://statistics.data.gov.uk/id/local-authority-district/23UB,Cheltenham Borough Council,441192,167456,COMMERCIAL LIMITED,C-DC3213-C101,Storage Area-Project Est for this Year,28-Jan-11,"1,790.00"
http://statistics.data.gov.uk/id/local-authority-district/23UB,Cheltenham Borough Council,441192,167456,COMMERCIAL LIMITED,C-DC3213-C101,Storage Area-Project Est for this Year,28-Jan-11,"2,685.00"
http://statistics.data.gov.uk/id/local-authority-district/23UB,Cheltenham Borough Council,441192,167456,COMMERCIAL LIMITED,C-DC3213-C101,Storage Area-Project Est for this Year,28-Jan-11,"1,790.00"
http://statistics.data.gov.uk/id/local-authority-district/23UB,Cheltenham Borough Council,441192,167456,COMMERCIAL LIMITED,C-DC3213-C101,Storage Area-Project Est for this Year,28-Jan-11,895.00
http://statistics.data.gov.uk/id/local-authority-district/23UB,Cheltenham Borough Council,441192,167456,COMMERCIAL LIMITED,C-DC3213-C101,Storage Area-Project Est for this Year,28-Jan-11,"1,790.00"
http://statistics.data.gov.uk/id/local-authority-district/23UB,Cheltenham Borough Council,441192,167456,COMMERCIAL LIMITED,C-DC3213-C101,Storage Area-Project Est for this Year,28-Jan-11,895.00
http://statistics.data.gov.uk/id/local-authority-district/23UB,Cheltenham Borough Council,441192,167456,COMMERCIAL LIMITED,C-DC3213-C101,Storage Area-Project Est for this Year,28-Jan-11,"1,790.00"
http://statistics.data.gov.uk/id/local-authority-district/23UB,Cheltenham Borough Council,441192,167456,COMMERCIAL LIMITED,C-DC3213-C101,Storage Area-Project Est for this Year,28-Jan-11,"2,685.00"
http://statistics.data.gov.uk/id/local-authority-district/23UB,Cheltenham Borough Council,441192,167456,COMMERCIAL LIMITED,C-DC3213-C101,Storage Area-Project Est for this Year,28-Jan-11,895.00
http://statistics.data.gov.uk/id/local-authority-district/23UB,Cheltenham Borough Council,441192,167456,COMMERCIAL LIMITED,C-DC3213-C101,Storage Area-Project Est for this Year,28-Jan-11,"1,790.00"
http://statistics.data.gov.uk/id/local-authority-district/23UB,Cheltenham Borough Council,440603,10171,COMPLETE CLIMATE SOLUTIONS LIMITED,C-C22110-1804,Parks & Gardens-RM-External structures,21-Jan-11,333.08
http://statistics.data.gov.uk/id/local-authority-district/23UB,Cheltenham Borough Council,440597,10174,COMPLETE CLIMATE SOLUTIONS LIMITED,C-C22120-1811,Sports & Open S-RM-Plan.& Prev.Mech.Ctrc,21-Jan-11,19.50
http://statistics.data.gov.uk/id/local-authority-district/23UB,Cheltenham Borough Council,440598,10175,COMPLETE CLIMATE SOLUTIONS LIMITED,C-C22120-1811,Sports & Open S-RM-Plan.& Prev.Mech.Ctrc,21-Jan-11,14.63
http://statistics.data.gov.uk/id/local-authority-district/23UB,Cheltenham Borough Council,440602,10185,COMPLETE CLIMATE SOLUTIONS LIMITED,C-C22120-1811,Sports & Open S-RM-Plan.& Prev.Mech.Ctrc,21-Jan-11,61.02
http://statistics.data.gov.uk/id/local-authority-district/23UB,Cheltenham Borough Council,440596,10173,COMPLETE CLIMATE SOLUTIONS LIMITED,C-C22140-1812,Nursery-RM-M&E repairs,21-Jan-11,174.41
http://statistics.data.gov.uk/id/local-authority-district/23UB,Cheltenham Borough Council,440606,10179,COMPLETE CLIMATE SOLUTIONS LIMITED,C-C22140-1812,Nursery-RM-M&E repairs,21-Jan-11,39.00
http://statistics.data.gov.uk/id/local-authority-district/23UB,Cheltenham Borough Council,440600,10180,COMPLETE CLIMATE SOLUTIONS LIMITED,C-D13100-1811,Muni Off Blgs-RM-Plan.& Prev.Mech.Ctrct,21-Jan-11,53.63
http://statistics.data.gov.uk/id/local-authority-district/23UB,Cheltenham Borough Council,440605,10176,COMPLETE CLIMATE SOLUTIONS LIMITED,C-D13100-1812,Muni Off Blgs-RM-Plan.& Prev.Mech.Ctrct,21-Jan-11,37.50
http://statistics.data.gov.uk/id/local-authority-district/23UB,Cheltenham Borough Council,440615,10184,COMPLETE CLIMATE SOLUTIONS LIMITED,C-D13500-1801,Area Off -C.Sqr-RM-Electrical repairs,21-Jan-11,136.50
http://statistics.data.gov.uk/id/local-authority-district/23UB,Cheltenham Borough Council,440601,10182,COMPLETE CLIMATE SOLUTIONS LIMITED,C-L11500-1811,Rec Facilities-RM-Plan.& Prev.Mech.Ctrct,21-Jan-11,"1,786.29"
http://statistics.data.gov.uk/id/local-authority-district/23UB,Cheltenham Borough Council,440604,10172,COMPLETE CLIMATE SOLUTIONS LIMITED,C-L11500-1811,Rec Facilities-RM-Plan.& Prev.Mech.Ctrct,21-Jan-11,721.66
http://statistics.data.gov.uk/id/local-authority-district/23UB,Cheltenham Borough Council,440599,10177,COMPLETE CLIMATE SOLUTIONS LIMITED,C-L21100-1811,Town Hall-RM-Plan.& Prev.Mech.Ctrct,21-Jan-11,48.75
http://statistics.data.gov.uk/id/local-authority-district/23UB,Cheltenham Borough Council,440596,10173,COMPLETE CLIMATE SOLUTIONS LIMITED,C-N11250-9227,Excluded,21-Jan-11,-20.70
http://statistics.data.gov.uk/id/local-authority-district/23UB,Cheltenham Borough Council,440597,10174,COMPLETE CLIMATE SOLUTIONS LIMITED,C-N11250-9227,Excluded,21-Jan-11,-3.90
http://statistics.data.gov.uk/id/local-authority-district/23UB,Cheltenham Borough Council,440599,10177,COMPLETE CLIMATE SOLUTIONS LIMITED,C-N11250-9227,Excluded,21-Jan-11,-9.75
http://statistics.data.gov.uk/id/local-authority-district/23UB,Cheltenham Borough Council,440602,10185,COMPLETE CLIMATE SOLUTIONS LIMITED,C-N11250-9227,Excluded,21-Jan-11,-12.20
http://statistics.data.gov.uk/id/local-authority-district/23UB,Cheltenham Borough Council,440601,10182,COMPLETE CLIMATE SOLUTIONS LIMITED,C-N11250-9227,Excluded,21-Jan-11,-31.68
http://statistics.data.gov.uk/id/local-authority-district/23UB,Cheltenham Borough Council,440600,10180,COMPLETE CLIMATE SOLUTIONS LIMITED,C-N11250-9227,Excluded,21-Jan-11,-10.73
http://statistics.data.gov.uk/id/local-authority-district/23UB,Cheltenham Borough Council,440598,10175,COMPLETE CLIMATE SOLUTIONS LIMITED,C-N11250-9227,Excluded,21-Jan-11,-2.93
http://statistics.data.gov.uk/id/local-authority-district/23UB,Cheltenham Borough Council,440603,10171,COMPLETE CLIMATE SOLUTIONS LIMITED,C-N11250-9227,Excluded,21-Jan-11,-15.60
http://statistics.data.gov.uk/id/local-authority-district/23UB,Cheltenham Borough Council,440615,10184,COMPLETE CLIMATE SOLUTIONS LIMITED,C-N11250-9227,Excluded,21-Jan-11,-27.30
http://statistics.data.gov.uk/id/local-authority-district/23UB,Cheltenham Borough Council,440606,10179,COMPLETE CLIMATE SOLUTIONS LIMITED,C-N11250-9227,Excluded,21-Jan-11,-7.80
http://statistics.data.gov.uk/id/local-authority-district/23UB,Cheltenham Borough Council,440605,10176,COMPLETE CLIMATE SOLUTIONS LIMITED,C-N11250-9227,Excluded,21-Jan-11,-7.50
http://statistics.data.gov.uk/id/local-authority-district/23UB,Cheltenham Borough Council,440604,10172,COMPLETE CLIMATE SOLUTIONS LIMITED,C-N11250-9227,Excluded,21-Jan-11,-120.00
http://statistics.data.gov.uk/id/local-authority-district/23UB,Cheltenham Borough Council,440890,10191,COMPLETE CLIMATE SOLUTIONS LIMITED,C-C22120-1811,Sports & Open S-RM-Plan.& Prev.Mech.Ctrc,26-Jan-11,139.08
http://statistics.data.gov.uk/id/local-authority-district/23UB,Cheltenham Borough Council,440886,10187,COMPLETE CLIMATE SOLUTIONS LIMITED,C-D13100-1811,Muni Off Blgs-RM-Plan.& Prev.Mech.Ctrct,26-Jan-11,80.24
http://statistics.data.gov.uk/id/local-authority-district/23UB,Cheltenham Borough Council,440892,10193,COMPLETE CLIMATE SOLUTIONS LIMITED,C-D13100-1811,Muni Off Blgs-RM-Plan.& Prev.Mech.Ctrct,26-Jan-11,14.63
http://statistics.data.gov.uk/id/local-authority-district/23UB,Cheltenham Borough Council,440889,10190,COMPLETE CLIMATE SOLUTIONS LIMITED,C-L11500-1811,Rec Facilities-RM-Plan.& Prev.Mech.Ctrct,26-Jan-11,102.38
http://statistics.data.gov.uk/id/local-authority-district/23UB,Cheltenham Borough Council,440891,10192,COMPLETE CLIMATE SOLUTIONS LIMITED,C-L11500-1811,Rec Facilities-RM-Plan.& Prev.Mech.Ctrct,26-Jan-11,428.56
http://statistics.data.gov.uk/id/local-authority-district/23UB,Cheltenham Borough Council,440887,10188,COMPLETE CLIMATE SOLUTIONS LIMITED,C-L21100-1811,Town Hall-RM-Plan.& Prev.Mech.Ctrct,26-Jan-11,449.57
http://statistics.data.gov.uk/id/local-authority-district/23UB,Cheltenham Borough Council,440888,10189,COMPLETE CLIMATE SOLUTIONS LIMITED,C-L41100-1811,AG & M-RM-Plan.& Prev.Mech.Ctrct,26-Jan-11,125.26
http://statistics.data.gov.uk/id/local-authority-district/23UB,Cheltenham Borough Council,440886,10187,COMPLETE CLIMATE SOLUTIONS LIMITED,C-N11250-9227,Excluded,26-Jan-11,-15.00
http://statistics.data.gov.uk/id/local-authority-district/23UB,Cheltenham Borough Council,440887,10188,COMPLETE CLIMATE SOLUTIONS LIMITED,C-N11250-9227,Excluded,26-Jan-11,-28.68
http://statistics.data.gov.uk/id/local-authority-district/23UB,Cheltenham Borough Council,440889,10190,COMPLETE CLIMATE SOLUTIONS LIMITED,C-N11250-9227,Excluded,26-Jan-11,-20.48
http://statistics.data.gov.uk/id/local-authority-district/23UB,Cheltenham Borough Council,440892,10193,COMPLETE CLIMATE SOLUTIONS LIMITED,C-N11250-9227,Excluded,26-Jan-11,-2.93
http://statistics.data.gov.uk/id/local-authority-district/23UB,Cheltenham Borough Council,440891,10192,COMPLETE CLIMATE SOLUTIONS LIMITED,C-N11250-9227,Excluded,26-Jan-11,-20.48
http://statistics.data.gov.uk/id/local-authority-district/23UB,Cheltenham Borough Council,440890,10191,COMPLETE CLIMATE SOLUTIONS LIMITED,C-N11250-9227,Excluded,26-Jan-11,-9.75
http://statistics.data.gov.uk/id/local-authority-district/23UB,Cheltenham Borough Council,440888,10189,COMPLETE CLIMATE SOLUTIONS LIMITED,C-N11250-9227,Excluded,26-Jan-11,-7.80
http://statistics.data.gov.uk/id/local-authority-district/23UB,Cheltenham Borough Council,440893,10194,COMPLETE CLIMATE SOLUTIONS LIMITED,C-N11250-9227,Excluded,26-Jan-11,-8.78
http://statistics.data.gov.uk/id/local-authority-district/23UB,Cheltenham Borough Council,440893,10194,COMPLETE CLIMATE SOLUTIONS LIMITED,C-PM0030-R003,Pitt.Pump Room-Ext redecoration,26-Jan-11,54.75
http://statistics.data.gov.uk/id/local-authority-district/23UB,Cheltenham Borough Council,441217,10208,COMPLETE CLIMATE SOLUTIONS LIMITED,C-C22120-1811,Sports & Open S-RM-Plan.& Prev.Mech.Ctrc,28-Jan-11,14.63
http://statistics.data.gov.uk/id/local-authority-district/23UB,Cheltenham Borough Council,441202,10200,COMPLETE CLIMATE SOLUTIONS LIMITED,C-C23140-1811,Public Convnces-RM-Plan.& Prev.Mech.Ctrc,28-Jan-11,378.30
http://statistics.data.gov.uk/id/local-authority-district/23UB,Cheltenham Borough Council,440538,10219,COMPLETE CLIMATE SOLUTIONS LIMITED,C-D13100-1123,Muni Off Blgs-M&E Planned & Preventative,28-Jan-11,"2,700.00"
http://statistics.data.gov.uk/id/local-authority-district/23UB,Cheltenham Borough Council,441122,10201,COMPLETE CLIMATE SOLUTIONS LIMITED,C-D13100-1811,Muni Off Blgs-RM-Plan.& Prev.Mech.Ctrct,28-Jan-11,260.72
http://statistics.data.gov.uk/id/local-authority-district/23UB,Cheltenham Borough Council,441216,10207,COMPLETE CLIMATE SOLUTIONS LIMITED,C-D13550-1811,Area Off -E.Hse-RM-Plan.& Prev.Mech.Ctrc,28-Jan-11,37.50
http://statistics.data.gov.uk/id/local-authority-district/23UB,Cheltenham Borough Council,441215,10205,COMPLETE CLIMATE SOLUTIONS LIMITED,C-D14100-1811,Depot Building-RM-Plan.& Prev.Mech.Ctrct,28-Jan-11,148.00
http://statistics.data.gov.uk/id/local-authority-district/23UB,Cheltenham Borough Council,441236,10209,COMPLETE CLIMATE SOLUTIONS LIMITED,C-D30200-1811,Misc Props & Ld-RM-Plan.& Prev.Mech.Ctrct,28-Jan-11,9.75
http://statistics.data.gov.uk/id/local-authority-district/23UB,Cheltenham Borough Council,441118,10195,COMPLETE CLIMATE SOLUTIONS LIMITED,C-E63100-1811,Cemetery & Crem-RM-Plan.& Prev.Mech.Ctrc,28-Jan-11,19.50
http://statistics.data.gov.uk/id/local-authority-district/23UB,Cheltenham Borough Council,441121,10199,COMPLETE CLIMATE SOLUTIONS LIMITED,C-L11500-1811,Rec Facilities-RM-Plan.& Prev.Mech.Ctrct,28-Jan-11,78.72
http://statistics.data.gov.uk/id/local-authority-district/23UB,Cheltenham Borough Council,441125,10204,COMPLETE CLIMATE SOLUTIONS LIMITED,C-L11500-1811,Rec Facilities-RM-Plan.& Prev.Mech.Ctrct,28-Jan-11,367.23
http://statistics.data.gov.uk/id/local-authority-district/23UB,Cheltenham Borough Council,441120,10198,COMPLETE CLIMATE SOLUTIONS LIMITED,C-L21100-1811,Town Hall-RM-Plan.& Prev.Mech.Ctrct,28-Jan-11,275.73
http://statistics.data.gov.uk/id/local-authority-district/23UB,Cheltenham Borough Council,441124,10202,COMPLETE CLIMATE SOLUTIONS LIMITED,C-L21100-1811,Town Hall-RM-Plan.& Prev.Mech.Ctrct,28-Jan-11,34.13
http://statistics.data.gov.uk/id/local-authority-district/23UB,Cheltenham Borough Council,441123,10203,COMPLETE CLIMATE SOLUTIONS LIMITED,C-L41100-1811,AG & M-RM-Plan.& Prev.Mech.Ctrct,28-Jan-11,9.75
http://statistics.data.gov.uk/id/local-authority-district/23UB,Cheltenham Borough Council,441236,10209,COMPLETE CLIMATE SOLUTIONS LIMITED,C-N11250-9227,Excluded,28-Jan-11,-1.95
http://statistics.data.gov.uk/id/local-authority-district/23UB,Cheltenham Borough Council,441125,10204,COMPLETE CLIMATE SOLUTIONS LIMITED,C-N11250-9227,Excluded,28-Jan-11,-15.85
http://statistics.data.gov.uk/id/local-authority-district/23UB,Cheltenham Borough Council,441124,10202,COMPLETE CLIMATE SOLUTIONS LIMITED,C-N11250-9227,Excluded,28-Jan-11,-6.83
http://statistics.data.gov.uk/id/local-authority-district/23UB,Cheltenham Borough Council,441123,10203,COMPLETE CLIMATE SOLUTIONS LIMITED,C-N11250-9227,Excluded,28-Jan-11,-1.95
http://statistics.data.gov.uk/id/local-authority-district/23UB,Cheltenham Borough Council,441122,10201,COMPLETE CLIMATE SOLUTIONS LIMITED,C-N11250-9227,Excluded,28-Jan-11,-16.58
http://statistics.data.gov.uk/id/local-authority-district/23UB,Cheltenham Borough Council,441121,10199,COMPLETE CLIMATE SOLUTIONS LIMITED,C-N11250-9227,Excluded,28-Jan-11,-15.75
http://statistics.data.gov.uk/id/local-authority-district/23UB,Cheltenham Borough Council,441119,10197,COMPLETE CLIMATE SOLUTIONS LIMITED,C-N11250-9227,Excluded,28-Jan-11,-219.69
http://statistics.data.gov.uk/id/local-authority-district/23UB,Cheltenham Borough Council,441118,10195,COMPLETE CLIMATE SOLUTIONS LIMITED,C-N11250-9227,Excluded,28-Jan-11,-3.90
http://statistics.data.gov.uk/id/local-authority-district/23UB,Cheltenham Borough Council,441202,10200,COMPLETE CLIMATE SOLUTIONS LIMITED,C-N11250-9227,Excluded,28-Jan-11,-75.66
http://statistics.data.gov.uk/id/local-authority-district/23UB,Cheltenham Borough Council,441217,10208,COMPLETE CLIMATE SOLUTIONS LIMITED,C-N11250-9227,Excluded,28-Jan-11,-2.93
http://statistics.data.gov.uk/id/local-authority-district/23UB,Cheltenham Borough Council,441216,10207,COMPLETE CLIMATE SOLUTIONS LIMITED,C-N11250-9227,Excluded,28-Jan-11,-7.50
http://statistics.data.gov.uk/id/local-authority-district/23UB,Cheltenham Borough Council,441215,10205,COMPLETE CLIMATE SOLUTIONS LIMITED,C-N11250-9227,Excluded,28-Jan-11,-29.60
http://statistics.data.gov.uk/id/local-authority-district/23UB,Cheltenham Borough Council,440538,10219,COMPLETE CLIMATE SOLUTIONS LIMITED,C-N11250-9227,Excluded,28-Jan-11,-540.00
http://statistics.data.gov.uk/id/local-authority-district/23UB,Cheltenham Borough Council,441119,10197,COMPLETE CLIMATE SOLUTIONS LIMITED,C-PM0070-R020,Municipal Off.-Mechanical & Electrical W,28-Jan-11,"1,098.45"
http://statistics.data.gov.uk/id/local-authority-district/23UB,Cheltenham Borough Council,439286,502315,COMENSURA LIMITED,C-C22100-0115,Green Env Div-Temporary Agency Staff,05-Jan-11,209.40
http://statistics.data.gov.uk/id/local-authority-district/23UB,Cheltenham Borough Council,439286,502315,COMENSURA LIMITED,C-C22100-0115,Green Env Div-Temporary Agency Staff,05-Jan-11,279.20
http://statistics.data.gov.uk/id/local-authority-district/23UB,Cheltenham Borough Council,439286,502315,COMENSURA LIMITED,C-C22100-0115,Green Env Div-Temporary Agency Staff,05-Jan-11,279.20
http://statistics.data.gov.uk/id/local-authority-district/23UB,Cheltenham Borough Council,439286,502315,COMENSURA LIMITED,C-C22100-0115,Green Env Div-Temporary Agency Staff,05-Jan-11,279.20
http://statistics.data.gov.uk/id/local-authority-district/23UB,Cheltenham Borough Council,439286,502315,COMENSURA LIMITED,C-C23100-0115,Refuse Collection-Temporary Agency Staff,05-Jan-11,266.49
http://statistics.data.gov.uk/id/local-authority-district/23UB,Cheltenham Borough Council,439287,502425,COMENSURA LIMITED,C-C23100-0115,Refuse Collection-Temporary Agency Staff,05-Jan-11,67.68
http://statistics.data.gov.uk/id/local-authority-district/23UB,Cheltenham Borough Council,439286,502315,COMENSURA LIMITED,C-C23100-0115,Refuse Collection-Temporary Agency Staff,05-Jan-11,291.12
http://statistics.data.gov.uk/id/local-authority-district/23UB,Cheltenham Borough Council,439286,502315,COMENSURA LIMITED,C-C23100-0115,Refuse Collection-Temporary Agency Staff,05-Jan-11,272.84
http://statistics.data.gov.uk/id/local-authority-district/23UB,Cheltenham Borough Council,439286,502315,COMENSURA LIMITED,C-C23100-0115,Refuse Collection-Temporary Agency Staff,05-Jan-11,485.20
http://statistics.data.gov.uk/id/local-authority-district/23UB,Cheltenham Borough Council,439286,502315,COMENSURA LIMITED,C-C23100-0115,Refuse Collection-Temporary Agency Staff,05-Jan-11,164.98
http://statistics.data.gov.uk/id/local-authority-district/23UB,Cheltenham Borough Council,439286,502315,COMENSURA LIMITED,C-C23100-0115,Refuse Collection-Temporary Agency Staff,05-Jan-11,126.90
http://statistics.data.gov.uk/id/local-authority-district/23UB,Cheltenham Borough Council,439287,502425,COMENSURA LIMITED,C-C23100-0115,Refuse Collection-Temporary Agency Staff,05-Jan-11,97.04
http://statistics.data.gov.uk/id/local-authority-district/23UB,Cheltenham Borough Council,439287,502425,COMENSURA LIMITED,C-C23100-0115,Refuse Collection-Temporary Agency Staff,05-Jan-11,67.68
http://statistics.data.gov.uk/id/local-authority-district/23UB,Cheltenham Borough Council,439286,502315,COMENSURA LIMITED,C-C23100-0115,Refuse Collection-Temporary Agency Staff,05-Jan-11,268.60
http://statistics.data.gov.uk/id/local-authority-district/23UB,Cheltenham Borough Council,439286,502315,COMENSURA LIMITED,C-C23100-0115,Refuse Collection-Temporary Agency Staff,05-Jan-11,63.45
http://statistics.data.gov.uk/id/local-authority-district/23UB,Cheltenham Borough Council,439286,502315,COMENSURA LIMITED,C-C23100-0115,Refuse Collection-Temporary Agency Staff,05-Jan-11,52.88
http://statistics.data.gov.uk/id/local-authority-district/23UB,Cheltenham Borough Council,439287,502425,COMENSURA LIMITED,C-C23110-0115,Street Cleaning-Temporary Agency Staff,05-Jan-11,33.84
http://statistics.data.gov.uk/id/local-authority-district/23UB,Cheltenham Borough Council,439286,502315,COMENSURA LIMITED,C-C23110-0115,Street Cleaning-Temporary Agency Staff,05-Jan-11,313.02
http://statistics.data.gov.uk/id/local-authority-district/23UB,Cheltenham Borough Council,439286,502315,COMENSURA LIMITED,C-C23110-0115,Street Cleaning-Temporary Agency Staff,05-Jan-11,346.86
http://statistics.data.gov.uk/id/local-authority-district/23UB,Cheltenham Borough Council,439286,502315,COMENSURA LIMITED,C-C23125-0115,Recyl Bring Schms-Temporary Agency Staff,05-Jan-11,339.64
http://statistics.data.gov.uk/id/local-authority-district/23UB,Cheltenham Borough Council,439286,502315,COMENSURA LIMITED,C-C23125-0115,Recyl Bring Schms-Temporary Agency Staff,05-Jan-11,97.04
http://statistics.data.gov.uk/id/local-authority-district/23UB,Cheltenham Borough Council,439286,502315,COMENSURA LIMITED,C-C23130-0115,Build Cleaning-Temporary Agency Staff,05-Jan-11,16.56
http://statistics.data.gov.uk/id/local-authority-district/23UB,Cheltenham Borough Council,439286,502315,COMENSURA LIMITED,C-C23140-0115,Public Convnces-Temporary Agency Staff,05-Jan-11,27.56
http://statistics.data.gov.uk/id/local-authority-district/23UB,Cheltenham Borough Council,439286,502315,COMENSURA LIMITED,C-C23140-0115,Public Convnces-Temporary Agency Staff,05-Jan-11,258.03
http://statistics.data.gov.uk/id/local-authority-district/23UB,Cheltenham Borough Council,439286,502315,COMENSURA LIMITED,C-C23140-0115,Public Convnces-Temporary Agency Staff,05-Jan-11,253.92
http://statistics.data.gov.uk/id/local-authority-district/23UB,Cheltenham Borough Council,439287,502425,COMENSURA LIMITED,C-C23160-0115,Env Maint Div-Temporary Agency Staff,05-Jan-11,336.26
http://statistics.data.gov.uk/id/local-authority-district/23UB,Cheltenham Borough Council,439286,502315,COMENSURA LIMITED,C-C23180-0115,Rcycl Coltn Schms-Temporary Agency Staff,05-Jan-11,99.40
http://statistics.data.gov.uk/id/local-authority-district/23UB,Cheltenham Borough Council,439286,502315,COMENSURA LIMITED,C-C23180-0115,Rcycl Coltn Schms-Temporary Agency Staff,05-Jan-11,167.08
http://statistics.data.gov.uk/id/local-authority-district/23UB,Cheltenham Borough Council,439286,502315,COMENSURA LIMITED,C-C23180-0115,Rcycl Coltn Schms-Temporary Agency Staff,05-Jan-11,141.71
http://statistics.data.gov.uk/id/local-authority-district/23UB,Cheltenham Borough Council,439286,502315,COMENSURA LIMITED,C-C23180-0115,Rcycl Coltn Schms-Temporary Agency Staff,05-Jan-11,186.12
http://statistics.data.gov.uk/id/local-authority-district/23UB,Cheltenham Borough Council,439286,502315,COMENSURA LIMITED,C-C23180-0115,Rcycl Coltn Schms-Temporary Agency Staff,05-Jan-11,135.36
http://statistics.data.gov.uk/id/local-authority-district/23UB,Cheltenham Borough Council,439286,502315,COMENSURA LIMITED,C-C23180-0115,Rcycl Coltn Schms-Temporary Agency Staff,05-Jan-11,485.20
http://statistics.data.gov.uk/id/local-authority-district/23UB,Cheltenham Borough Council,439286,502315,COMENSURA LIMITED,C-C23180-0115,Rcycl Coltn Schms-Temporary Agency Staff,05-Jan-11,59.22
http://statistics.data.gov.uk/id/local-authority-district/23UB,Cheltenham Borough Council,439286,502315,COMENSURA LIMITED,C-C23180-0115,Rcycl Coltn Schms-Temporary Agency Staff,05-Jan-11,262.27
http://statistics.data.gov.uk/id/local-authority-district/23UB,Cheltenham Borough Council,439286,502315,COMENSURA LIMITED,C-C23180-0115,Rcycl Coltn Schms-Temporary Agency Staff,05-Jan-11,262.26
http://statistics.data.gov.uk/id/local-authority-district/23UB,Cheltenham Borough Council,439286,502315,COMENSURA LIMITED,C-C23180-0115,Rcycl Coltn Schms-Temporary Agency Staff,05-Jan-11,103.10
http://statistics.data.gov.uk/id/local-authority-district/23UB,Cheltenham Borough Council,439286,502315,COMENSURA LIMITED,C-C23180-0115,Rcycl Coltn Schms-Temporary Agency Staff,05-Jan-11,270.72
http://statistics.data.gov.uk/id/local-authority-district/23UB,Cheltenham Borough Council,439286,502315,COMENSURA LIMITED,C-C23190-0115,Garden Collectn-Temporary Agency Staff,05-Jan-11,203.04
http://statistics.data.gov.uk/id/local-authority-district/23UB,Cheltenham Borough Council,439286,502315,COMENSURA LIMITED,C-C23190-0115,Garden Collectn-Temporary Agency Staff,05-Jan-11,497.32
http://statistics.data.gov.uk/id/local-authority-district/23UB,Cheltenham Borough Council,439286,502315,COMENSURA LIMITED,C-C23190-0115,Garden Collectn-Temporary Agency Staff,05-Jan-11,304.55
http://statistics.data.gov.uk/id/local-authority-district/23UB,Cheltenham Borough Council,439286,502315,COMENSURA LIMITED,C-C23190-0115,Garden Collectn-Temporary Agency Staff,05-Jan-11,160.74
http://statistics.data.gov.uk/id/local-authority-district/23UB,Cheltenham Borough Council,439287,502425,COMENSURA LIMITED,C-C23190-0115,Garden Collectn-Temporary Agency Staff,05-Jan-11,-203.04
http://statistics.data.gov.uk/id/local-authority-district/23UB,Cheltenham Borough Council,439287,502425,COMENSURA LIMITED,C-C23190-0115,Garden Collectn-Temporary Agency Staff,05-Jan-11,290.88
http://statistics.data.gov.uk/id/local-authority-district/23UB,Cheltenham Borough Council,439287,502425,COMENSURA LIMITED,C-D13100-0115,Muni Off Blgs-Temporary Agency Staff,05-Jan-11,21.15
http://statistics.data.gov.uk/id/local-authority-district/23UB,Cheltenham Borough Council,439287,502425,COMENSURA LIMITED,C-E36200-0115,On-St Car Prkng-Temporary Agency Staff,05-Jan-11,167.00
http://statistics.data.gov.uk/id/local-authority-district/23UB,Cheltenham Borough Council,439286,502315,COMENSURA LIMITED,C-E36200-0115,On-St Car Prkng-Temporary Agency Staff,05-Jan-11,488.62
http://statistics.data.gov.uk/id/local-authority-district/23UB,Cheltenham Borough Council,439286,502315,COMENSURA LIMITED,C-E36200-0115,On-St Car Prkng-Temporary Agency Staff,05-Jan-11,392.75
http://statistics.data.gov.uk/id/local-authority-district/23UB,Cheltenham Borough Council,439287,502425,COMENSURA LIMITED,C-E63100-0115,Cemetery & Crem-Temporary Agency Staff,05-Jan-11,313.02
http://statistics.data.gov.uk/id/local-authority-district/23UB,Cheltenham Borough Council,439287,502425,COMENSURA LIMITED,C-E63100-0115,Cemetery & Crem-Temporary Agency Staff,05-Jan-11,313.02
http://statistics.data.gov.uk/id/local-authority-district/23UB,Cheltenham Borough Council,439287,502425,COMENSURA LIMITED,C-E63100-0115,Cemetery & Crem-Temporary Agency Staff,05-Jan-11,313.02
http://statistics.data.gov.uk/id/local-authority-district/23UB,Cheltenham Borough Council,439287,502425,COMENSURA LIMITED,C-E72500-0115,Built Env Div-Temporary Agency Staff,05-Jan-11,21.15
http://statistics.data.gov.uk/id/local-authority-district/23UB,Cheltenham Borough Council,439794,502611,COMENSURA LIMITED,C-C23100-0115,Refuse Collection-Temporary Agency Staff,12-Jan-11,306.59
http://statistics.data.gov.uk/id/local-authority-district/23UB,Cheltenham Borough Council,439793,502531,COMENSURA LIMITED,C-C23100-0115,Refuse Collection-Temporary Agency Staff,12-Jan-11,200.92
http://statistics.data.gov.uk/id/local-authority-district/23UB,Cheltenham Borough Council,439793,502531,COMENSURA LIMITED,C-C23100-0115,Refuse Collection-Temporary Agency Staff,12-Jan-11,400.29
http://statistics.data.gov.uk/id/local-authority-district/23UB,Cheltenham Borough Council,439793,502531,COMENSURA LIMITED,C-C23100-0115,Refuse Collection-Temporary Agency Staff,12-Jan-11,109.17
http://statistics.data.gov.uk/id/local-authority-district/23UB,Cheltenham Borough Council,439793,502531,COMENSURA LIMITED,C-C23100-0115,Refuse Collection-Temporary Agency Staff,12-Jan-11,315.38
http://statistics.data.gov.uk/id/local-authority-district/23UB,Cheltenham Borough Council,439793,502531,COMENSURA LIMITED,C-C23100-0115,Refuse Collection-Temporary Agency Staff,12-Jan-11,463.19
http://statistics.data.gov.uk/id/local-authority-district/23UB,Cheltenham Borough Council,439793,502531,COMENSURA LIMITED,C-C23100-0115,Refuse Collection-Temporary Agency Staff,12-Jan-11,200.92
http://statistics.data.gov.uk/id/local-authority-district/23UB,Cheltenham Borough Council,439793,502531,COMENSURA LIMITED,C-C23100-0115,Refuse Collection-Temporary Agency Staff,12-Jan-11,439.92
http://statistics.data.gov.uk/id/local-authority-district/23UB,Cheltenham Borough Council,439793,502531,COMENSURA LIMITED,C-C23100-0115,Refuse Collection-Temporary Agency Staff,12-Jan-11,437.80
http://statistics.data.gov.uk/id/local-authority-district/23UB,Cheltenham Borough Council,439793,502531,COMENSURA LIMITED,C-C23100-0115,Refuse Collection-Temporary Agency Staff,12-Jan-11,679.28
http://statistics.data.gov.uk/id/local-authority-district/23UB,Cheltenham Borough Council,439793,502531,COMENSURA LIMITED,C-C23100-0115,Refuse Collection-Temporary Agency Staff,12-Jan-11,76.14
http://statistics.data.gov.uk/id/local-authority-district/23UB,Cheltenham Borough Council,439793,502531,COMENSURA LIMITED,C-C23100-0115,Refuse Collection-Temporary Agency Staff,12-Jan-11,194.08
http://statistics.data.gov.uk/id/local-authority-district/23UB,Cheltenham Borough Council,439793,502531,COMENSURA LIMITED,C-C23100-0115,Refuse Collection-Temporary Agency Staff,12-Jan-11,389.16
http://statistics.data.gov.uk/id/local-authority-district/23UB,Cheltenham Borough Council,439793,502531,COMENSURA LIMITED,C-C23100-0115,Refuse Collection-Temporary Agency Staff,12-Jan-11,114.21
http://statistics.data.gov.uk/id/local-authority-district/23UB,Cheltenham Borough Council,439793,502531,COMENSURA LIMITED,C-C23100-0115,Refuse Collection-Temporary Agency Staff,12-Jan-11,118.44
http://statistics.data.gov.uk/id/local-authority-district/23UB,Cheltenham Borough Council,439793,502531,COMENSURA LIMITED,C-C23100-0115,Refuse Collection-Temporary Agency Staff,12-Jan-11,446.27
http://statistics.data.gov.uk/id/local-authority-district/23UB,Cheltenham Borough Council,439793,502531,COMENSURA LIMITED,C-C23100-0115,Refuse Collection-Temporary Agency Staff,12-Jan-11,310.92
http://statistics.data.gov.uk/id/local-authority-district/23UB,Cheltenham Borough Council,439793,502531,COMENSURA LIMITED,C-C23110-0115,Street Cleaning-Temporary Agency Staff,12-Jan-11,186.12
http://statistics.data.gov.uk/id/local-authority-district/23UB,Cheltenham Borough Council,439793,502531,COMENSURA LIMITED,C-C23110-0115,Street Cleaning-Temporary Agency Staff,12-Jan-11,84.60
http://statistics.data.gov.uk/id/local-authority-district/23UB,Cheltenham Borough Council,439793,502531,COMENSURA LIMITED,C-C23110-0115,Street Cleaning-Temporary Agency Staff,12-Jan-11,287.64
http://statistics.data.gov.uk/id/local-authority-district/23UB,Cheltenham Borough Council,439793,502531,COMENSURA LIMITED,C-C23125-0115,Recyl Bring Schms-Temporary Agency Staff,12-Jan-11,691.41
http://statistics.data.gov.uk/id/local-authority-district/23UB,Cheltenham Borough Council,439793,502531,COMENSURA LIMITED,C-C23140-0115,Public Convnces-Temporary Agency Staff,12-Jan-11,427.23
http://statistics.data.gov.uk/id/local-authority-district/23UB,Cheltenham Borough Council,439793,502531,COMENSURA LIMITED,C-C23140-0115,Public Convnces-Temporary Agency Staff,12-Jan-11,283.41
http://statistics.data.gov.uk/id/local-authority-district/23UB,Cheltenham Borough Council,439794,502611,COMENSURA LIMITED,C-C23160-0115,Env Maint Div-Temporary Agency Staff,12-Jan-11,138.46
http://statistics.data.gov.uk/id/local-authority-district/23UB,Cheltenham Borough Council,439794,502611,COMENSURA LIMITED,C-C23160-0115,Env Maint Div-Temporary Agency Staff,12-Jan-11,370.90
http://statistics.data.gov.uk/id/local-authority-district/23UB,Cheltenham Borough Council,439794,502611,COMENSURA LIMITED,C-C23160-0115,Env Maint Div-Temporary Agency Staff,12-Jan-11,197.80
http://statistics.data.gov.uk/id/local-authority-district/23UB,Cheltenham Borough Council,439794,502611,COMENSURA LIMITED,C-C23160-0115,Env Maint Div-Temporary Agency Staff,12-Jan-11,346.15
http://statistics.data.gov.uk/id/local-authority-district/23UB,Cheltenham Borough Council,439793,502531,COMENSURA LIMITED,C-C23180-0115,Rcycl Coltn Schms-Temporary Agency Staff,12-Jan-11,186.12
http://statistics.data.gov.uk/id/local-authority-district/23UB,Cheltenham Borough Council,439793,502531,COMENSURA LIMITED,C-C23180-0115,Rcycl Coltn Schms-Temporary Agency Staff,12-Jan-11,279.17
http://statistics.data.gov.uk/id/local-authority-district/23UB,Cheltenham Borough Council,439793,502531,COMENSURA LIMITED,C-C23180-0115,Rcycl Coltn Schms-Temporary Agency Staff,12-Jan-11,291.12
http://statistics.data.gov.uk/id/local-authority-district/23UB,Cheltenham Borough Council,439793,502531,COMENSURA LIMITED,C-C23180-0115,Rcycl Coltn Schms-Temporary Agency Staff,12-Jan-11,249.57
http://statistics.data.gov.uk/id/local-authority-district/23UB,Cheltenham Borough Council,439793,502531,COMENSURA LIMITED,C-C23180-0115,Rcycl Coltn Schms-Temporary Agency Staff,12-Jan-11,473.76
http://statistics.data.gov.uk/id/local-authority-district/23UB,Cheltenham Borough Council,439793,502531,COMENSURA LIMITED,C-C23180-0115,Rcycl Coltn Schms-Temporary Agency Staff,12-Jan-11,137.47
http://statistics.data.gov.uk/id/local-authority-district/23UB,Cheltenham Borough Council,439793,502531,COMENSURA LIMITED,C-C23180-0115,Rcycl Coltn Schms-Temporary Agency Staff,12-Jan-11,152.27
http://statistics.data.gov.uk/id/local-authority-district/23UB,Cheltenham Borough Council,439793,502531,COMENSURA LIMITED,C-C23180-0115,Rcycl Coltn Schms-Temporary Agency Staff,12-Jan-11,272.84
http://statistics.data.gov.uk/id/local-authority-district/23UB,Cheltenham Borough Council,439793,502531,COMENSURA LIMITED,C-C23180-0115,Rcycl Coltn Schms-Temporary Agency Staff,12-Jan-11,158.63
http://statistics.data.gov.uk/id/local-authority-district/23UB,Cheltenham Borough Council,439793,502531,COMENSURA LIMITED,C-C23190-0115,Garden Collectn-Temporary Agency Staff,12-Jan-11,485.20
http://statistics.data.gov.uk/id/local-authority-district/23UB,Cheltenham Borough Council,439793,502531,COMENSURA LIMITED,C-C23190-0115,Garden Collectn-Temporary Agency Staff,12-Jan-11,691.41
http://statistics.data.gov.uk/id/local-authority-district/23UB,Cheltenham Borough Council,439794,502611,COMENSURA LIMITED,C-E72500-0115,Built Env Div-Temporary Agency Staff,12-Jan-11,50.76
http://statistics.data.gov.uk/id/local-authority-district/23UB,Cheltenham Borough Council,439793,502531,COMENSURA LIMITED,C-E72500-0115,Built Env Div-Temporary Agency Staff,12-Jan-11,105.75
http://statistics.data.gov.uk/id/local-authority-district/23UB,Cheltenham Borough Council,440024,502719,COMENSURA LIMITED,C-C22110-0115,Parks & Gardens-Temporary Agency Staff,14-Jan-11,487.04
http://statistics.data.gov.uk/id/local-authority-district/23UB,Cheltenham Borough Council,440024,502719,COMENSURA LIMITED,C-C23100-0115,Refuse Collection-Temporary Agency Staff,14-Jan-11,249.57
http://statistics.data.gov.uk/id/local-authority-district/23UB,Cheltenham Borough Council,440024,502719,COMENSURA LIMITED,C-C23100-0115,Refuse Collection-Temporary Agency Staff,14-Jan-11,313.02
http://statistics.data.gov.uk/id/local-authority-district/23UB,Cheltenham Borough Council,440024,502719,COMENSURA LIMITED,C-C23100-0115,Refuse Collection-Temporary Agency Staff,14-Jan-11,332.06
http://statistics.data.gov.uk/id/local-authority-district/23UB,Cheltenham Borough Council,440024,502719,COMENSURA LIMITED,C-C23100-0115,Refuse Collection-Temporary Agency Staff,14-Jan-11,227.44
http://statistics.data.gov.uk/id/local-authority-district/23UB,Cheltenham Borough Council,440024,502719,COMENSURA LIMITED,C-C23100-0115,Refuse Collection-Temporary Agency Staff,14-Jan-11,325.72
http://statistics.data.gov.uk/id/local-authority-district/23UB,Cheltenham Borough Council,440024,502719,COMENSURA LIMITED,C-C23100-0115,Refuse Collection-Temporary Agency Staff,14-Jan-11,258.03
http://statistics.data.gov.uk/id/local-authority-district/23UB,Cheltenham Borough Council,440024,502719,COMENSURA LIMITED,C-C23100-0115,Refuse Collection-Temporary Agency Staff,14-Jan-11,319.37
http://statistics.data.gov.uk/id/local-authority-district/23UB,Cheltenham Borough Council,440024,502719,COMENSURA LIMITED,C-C23100-0115,Refuse Collection-Temporary Agency Staff,14-Jan-11,103.10
http://statistics.data.gov.uk/id/local-authority-district/23UB,Cheltenham Borough Council,440024,502719,COMENSURA LIMITED,C-C23100-0115,Refuse Collection-Temporary Agency Staff,14-Jan-11,236.54
http://statistics.data.gov.uk/id/local-authority-district/23UB,Cheltenham Borough Council,440024,502719,COMENSURA LIMITED,C-C23110-0115,Street Cleaning-Temporary Agency Staff,14-Jan-11,249.57
http://statistics.data.gov.uk/id/local-authority-district/23UB,Cheltenham Borough Council,440024,502719,COMENSURA LIMITED,C-C23110-0115,Street Cleaning-Temporary Agency Staff,14-Jan-11,283.41
http://statistics.data.gov.uk/id/local-authority-district/23UB,Cheltenham Borough Council,440024,502719,COMENSURA LIMITED,C-C23125-0115,Recyl Bring Schms-Temporary Agency Staff,14-Jan-11,430.61
http://statistics.data.gov.uk/id/local-authority-district/23UB,Cheltenham Borough Council,440024,502719,COMENSURA LIMITED,C-C23125-0115,Recyl Bring Schms-Temporary Agency Staff,14-Jan-11,206.21
http://statistics.data.gov.uk/id/local-authority-district/23UB,Cheltenham Borough Council,440024,502719,COMENSURA LIMITED,C-C23140-0115,Public Convnces-Temporary Agency Staff,14-Jan-11,289.69
http://statistics.data.gov.uk/id/local-authority-district/23UB,Cheltenham Borough Council,440024,502719,COMENSURA LIMITED,C-C23160-0115,Env Maint Div-Temporary Agency Staff,14-Jan-11,207.69
http://statistics.data.gov.uk/id/local-authority-district/23UB,Cheltenham Borough Council,440024,502719,COMENSURA LIMITED,C-C23180-0115,Rcycl Coltn Schms-Temporary Agency Staff,14-Jan-11,126.90
http://statistics.data.gov.uk/id/local-authority-district/23UB,Cheltenham Borough Council,440024,502719,COMENSURA LIMITED,C-C23180-0115,Rcycl Coltn Schms-Temporary Agency Staff,14-Jan-11,325.71
http://statistics.data.gov.uk/id/local-authority-district/23UB,Cheltenham Borough Council,440024,502719,COMENSURA LIMITED,C-C23180-0115,Rcycl Coltn Schms-Temporary Agency Staff,14-Jan-11,401.85
http://statistics.data.gov.uk/id/local-authority-district/23UB,Cheltenham Borough Council,440024,502719,COMENSURA LIMITED,C-C23180-0115,Rcycl Coltn Schms-Temporary Agency Staff,14-Jan-11,274.95
http://statistics.data.gov.uk/id/local-authority-district/23UB,Cheltenham Borough Council,440024,502719,COMENSURA LIMITED,C-C23180-0115,Rcycl Coltn Schms-Temporary Agency Staff,14-Jan-11,557.98
http://statistics.data.gov.uk/id/local-authority-district/23UB,Cheltenham Borough Council,440024,502719,COMENSURA LIMITED,C-C23180-0115,Rcycl Coltn Schms-Temporary Agency Staff,14-Jan-11,215.31
http://statistics.data.gov.uk/id/local-authority-district/23UB,Cheltenham Borough Council,440024,502719,COMENSURA LIMITED,C-C23180-0115,Rcycl Coltn Schms-Temporary Agency Staff,14-Jan-11,581.76
http://statistics.data.gov.uk/id/local-authority-district/23UB,Cheltenham Borough Council,440024,502719,COMENSURA LIMITED,C-C23180-0115,Rcycl Coltn Schms-Temporary Agency Staff,14-Jan-11,627.72
http://statistics.data.gov.uk/id/local-authority-district/23UB,Cheltenham Borough Council,440024,502719,COMENSURA LIMITED,C-C23180-0115,Rcycl Coltn Schms-Temporary Agency Staff,14-Jan-11,126.90
http://statistics.data.gov.uk/id/local-authority-district/23UB,Cheltenham Borough Council,440024,502719,COMENSURA LIMITED,C-C23190-0115,Garden Collectn-Temporary Agency Staff,14-Jan-11,97.04
http://statistics.data.gov.uk/id/local-authority-district/23UB,Cheltenham Borough Council,440024,502719,COMENSURA LIMITED,C-C23190-0115,Garden Collectn-Temporary Agency Staff,14-Jan-11,194.08
http://statistics.data.gov.uk/id/local-authority-district/23UB,Cheltenham Borough Council,440024,502719,COMENSURA LIMITED,C-D13100-0115,Muni Off Blgs-Temporary Agency Staff,14-Jan-11,84.60
http://statistics.data.gov.uk/id/local-authority-district/23UB,Cheltenham Borough Council,440024,502719,COMENSURA LIMITED,C-E63100-0115,Cemetery & Crem-Temporary Agency Staff,14-Jan-11,128.64
http://statistics.data.gov.uk/id/local-authority-district/23UB,Cheltenham Borough Council,440024,502719,COMENSURA LIMITED,C-E63100-0115,Cemetery & Crem-Temporary Agency Staff,14-Jan-11,214.40
http://statistics.data.gov.uk/id/local-authority-district/23UB,Cheltenham Borough Council,440024,502719,COMENSURA LIMITED,C-E63100-0115,Cemetery & Crem-Temporary Agency Staff,14-Jan-11,214.40
http://statistics.data.gov.uk/id/local-authority-district/23UB,Cheltenham Borough Council,440694,502861,COMENSURA LIMITED,C-C22100-0115,Green Env Div-Temporary Agency Staff,26-Jan-11,279.20
http://statistics.data.gov.uk/id/local-authority-district/23UB,Cheltenham Borough Council,440694,502861,COMENSURA LIMITED,C-C22100-0115,Green Env Div-Temporary Agency Staff,26-Jan-11,279.20
http://statistics.data.gov.uk/id/local-authority-district/23UB,Cheltenham Borough Council,440694,502861,COMENSURA LIMITED,C-C22100-0115,Green Env Div-Temporary Agency Staff,26-Jan-11,279.20
http://statistics.data.gov.uk/id/local-authority-district/23UB,Cheltenham Borough Council,440694,502861,COMENSURA LIMITED,C-C22100-0115,Green Env Div-Temporary Agency Staff,26-Jan-11,62.05
http://statistics.data.gov.uk/id/local-authority-district/23UB,Cheltenham Borough Council,440694,502861,COMENSURA LIMITED,C-C22100-0115,Green Env Div-Temporary Agency Staff,26-Jan-11,209.40
http://statistics.data.gov.uk/id/local-authority-district/23UB,Cheltenham Borough Council,440694,502861,COMENSURA LIMITED,C-C22100-0115,Green Env Div-Temporary Agency Staff,26-Jan-11,209.40
http://statistics.data.gov.uk/id/local-authority-district/23UB,Cheltenham Borough Council,440694,502861,COMENSURA LIMITED,C-C22110-0115,Parks & Gardens-Temporary Agency Staff,26-Jan-11,624.02
http://statistics.data.gov.uk/id/local-authority-district/23UB,Cheltenham Borough Council,440694,502861,COMENSURA LIMITED,C-C23100-0115,Refuse Collection-Temporary Agency Staff,26-Jan-11,313.02
http://statistics.data.gov.uk/id/local-authority-district/23UB,Cheltenham Borough Council,440694,502861,COMENSURA LIMITED,C-C23100-0115,Refuse Collection-Temporary Agency Staff,26-Jan-11,294.15
http://statistics.data.gov.uk/id/local-authority-district/23UB,Cheltenham Borough Council,440694,502861,COMENSURA LIMITED,C-C23100-0115,Refuse Collection-Temporary Agency Staff,26-Jan-11,-118.44
http://statistics.data.gov.uk/id/local-authority-district/23UB,Cheltenham Borough Council,440694,502861,COMENSURA LIMITED,C-C23100-0115,Refuse Collection-Temporary Agency Staff,26-Jan-11,164.97
http://statistics.data.gov.uk/id/local-authority-district/23UB,Cheltenham Borough Council,440694,502861,COMENSURA LIMITED,C-C23100-0115,Refuse Collection-Temporary Agency Staff,26-Jan-11,334.17
http://statistics.data.gov.uk/id/local-authority-district/23UB,Cheltenham Borough Council,440694,502861,COMENSURA LIMITED,C-C23100-0115,Refuse Collection-Temporary Agency Staff,26-Jan-11,232.66
http://statistics.data.gov.uk/id/local-authority-district/23UB,Cheltenham Borough Council,440694,502861,COMENSURA LIMITED,C-C23100-0115,Refuse Collection-Temporary Agency Staff,26-Jan-11,287.65
http://statistics.data.gov.uk/id/local-authority-district/23UB,Cheltenham Borough Council,440694,502861,COMENSURA LIMITED,C-C23100-0115,Refuse Collection-Temporary Agency Staff,26-Jan-11,291.12
http://statistics.data.gov.uk/id/local-authority-district/23UB,Cheltenham Borough Council,440694,502861,COMENSURA LIMITED,C-C23100-0115,Refuse Collection-Temporary Agency Staff,26-Jan-11,122.67
http://statistics.data.gov.uk/id/local-authority-district/23UB,Cheltenham Borough Council,440694,502861,COMENSURA LIMITED,C-C23100-0115,Refuse Collection-Temporary Agency Staff,26-Jan-11,512.49
http://statistics.data.gov.uk/id/local-authority-district/23UB,Cheltenham Borough Council,440694,502861,COMENSURA LIMITED,C-C23100-0115,Refuse Collection-Temporary Agency Staff,26-Jan-11,500.36
http://statistics.data.gov.uk/id/local-authority-district/23UB,Cheltenham Borough Council,440694,502861,COMENSURA LIMITED,C-C23100-0115,Refuse Collection-Temporary Agency Staff,26-Jan-11,234.76
http://statistics.data.gov.uk/id/local-authority-district/23UB,Cheltenham Borough Council,440694,502861,COMENSURA LIMITED,C-C23100-0115,Refuse Collection-Temporary Agency Staff,26-Jan-11,313.02
http://statistics.data.gov.uk/id/local-authority-district/23UB,Cheltenham Borough Council,440694,502861,COMENSURA LIMITED,C-C23100-0115,Refuse Collection-Temporary Agency Staff,26-Jan-11,406.35
http://statistics.data.gov.uk/id/local-authority-district/23UB,Cheltenham Borough Council,440694,502861,COMENSURA LIMITED,C-C23100-0115,Refuse Collection-Temporary Agency Staff,26-Jan-11,164.97
http://statistics.data.gov.uk/id/local-authority-district/23UB,Cheltenham Borough Council,440694,502861,COMENSURA LIMITED,C-C23100-0115,Refuse Collection-Temporary Agency Staff,26-Jan-11,70.30
http://statistics.data.gov.uk/id/local-authority-district/23UB,Cheltenham Borough Council,440694,502861,COMENSURA LIMITED,C-C23100-0115,Refuse Collection-Temporary Agency Staff,26-Jan-11,126.90
http://statistics.data.gov.uk/id/local-authority-district/23UB,Cheltenham Borough Council,440694,502861,COMENSURA LIMITED,C-C23100-0115,Refuse Collection-Temporary Agency Staff,26-Jan-11,158.62
http://statistics.data.gov.uk/id/local-authority-district/23UB,Cheltenham Borough Council,440694,502861,COMENSURA LIMITED,C-C23110-0115,Street Cleaning-Temporary Agency Staff,26-Jan-11,308.79
http://statistics.data.gov.uk/id/local-authority-district/23UB,Cheltenham Borough Council,440694,502861,COMENSURA LIMITED,C-C23110-0115,Street Cleaning-Temporary Agency Staff,26-Jan-11,325.71
http://statistics.data.gov.uk/id/local-authority-district/23UB,Cheltenham Borough Council,440694,502861,COMENSURA LIMITED,C-C23140-0115,Public Convnces-Temporary Agency Staff,26-Jan-11,501.19
http://statistics.data.gov.uk/id/local-authority-district/23UB,Cheltenham Borough Council,440694,502861,COMENSURA LIMITED,C-C23140-0115,Public Convnces-Temporary Agency Staff,26-Jan-11,54.99
http://statistics.data.gov.uk/id/local-authority-district/23UB,Cheltenham Borough Council,440694,502861,COMENSURA LIMITED,C-C23180-0115,Rcycl Coltn Schms-Temporary Agency Staff,26-Jan-11,332.06
http://statistics.data.gov.uk/id/local-authority-district/23UB,Cheltenham Borough Council,440694,502861,COMENSURA LIMITED,C-C23180-0115,Rcycl Coltn Schms-Temporary Agency Staff,26-Jan-11,57.89
http://statistics.data.gov.uk/id/local-authority-district/23UB,Cheltenham Borough Council,440694,502861,COMENSURA LIMITED,C-C23180-0115,Rcycl Coltn Schms-Temporary Agency Staff,26-Jan-11,274.95
http://statistics.data.gov.uk/id/local-authority-district/23UB,Cheltenham Borough Council,440694,502861,COMENSURA LIMITED,C-C23180-0115,Rcycl Coltn Schms-Temporary Agency Staff,26-Jan-11,342.63
http://statistics.data.gov.uk/id/local-authority-district/23UB,Cheltenham Borough Council,440694,502861,COMENSURA LIMITED,C-C23180-0115,Rcycl Coltn Schms-Temporary Agency Staff,26-Jan-11,194.08
http://statistics.data.gov.uk/id/local-authority-district/23UB,Cheltenham Borough Council,440694,502861,COMENSURA LIMITED,C-C23180-0115,Rcycl Coltn Schms-Temporary Agency Staff,26-Jan-11,118.44
http://statistics.data.gov.uk/id/local-authority-district/23UB,Cheltenham Borough Council,440694,502861,COMENSURA LIMITED,C-C23180-0115,Rcycl Coltn Schms-Temporary Agency Staff,26-Jan-11,59.22
http://statistics.data.gov.uk/id/local-authority-district/23UB,Cheltenham Borough Council,440694,502861,COMENSURA LIMITED,C-C23180-0115,Rcycl Coltn Schms-Temporary Agency Staff,26-Jan-11,-59.22
http://statistics.data.gov.uk/id/local-authority-district/23UB,Cheltenham Borough Council,440694,502861,COMENSURA LIMITED,C-C23180-0115,Rcycl Coltn Schms-Temporary Agency Staff,26-Jan-11,177.66
http://statistics.data.gov.uk/id/local-authority-district/23UB,Cheltenham Borough Council,440694,502861,COMENSURA LIMITED,C-C23180-0115,Rcycl Coltn Schms-Temporary Agency Staff,26-Jan-11,194.08
http://statistics.data.gov.uk/id/local-authority-district/23UB,Cheltenham Borough Council,440694,502861,COMENSURA LIMITED,C-C23180-0115,Rcycl Coltn Schms-Temporary Agency Staff,26-Jan-11,224.19
http://statistics.data.gov.uk/id/local-authority-district/23UB,Cheltenham Borough Council,440694,502861,COMENSURA LIMITED,C-C23180-0115,Rcycl Coltn Schms-Temporary Agency Staff,26-Jan-11,533.71
http://statistics.data.gov.uk/id/local-authority-district/23UB,Cheltenham Borough Council,440694,502861,COMENSURA LIMITED,C-C23180-0115,Rcycl Coltn Schms-Temporary Agency Staff,26-Jan-11,190.35
http://statistics.data.gov.uk/id/local-authority-district/23UB,Cheltenham Borough Council,440694,502861,COMENSURA LIMITED,C-C23180-0115,Rcycl Coltn Schms-Temporary Agency Staff,26-Jan-11,399.96
http://statistics.data.gov.uk/id/local-authority-district/23UB,Cheltenham Borough Council,440694,502861,COMENSURA LIMITED,C-C23180-0115,Rcycl Coltn Schms-Temporary Agency Staff,26-Jan-11,557.98
http://statistics.data.gov.uk/id/local-authority-district/23UB,Cheltenham Borough Council,440694,502861,COMENSURA LIMITED,C-C23180-0115,Rcycl Coltn Schms-Temporary Agency Staff,26-Jan-11,27.29
http://statistics.data.gov.uk/id/local-authority-district/23UB,Cheltenham Borough Council,440694,502861,COMENSURA LIMITED,C-C23190-0115,Garden Collectn-Temporary Agency Staff,26-Jan-11,344.74
http://statistics.data.gov.uk/id/local-authority-district/23UB,Cheltenham Borough Council,440694,502861,COMENSURA LIMITED,C-C23190-0115,Garden Collectn-Temporary Agency Staff,26-Jan-11,96.96
http://statistics.data.gov.uk/id/local-authority-district/23UB,Cheltenham Borough Council,440694,502861,COMENSURA LIMITED,C-C23190-0115,Garden Collectn-Temporary Agency Staff,26-Jan-11,296.10
http://statistics.data.gov.uk/id/local-authority-district/23UB,Cheltenham Borough Council,440694,502861,COMENSURA LIMITED,C-D13100-0115,Muni Off Blgs-Temporary Agency Staff,26-Jan-11,84.60
http://statistics.data.gov.uk/id/local-authority-district/23UB,Cheltenham Borough Council,441276,503039,COMENSURA LIMITED,C-C22100-0115,Green Env Div-Temporary Agency Staff,28-Jan-11,279.20
http://statistics.data.gov.uk/id/local-authority-district/23UB,Cheltenham Borough Council,441276,503039,COMENSURA LIMITED,C-C22100-0115,Green Env Div-Temporary Agency Staff,28-Jan-11,279.20
http://statistics.data.gov.uk/id/local-authority-district/23UB,Cheltenham Borough Council,441276,503039,COMENSURA LIMITED,C-C22100-0115,Green Env Div-Temporary Agency Staff,28-Jan-11,268.62
http://statistics.data.gov.uk/id/local-authority-district/23UB,Cheltenham Borough Council,441276,503039,COMENSURA LIMITED,C-C22110-0115,Parks & Gardens-Temporary Agency Staff,28-Jan-11,608.80
http://statistics.data.gov.uk/id/local-authority-district/23UB,Cheltenham Borough Council,441276,503039,COMENSURA LIMITED,C-C23100-0115,Refuse Collection-Temporary Agency Staff,28-Jan-11,126.90
http://statistics.data.gov.uk/id/local-authority-district/23UB,Cheltenham Borough Council,441276,503039,COMENSURA LIMITED,C-C23100-0115,Refuse Collection-Temporary Agency Staff,28-Jan-11,186.12
http://statistics.data.gov.uk/id/local-authority-district/23UB,Cheltenham Borough Council,441276,503039,COMENSURA LIMITED,C-C23100-0115,Refuse Collection-Temporary Agency Staff,28-Jan-11,234.77
http://statistics.data.gov.uk/id/local-authority-district/23UB,Cheltenham Borough Council,441276,503039,COMENSURA LIMITED,C-C23100-0115,Refuse Collection-Temporary Agency Staff,28-Jan-11,283.41
http://statistics.data.gov.uk/id/local-authority-district/23UB,Cheltenham Borough Council,441276,503039,COMENSURA LIMITED,C-C23100-0115,Refuse Collection-Temporary Agency Staff,28-Jan-11,241.11
http://statistics.data.gov.uk/id/local-authority-district/23UB,Cheltenham Borough Council,441276,503039,COMENSURA LIMITED,C-C23100-0115,Refuse Collection-Temporary Agency Staff,28-Jan-11,97.04
http://statistics.data.gov.uk/id/local-authority-district/23UB,Cheltenham Borough Council,441276,503039,COMENSURA LIMITED,C-C23100-0115,Refuse Collection-Temporary Agency Staff,28-Jan-11,224.19
http://statistics.data.gov.uk/id/local-authority-district/23UB,Cheltenham Borough Council,441276,503039,COMENSURA LIMITED,C-C23100-0115,Refuse Collection-Temporary Agency Staff,28-Jan-11,524.63
http://statistics.data.gov.uk/id/local-authority-district/23UB,Cheltenham Borough Council,441276,503039,COMENSURA LIMITED,C-C23100-0115,Refuse Collection-Temporary Agency Staff,28-Jan-11,488.23
http://statistics.data.gov.uk/id/local-authority-district/23UB,Cheltenham Borough Council,441276,503039,COMENSURA LIMITED,C-C23100-0115,Refuse Collection-Temporary Agency Staff,28-Jan-11,308.80
http://statistics.data.gov.uk/id/local-authority-district/23UB,Cheltenham Borough Council,441276,503039,COMENSURA LIMITED,C-C23100-0115,Refuse Collection-Temporary Agency Staff,28-Jan-11,63.45
http://statistics.data.gov.uk/id/local-authority-district/23UB,Cheltenham Borough Council,441276,503039,COMENSURA LIMITED,C-C23100-0115,Refuse Collection-Temporary Agency Staff,28-Jan-11,167.08
http://statistics.data.gov.uk/id/local-authority-district/23UB,Cheltenham Borough Council,441276,503039,COMENSURA LIMITED,C-C23110-0115,Street Cleaning-Temporary Agency Staff,28-Jan-11,313.02
http://statistics.data.gov.uk/id/local-authority-district/23UB,Cheltenham Borough Council,441276,503039,COMENSURA LIMITED,C-C23110-0115,Street Cleaning-Temporary Agency Staff,28-Jan-11,346.86
http://statistics.data.gov.uk/id/local-authority-district/23UB,Cheltenham Borough Council,441276,503039,COMENSURA LIMITED,C-C23110-0115,Street Cleaning-Temporary Agency Staff,28-Jan-11,232.65
http://statistics.data.gov.uk/id/local-authority-district/23UB,Cheltenham Borough Council,441276,503039,COMENSURA LIMITED,C-C23125-0115,Recyl Bring Schms-Temporary Agency Staff,28-Jan-11,97.04
http://statistics.data.gov.uk/id/local-authority-district/23UB,Cheltenham Borough Council,441276,503039,COMENSURA LIMITED,C-C23140-0115,Public Convnces-Temporary Agency Staff,28-Jan-11,359.55
http://statistics.data.gov.uk/id/local-authority-district/23UB,Cheltenham Borough Council,441276,503039,COMENSURA LIMITED,C-C23160-0115,Env Maint Div-Temporary Agency Staff,28-Jan-11,276.92
http://statistics.data.gov.uk/id/local-authority-district/23UB,Cheltenham Borough Council,441276,503039,COMENSURA LIMITED,C-C23160-0115,Env Maint Div-Temporary Agency Staff,28-Jan-11,346.15
http://statistics.data.gov.uk/id/local-authority-district/23UB,Cheltenham Borough Council,441276,503039,COMENSURA LIMITED,C-C23160-0115,Env Maint Div-Temporary Agency Staff,28-Jan-11,276.92
http://statistics.data.gov.uk/id/local-authority-district/23UB,Cheltenham Borough Council,441276,503039,COMENSURA LIMITED,C-C23180-0115,Rcycl Coltn Schms-Temporary Agency Staff,28-Jan-11,194.58
http://statistics.data.gov.uk/id/local-authority-district/23UB,Cheltenham Borough Council,441276,503039,COMENSURA LIMITED,C-C23180-0115,Rcycl Coltn Schms-Temporary Agency Staff,28-Jan-11,247.46
http://statistics.data.gov.uk/id/local-authority-district/23UB,Cheltenham Borough Council,441276,503039,COMENSURA LIMITED,C-C23180-0115,Rcycl Coltn Schms-Temporary Agency Staff,28-Jan-11,169.20
http://statistics.data.gov.uk/id/local-authority-district/23UB,Cheltenham Borough Council,441276,503039,COMENSURA LIMITED,C-C23180-0115,Rcycl Coltn Schms-Temporary Agency Staff,28-Jan-11,219.96
http://statistics.data.gov.uk/id/local-authority-district/23UB,Cheltenham Borough Council,441276,503039,COMENSURA LIMITED,C-C23180-0115,Rcycl Coltn Schms-Temporary Agency Staff,28-Jan-11,207.27
http://statistics.data.gov.uk/id/local-authority-district/23UB,Cheltenham Borough Council,441276,503039,COMENSURA LIMITED,C-C23180-0115,Rcycl Coltn Schms-Temporary Agency Staff,28-Jan-11,57.10
http://statistics.data.gov.uk/id/local-authority-district/23UB,Cheltenham Borough Council,441276,503039,COMENSURA LIMITED,C-C23180-0115,Rcycl Coltn Schms-Temporary Agency Staff,28-Jan-11,310.90
http://statistics.data.gov.uk/id/local-authority-district/23UB,Cheltenham Borough Council,441276,503039,COMENSURA LIMITED,C-C23180-0115,Rcycl Coltn Schms-Temporary Agency Staff,28-Jan-11,95.18
http://statistics.data.gov.uk/id/local-authority-district/23UB,Cheltenham Borough Council,441276,503039,COMENSURA LIMITED,C-C23180-0115,Rcycl Coltn Schms-Temporary Agency Staff,28-Jan-11,46.53
http://statistics.data.gov.uk/id/local-authority-district/23UB,Cheltenham Borough Council,441276,503039,COMENSURA LIMITED,C-C23180-0115,Rcycl Coltn Schms-Temporary Agency Staff,28-Jan-11,223.30
http://statistics.data.gov.uk/id/local-authority-district/23UB,Cheltenham Borough Council,441276,503039,COMENSURA LIMITED,C-C23180-0115,Rcycl Coltn Schms-Temporary Agency Staff,28-Jan-11,249.57
http://statistics.data.gov.uk/id/local-authority-district/23UB,Cheltenham Borough Council,441276,503039,COMENSURA LIMITED,C-C23180-0115,Rcycl Coltn Schms-Temporary Agency Staff,28-Jan-11,266.48
http://statistics.data.gov.uk/id/local-authority-district/23UB,Cheltenham Borough Council,441276,503039,COMENSURA LIMITED,C-C23180-0115,Rcycl Coltn Schms-Temporary Agency Staff,28-Jan-11,379.06
http://statistics.data.gov.uk/id/local-authority-district/23UB,Cheltenham Borough Council,441276,503039,COMENSURA LIMITED,C-C23180-0115,Rcycl Coltn Schms-Temporary Agency Staff,28-Jan-11,484.80
http://statistics.data.gov.uk/id/local-authority-district/23UB,Cheltenham Borough Council,441276,503039,COMENSURA LIMITED,C-C23190-0115,Garden Collectn-Temporary Agency Staff,28-Jan-11,497.32
http://statistics.data.gov.uk/id/local-authority-district/23UB,Cheltenham Borough Council,441276,503039,COMENSURA LIMITED,C-C23190-0115,Garden Collectn-Temporary Agency Staff,28-Jan-11,230.54
http://statistics.data.gov.uk/id/local-authority-district/23UB,Cheltenham Borough Council,441276,503039,COMENSURA LIMITED,C-C23190-0115,Garden Collectn-Temporary Agency Staff,28-Jan-11,442.75
http://statistics.data.gov.uk/id/local-authority-district/23UB,Cheltenham Borough Council,441276,503039,COMENSURA LIMITED,C-D13100-0115,Muni Off Blgs-Temporary Agency Staff,28-Jan-11,105.75
http://statistics.data.gov.uk/id/local-authority-district/23UB,Cheltenham Borough Council,441276,503039,COMENSURA LIMITED,C-E36200-0115,On-St Car Prkng-Temporary Agency Staff,28-Jan-11,92.78
http://statistics.data.gov.uk/id/local-authority-district/23UB,Cheltenham Borough Council,441276,503039,COMENSURA LIMITED,C-E36200-0115,On-St Car Prkng-Temporary Agency Staff,28-Jan-11,395.84
http://statistics.data.gov.uk/id/local-authority-district/23UB,Cheltenham Borough Council,441276,503039,COMENSURA LIMITED,C-E36200-0115,On-St Car Prkng-Temporary Agency Staff,28-Jan-11,485.53
http://statistics.data.gov.uk/id/local-authority-district/23UB,Cheltenham Borough Council,441276,503039,COMENSURA LIMITED,C-E63100-0115,Cemetery & Crem-Temporary Agency Staff,28-Jan-11,253.80
http://statistics.data.gov.uk/id/local-authority-district/23UB,Cheltenham Borough Council,441276,503039,COMENSURA LIMITED,C-E63100-0115,Cemetery & Crem-Temporary Agency Staff,28-Jan-11,225.12
http://statistics.data.gov.uk/id/local-authority-district/23UB,Cheltenham Borough Council,440389,2326,COMBUSTION SOLUTIONS,C-PM0081-R201,Crematorium-Cremator Repairs,19-Jan-11,"1,760.00"
http://statistics.data.gov.uk/id/local-authority-district/23UB,Cheltenham Borough Council,440389,2326,COMBUSTION SOLUTIONS,C-PM0081-R201,Crematorium-Cremator Repairs,19-Jan-11,18.00
http://statistics.data.gov.uk/id/local-authority-district/23UB,Cheltenham Borough Council,440389,2326,COMBUSTION SOLUTIONS,C-PM0081-R201,Crematorium-Cremator Repairs,19-Jan-11,7.00
http://statistics.data.gov.uk/id/local-authority-district/23UB,Cheltenham Borough Council,439467,013615,CORY ENVIRONMENTAL LTD,C-C23100-3581,Refuse Collctn-Tipping charges,05-Jan-11,"4,914.02"
http://statistics.data.gov.uk/id/local-authority-district/23UB,Cheltenham Borough Council,439526,013670,CORY ENVIRONMENTAL LTD,C-C23100-3581,Refuse Collctn-Tipping charges,07-Jan-11,"4,307.59"
http://statistics.data.gov.uk/id/local-authority-district/23UB,Cheltenham Borough Council,440431,013724,CORY ENVIRONMENTAL LTD,C-C23100-3581,Refuse Collctn-Tipping charges,19-Jan-11,"5,343.14"
http://statistics.data.gov.uk/id/local-authority-district/23UB,Cheltenham Borough Council,441299,013774,CORY ENVIRONMENTAL LTD,C-C23100-3581,Refuse Collctn-Tipping charges,28-Jan-11,"2,562.80"
http://statistics.data.gov.uk/id/local-authority-district/23UB,Cheltenham Borough Council,441305,013814,CORY ENVIRONMENTAL LTD,C-C23100-3581,Refuse Collctn-Tipping charges,28-Jan-11,"4,869.32"
http://statistics.data.gov.uk/id/local-authority-district/23UB,Cheltenham Borough Council,440018,2616,CORNERSTONE LEARNING LTD,C-D12310-0205,Corporate Trg-Training fees/exp (Corp),14-Jan-11,"2,100.00"
http://statistics.data.gov.uk/id/local-authority-district/23UB,Cheltenham Borough Council,440381,0513,CORE BUSINESS SYSTEMS,C-L11500-3623,Rec Facilities-Cmpter-sftwre lic purch,19-Jan-11,"1,995.00"
http://statistics.data.gov.uk/id/local-authority-district/23UB,Cheltenham Borough Council,440381,0513,CORE BUSINESS SYSTEMS,C-L11500-3623,Rec Facilities-Cmpter-sftwre lic purch,19-Jan-11,995.00
http://statistics.data.gov.uk/id/local-authority-district/23UB,Cheltenham Borough Council,439326,INSPECTION CHA,COTSWOLD DISTRICT  COUNCIL,C-B52300-8404,Bldg Control-B.C. fees-Full plans,05-Jan-11,"1,027.66"
http://statistics.data.gov.uk/id/local-authority-district/23UB,Cheltenham Borough Council,439689,P112,COTSWOLD ESTATES & GARDENS,C-LC6015-C405,LeckhamptonHill-Specialist Contractor,07-Jan-11,"41,341.98"
http://statistics.data.gov.uk/id/local-authority-district/23UB,Cheltenham Borough Council,441096,P0113,COTSWOLD ESTATES & GARDENS,C-LC6015-C405,LeckhamptonHill-Specialist Contractor,26-Jan-11,"32,465.31"
http://statistics.data.gov.uk/id/local-authority-district/23UB,Cheltenham Borough Council,439268,21486,3 COUNTIES DRAIN SERVICE,C-H46250-1104,Drain Clearing-Council House repairs,05-Jan-11,"3,410.00"
http://statistics.data.gov.uk/id/local-authority-district/23UB,Cheltenham Borough Council,440692,851,COUNTY COMMUNITY PROJECTS,C-H22300-3877,Housing Grants-Grants - One-Stop-Shop,26-Jan-11,"4,782.53"
http://statistics.data.gov.uk/id/local-authority-district/23UB,Cheltenham Borough Council,440691,852,COUNTY COMMUNITY PROJECTS,C-H22600-3501,Community Servs-Hire of outside services,26-Jan-11,"1,626.89"
http://statistics.data.gov.uk/id/local-authority-district/23UB,Cheltenham Borough Council,441099,774175,CRIMINAL RECORDS BUREAU,C-A21500-3501,Licensing-Hire of outside services,28-Jan-11,792.00
http://statistics.data.gov.uk/id/local-authority-district/23UB,Cheltenham Borough Council,441099,774175,CRIMINAL RECORDS BUREAU,C-L11500-3501,Rec Facilities-Hire of outside services,28-Jan-11,36.00
http://statistics.data.gov.uk/id/local-authority-district/23UB,Cheltenham Borough Council,439285,REDACTED,DAVISONS SOLICITORS,C-H22400-3245,Homelessness-Mortgage Rescue Scheme,04-Jan-11,"3,000.00"
http://statistics.data.gov.uk/id/local-authority-district/23UB,Cheltenham Borough Council,439747,7401802266,DELL COMPUTER CORPORATION LTD,C-GOERP-3661,GO ERP System-hardware perpherals,12-Jan-11,"2,094.84"
http://statistics.data.gov.uk/id/local-authority-district/23UB,Cheltenham Borough Council,439747,7401802266,DELL COMPUTER CORPORATION LTD,C-GOERP-3661,GO ERP System-hardware perpherals,12-Jan-11,286.00
http://statistics.data.gov.uk/id/local-authority-district/23UB,Cheltenham Borough Council,440864,7401790517,DELL COMPUTER CORPORATION LTD,C-EC0006-C101,CCTV/TC inits-Project Est for this Year,26-Jan-11,"1,107.00"
http://statistics.data.gov.uk/id/local-authority-district/23UB,Cheltenham Borough Council,440883,7401789384,DELL COMPUTER CORPORATION LTD,C-EC0006-C101,CCTV/TC inits-Project Est for this Year,26-Jan-11,405.96
http://statistics.data.gov.uk/id/local-authority-district/23UB,Cheltenham Borough Council,440867,7401789383,DELL COMPUTER CORPORATION LTD,C-EC0006-C101,CCTV/TC inits-Project Est for this Year,26-Jan-11,135.32
http://statistics.data.gov.uk/id/local-authority-district/23UB,Cheltenham Borough Council,441194,7401804302,DELL COMPUTER CORPORATION LTD,C-D11820-3660,IT Infrastructu-Hardware PC & Servers,28-Jan-11,577.44
http://statistics.data.gov.uk/id/local-authority-district/23UB,Cheltenham Borough Council,441194,7401804302,DELL COMPUTER CORPORATION LTD,C-D11820-3660,IT Infrastructu-Hardware PC & Servers,28-Jan-11,87.07
http://statistics.data.gov.uk/id/local-authority-district/23UB,Cheltenham Borough Council,441194,7401804302,DELL COMPUTER CORPORATION LTD,C-D11820-3660,IT Infrastructu-Hardware PC & Servers,28-Jan-11,53.32
http://statistics.data.gov.uk/id/local-authority-district/23UB,Cheltenham Borough Council,439608,38609,DELAWARE COMMUNICATIONS PLC,C-E61500-3103,CCTV/TC Safety-Equipment repairs & maint,07-Jan-11,"1,419.17"
http://statistics.data.gov.uk/id/local-authority-district/23UB,Cheltenham Borough Council,439610,38596,DELAWARE COMMUNICATIONS PLC,C-E61500-3103,CCTV/TC Safety-Equipment repairs & maint,07-Jan-11,"1,419.17"
http://statistics.data.gov.uk/id/local-authority-district/23UB,Cheltenham Borough Council,441170,DE10530364,DENNIS EAGLE,C-C24100-3582,Fleet Maint-DSO Invoices,28-Jan-11,"1,111.06"
http://statistics.data.gov.uk/id/local-authority-district/23UB,Cheltenham Borough Council,441172,DE10530699,DENNIS EAGLE,C-C24100-3582,Fleet Maint-DSO Invoices,28-Jan-11,153.13
http://statistics.data.gov.uk/id/local-authority-district/23UB,Cheltenham Borough Council,441173,DE10530698,DENNIS EAGLE,C-C24100-3582,Fleet Maint-DSO Invoices,28-Jan-11,5.76
http://statistics.data.gov.uk/id/local-authority-district/23UB,Cheltenham Borough Council,441171,DE10530365,DENNIS EAGLE,C-C24100-3582,Fleet Maint-DSO Invoices,28-Jan-11,7.88
http://statistics.data.gov.uk/id/local-authority-district/23UB,Cheltenham Borough Council,439646,191079,DOMESTIC AND GENERAL INSULATION LTD,C-HC4076-C302,Loft/Cavity Ins-Building Contractor,07-Jan-11,199.00
http://statistics.data.gov.uk/id/local-authority-district/23UB,Cheltenham Borough Council,439649,189499,DOMESTIC AND GENERAL INSULATION LTD,C-HC4076-C302,Loft/Cavity Ins-Building Contractor,07-Jan-11,403.81
http://statistics.data.gov.uk/id/local-authority-district/23UB,Cheltenham Borough Council,439647,187188,DOMESTIC AND GENERAL INSULATION LTD,C-HC4076-C302,Loft/Cavity Ins-Building Contractor,07-Jan-11,134.00
http://statistics.data.gov.uk/id/local-authority-district/23UB,Cheltenham Borough Council,439648,189500,DOMESTIC AND GENERAL INSULATION LTD,C-HC4076-C302,Loft/Cavity Ins-Building Contractor,07-Jan-11,245.00
http://statistics.data.gov.uk/id/local-authority-district/23UB,Cheltenham Borough Council,439851,0QQ258,THE DWP AT COMPENSATION RECOVERY UNIT,C-E21100-3934,Car Prks-Off St-TP Gen Legal Fees,12-Jan-11,"3,643.31"
http://statistics.data.gov.uk/id/local-authority-district/23UB,Cheltenham Borough Council,439790,7782,EMMDEE BUILDING SERVICES,C-C23140-1801,Public Convnces-RM-Electrical repairs,12-Jan-11,259.89
http://statistics.data.gov.uk/id/local-authority-district/23UB,Cheltenham Borough Council,439791,7757,EMMDEE BUILDING SERVICES,C-C23140-1801,Public Convnces-RM-Electrical repairs,12-Jan-11,22.50
http://statistics.data.gov.uk/id/local-authority-district/23UB,Cheltenham Borough Council,439785,7729,EMMDEE BUILDING SERVICES,C-D13100-1801,Muni Off Blgs-RM-Electrical repairs,12-Jan-11,45.00
http://statistics.data.gov.uk/id/local-authority-district/23UB,Cheltenham Borough Council,439788,7750,EMMDEE BUILDING SERVICES,C-D13100-1801,Muni Off Blgs-RM-Electrical repairs,12-Jan-11,36.90
http://statistics.data.gov.uk/id/local-authority-district/23UB,Cheltenham Borough Council,439787,7731,EMMDEE BUILDING SERVICES,C-L11500-1801,Rec Facilities-RM-Electrical repairs,12-Jan-11,67.50
http://statistics.data.gov.uk/id/local-authority-district/23UB,Cheltenham Borough Council,439786,7730,EMMDEE BUILDING SERVICES,C-L21200-1801,Pump Room-RM-Electrical repairs,12-Jan-11,56.25
http://statistics.data.gov.uk/id/local-authority-district/23UB,Cheltenham Borough Council,439789,7781,EMMDEE BUILDING SERVICES,C-L41100-1801,AG & M-RM-Electrical repairs,12-Jan-11,144.66
http://statistics.data.gov.uk/id/local-authority-district/23UB,Cheltenham Borough Council,440302,301267/12/2010,ENER-G,C-L11500-1402,Rec Facilities-Electricity,19-Jan-11,"3,462.15"
http://statistics.data.gov.uk/id/local-authority-district/23UB,Cheltenham Borough Council,440266,59682,ENVIROVENT LIMITED,C-H4209G-1104,Gen Wks 2209-Council House repairs,19-Jan-11,692.86
http://statistics.data.gov.uk/id/local-authority-district/23UB,Cheltenham Borough Council,440267,59501,ENVIROVENT LIMITED,C-H4209G-1104,Gen Wks 2209-Council House repairs,19-Jan-11,506.42
http://statistics.data.gov.uk/id/local-authority-district/23UB,Cheltenham Borough Council,440660,3424,ESI LIMITED,C-E61600-3174,Contaminatd Lnd-Exp-Church Piece Plyg Fl,21-Jan-11,"1,026.25"
http://statistics.data.gov.uk/id/local-authority-district/23UB,Cheltenham Borough Council,440628,3421,ESI LIMITED,C-E61600-3239,Contaminatd Lnd-Alstone Lane Grant expen,21-Jan-11,"1,102.50"
http://statistics.data.gov.uk/id/local-authority-district/23UB,Cheltenham Borough Council,441109,3938,EVENT-STAFF,C-0T18J1-3151,Artist specialist equipment,28-Jan-11,212.00
http://statistics.data.gov.uk/id/local-authority-district/23UB,Cheltenham Borough Council,441110,3940,EVENT-STAFF,C-0T31J1-3151,New Years Eve-Specialist Equipment,28-Jan-11,"1,062.40"
http://statistics.data.gov.uk/id/local-authority-district/23UB,Cheltenham Borough Council,441109,3938,EVENT-STAFF,C-0T90H0-3559,Hirers-Recoverable Event Exp,28-Jan-11,36.00
http://statistics.data.gov.uk/id/local-authority-district/23UB,Cheltenham Borough Council,440390,010111,FEDERATION OF BRITISH CREMATION AUTHORIT,C-E63100-3890,Cemetery & Crem-Subscriptions - general,19-Jan-11,661.00
http://statistics.data.gov.uk/id/local-authority-district/23UB,Cheltenham Borough Council,440390,010111,FEDERATION OF BRITISH CREMATION AUTHORIT,C-E63100-3890,Cemetery & Crem-Subscriptions - general,19-Jan-11,54.00
http://statistics.data.gov.uk/id/local-authority-district/23UB,Cheltenham Borough Council,439853,AMW/LWH/18472,REDACTED,C-E21100-3934,Car Prks-Off St-TP Gen-Imprest/Excess,12-Jan-11,"15,352.28"
http://statistics.data.gov.uk/id/local-authority-district/23UB,Cheltenham Borough Council,440438,REDACTED,R A FLATT,C-H22400-3828,Homelessness-Prevention Fund,19-Jan-11,650.00
http://statistics.data.gov.uk/id/local-authority-district/23UB,Cheltenham Borough Council,439519,SI116844,FLEET LINE MARKERS LTD,C-C22120-3121,Spts/Open Space-Materials-Contract,07-Jan-11,877.50
http://statistics.data.gov.uk/id/local-authority-district/23UB,Cheltenham Borough Council,440901,FAF111,JO FREYA,C-0T70L0-3568,Folk Festival-Artist Fees,26-Jan-11,600.00
http://statistics.data.gov.uk/id/local-authority-district/23UB,Cheltenham Borough Council,439314,REDACTED,V FRY AND SONS,C-HC7400-C801,H&S Grant-Grants,05-Jan-11,"11,881.34"
http://statistics.data.gov.uk/id/local-authority-district/23UB,Cheltenham Borough Council,439831,REDACTED,V FRY AND SONS,C-HC7400-C801,H&S Grant-Grants,12-Jan-11,"16,485.25"
http://statistics.data.gov.uk/id/local-authority-district/23UB,Cheltenham Borough Council,439629,5170,FUTRA LTD,C-C24150-3170,Fleet Managemnt-Fuel system maintenance,07-Jan-11,904.00
http://statistics.data.gov.uk/id/local-authority-district/23UB,Cheltenham Borough Council,440412,5171,FUTRA LTD,C-C24150-3170,Fleet Managemnt-Fuel system maintenance,19-Jan-11,904.00
http://statistics.data.gov.uk/id/local-authority-district/23UB,Cheltenham Borough Council,440680,RP 101403,GIFFORD,C-D21250-3972,Civil Emergency-EU Restoration Fund,21-Jan-11,500.00
http://statistics.data.gov.uk/id/local-authority-district/23UB,Cheltenham Borough Council,440681,RP 101405,GIFFORD,C-D21250-3972,Civil Emergency-EU Restoration Fund,21-Jan-11,500.00
http://statistics.data.gov.uk/id/local-authority-district/23UB,Cheltenham Borough Council,440682,RP 101404,GIFFORD,C-D21250-3972,Civil Emergency-EU Restoration Fund,21-Jan-11,500.00
http://statistics.data.gov.uk/id/local-authority-district/23UB,Cheltenham Borough Council,440682,RP 101404,GIFFORD,C-D21250-3972,Civil Emergency-EU Restoration Fund,21-Jan-11,500.00
http://statistics.data.gov.uk/id/local-authority-district/23UB,Cheltenham Borough Council,440680,RP 101403,GIFFORD,C-D21250-3974,Civil Emergency-Multi-agency funding,21-Jan-11,500.00
http://statistics.data.gov.uk/id/local-authority-district/23UB,Cheltenham Borough Council,440681,RP 101405,GIFFORD,C-D21250-3974,Civil Emergency-Multi-agency funding,21-Jan-11,500.00
http://statistics.data.gov.uk/id/local-authority-district/23UB,Cheltenham Borough Council,440150,CSD1667887,GILLMANS SERVICE,C-HC4068-C302,Sheltered Hsg-Building Contractor,14-Jan-11,976.00
http://statistics.data.gov.uk/id/local-authority-district/23UB,Cheltenham Borough Council,439688,180016678,GLOUCESTERSHIRE COUNTY COUNCIL,C-E36200-4528,On-St Car Prkng-Net income paid to GCC,07-Jan-11,"87,474.10"
http://statistics.data.gov.uk/id/local-authority-district/23UB,Cheltenham Borough Council,439517,1800160651,GLOUCESTERSHIRE COUNTY COUNCIL,C-L41100-3920,AG & M-Advertising,07-Jan-11,300.00
http://statistics.data.gov.uk/id/local-authority-district/23UB,Cheltenham Borough Council,439857,1800166438 GCC S,GLOUCESTERSHIRE COUNTY COUNCIL,C-D34400-3801,Bus & Econ Dev-Grants,12-Jan-11,"15,000.00"
http://statistics.data.gov.uk/id/local-authority-district/23UB,Cheltenham Borough Council,441028,1800138079,GLOUCESTERSHIRE COUNTY COUNCIL,C-E36200-3501,On-St Car Prkng-Hire of outside services,26-Jan-11,"3,251.51"
http://statistics.data.gov.uk/id/local-authority-district/23UB,Cheltenham Borough Council,441271,DEBT RECOVERY,GLOUCESTER CITY COUNCIL,C-H23100-5101,Rent Allowances-Benefits Paid,28-Jan-11,537.67
http://statistics.data.gov.uk/id/local-authority-district/23UB,Cheltenham Borough Council,440364,SETTLEMENT,W GODDARD,C-N13125-9205,ASH Ledger-Town Hall Invoices Paid,19-Jan-11,"-3,039.21"
http://statistics.data.gov.uk/id/local-authority-district/23UB,Cheltenham Borough Council,440364,SETTLEMENT,W GODDARD,C-Z12210-9138,Box Off A/C-TH Hirers Tkt Pd out,19-Jan-11,"11,246.59"
http://statistics.data.gov.uk/id/local-authority-district/23UB,Cheltenham Borough Council,440364,SETTLEMENT,W GODDARD,C-Z12210-9138,Box Off A/C-TH Hirers Tkt Pd out,19-Jan-11,"-5,000.00"
http://statistics.data.gov.uk/id/local-authority-district/23UB,Cheltenham Borough Council,439487,44307,GOOCH GROUP LTD,C-E21100-1701,Car Prks-Off St-Cleaning,05-Jan-11,70.00
http://statistics.data.gov.uk/id/local-authority-district/23UB,Cheltenham Borough Council,439487,44307,GOOCH GROUP LTD,C-E21100-1701,Car Prks-Off St-Cleaning,05-Jan-11,75.00
http://statistics.data.gov.uk/id/local-authority-district/23UB,Cheltenham Borough Council,439487,44307,GOOCH GROUP LTD,C-E21100-1701,Car Prks-Off St-Cleaning,05-Jan-11,10.86
http://statistics.data.gov.uk/id/local-authority-district/23UB,Cheltenham Borough Council,438871,44402,GOOCH GROUP LTD,C-E21100-1701,Car Prks-Off St-Cleaning,05-Jan-11,90.00
http://statistics.data.gov.uk/id/local-authority-district/23UB,Cheltenham Borough Council,438871,44402,GOOCH GROUP LTD,C-E21100-1701,Car Prks-Off St-Cleaning,05-Jan-11,75.00
http://statistics.data.gov.uk/id/local-authority-district/23UB,Cheltenham Borough Council,438871,44402,GOOCH GROUP LTD,C-E21100-1701,Car Prks-Off St-Cleaning,05-Jan-11,9.28
http://statistics.data.gov.uk/id/local-authority-district/23UB,Cheltenham Borough Council,438871,44402,GOOCH GROUP LTD,C-E21100-1701,Car Prks-Off St-Cleaning,05-Jan-11,70.00
http://statistics.data.gov.uk/id/local-authority-district/23UB,Cheltenham Borough Council,439222,44672,GOOCH GROUP LTD,C-N42250-3112,DSO Stores - Stock purchases,05-Jan-11,161.76
http://statistics.data.gov.uk/id/local-authority-district/23UB,Cheltenham Borough Council,440303,44853,GOOCH GROUP LTD,C-D13100-1703,Muni Off Blgs-Window cleaning,19-Jan-11,90.00
http://statistics.data.gov.uk/id/local-authority-district/23UB,Cheltenham Borough Council,440265,44516,GOOCH GROUP LTD,C-H4213G-1118,Gen Wks 2213-Rechargeable Repairs,19-Jan-11,460.71
http://statistics.data.gov.uk/id/local-authority-district/23UB,Cheltenham Borough Council,439754,1312150,GREENWAY PARTNERSHIP LIMITED,C-L32200-1330,Xmas in Chelt-Engineering Works DLO,12-Jan-11,"8,510.00"
http://statistics.data.gov.uk/id/local-authority-district/23UB,Cheltenham Borough Council,439755,3112154,GREENWAY PARTNERSHIP LIMITED,C-L32200-1330,Xmas in Chelt-Engineering Works DLO,12-Jan-11,"8,510.00"
http://statistics.data.gov.uk/id/local-authority-district/23UB,Cheltenham Borough Council,439757,W40789,HALCROW CONSULTING ENGINEERS,C-D21250-3973,Civil Emergency-EA FDGIA allocation,12-Jan-11,"15,919.60"
http://statistics.data.gov.uk/id/local-authority-district/23UB,Cheltenham Borough Council,439613,CF6218,HALCROW GROUP LTD,C-A21500-3101,Licensing-Equipment purchases,07-Jan-11,"2,995.00"
http://statistics.data.gov.uk/id/local-authority-district/23UB,Cheltenham Borough Council,441094,6250,HALAROSE LIMITED,C-D21300-3623,District Elects-Cmpter-sftwre lic purch,26-Jan-11,"3,530.50"
http://statistics.data.gov.uk/id/local-authority-district/23UB,Cheltenham Borough Council,441094,6250,HALAROSE LIMITED,C-D21400-3623,Electoral Regn-Cmpter-sftwre lic purch,26-Jan-11,"3,755.50"
http://statistics.data.gov.uk/id/local-authority-district/23UB,Cheltenham Borough Council,441095,90003,HALAROSE LIMITED,C-D21400-3623,Electoral Regn-Cmpter-sftwre lic purch,26-Jan-11,-225.00
http://statistics.data.gov.uk/id/local-authority-district/23UB,Cheltenham Borough Council,440667,REDACTED,HALLAM AND CO,C-H22400-3828,Homelessness-Prevention Fund,21-Jan-11,550.00
http://statistics.data.gov.uk/id/local-authority-district/23UB,Cheltenham Borough Council,440679,TW4412,HALCROW GROUP LTD,C-PM0150-R145,Bridges-Malvern Road Bridge,21-Jan-11,"1,500.00"
http://statistics.data.gov.uk/id/local-authority-district/23UB,Cheltenham Borough Council,439829,REDACTED,HANOVER HOUSING ASSOCIATION,C-HC7440-C801,DFG.96.Act-Grants,12-Jan-11,"2,634.06"
http://statistics.data.gov.uk/id/local-authority-district/23UB,Cheltenham Borough Council,439830,REDACTED,HANOVER HOUSING ASSOCIATION,C-HC7440-C801,DFG.96.Act-Grants,12-Jan-11,"3,616.02"
http://statistics.data.gov.uk/id/local-authority-district/23UB,Cheltenham Borough Council,439998,REDACTED,HANOVER HOUSING ASSOCIATION,C-HC4100-C801,Dis.Adapt.HRA-Grants,14-Jan-11,"4,534.88"
http://statistics.data.gov.uk/id/local-authority-district/23UB,Cheltenham Borough Council,440005,REDACTED,HANOVER HOUSING ASSOCIATION,C-HC4100-C801,Dis.Adapt.HRA-Grants,14-Jan-11,"5,126.63"
http://statistics.data.gov.uk/id/local-authority-district/23UB,Cheltenham Borough Council,440004,REDACTED,HANOVER HOUSING ASSOCIATION,C-HC4100-C801,Dis.Adapt.HRA-Grants,14-Jan-11,"6,890.63"
http://statistics.data.gov.uk/id/local-authority-district/23UB,Cheltenham Borough Council,440367,REDACTED,HANOVER HOUSING ASSOCIATION,C-HC7440-C801,DFG.96.Act-Grants,19-Jan-11,"3,649.50"
http://statistics.data.gov.uk/id/local-authority-district/23UB,Cheltenham Borough Council,440376,REDACTED,HANOVER HOUSING ASSOCIATION,C-HC7440-C801,DFG.96.Act-Grants,19-Jan-11,"5,825.23"
http://statistics.data.gov.uk/id/local-authority-district/23UB,Cheltenham Borough Council,440375,REDACTED,HANOVER HOUSING ASSOCIATION,C-HC7440-C801,DFG.96.Act-Grants,19-Jan-11,"10,620.00"
http://statistics.data.gov.uk/id/local-authority-district/23UB,Cheltenham Borough Council,440368,REDACTED,HANOVER HOUSING ASSOCIATION,C-HC7440-C801,DFG.96.Act-Grants,19-Jan-11,"7,638.41"
http://statistics.data.gov.uk/id/local-authority-district/23UB,Cheltenham Borough Council,440377,REDACTED,HANOVER HOUSING ASSOCIATION,C-HC7445-C801,Adapt Sup Grant-Grants,19-Jan-11,"4,145.71"
http://statistics.data.gov.uk/id/local-authority-district/23UB,Cheltenham Borough Council,440661,REDACTED,HANOVER HOUSING ASSOCIATION,C-HC4100-C801,Dis.Adapt.HRA-Grants,21-Jan-11,"5,617.13"
http://statistics.data.gov.uk/id/local-authority-district/23UB,Cheltenham Borough Council,440662,REDACTED,HANOVER HOUSING ASSOCIATION,C-HC7440-C801,DFG.96.Act-Grants,21-Jan-11,"6,363.17"
http://statistics.data.gov.uk/id/local-authority-district/23UB,Cheltenham Borough Council,440663,REDACTED,HANOVER HOUSING ASSOCIATION,C-HC7440-C801,DFG.96.Act-Grants,21-Jan-11,"5,019.41"
http://statistics.data.gov.uk/id/local-authority-district/23UB,Cheltenham Borough Council,441012,REDACTED,HANOVER HOUSING ASSOCIATION,C-HC7445-C801,Adapt Sup Grant-Grants,26-Jan-11,"2,652.00"
http://statistics.data.gov.uk/id/local-authority-district/23UB,Cheltenham Borough Council,441257,REDACTED,HANOVER HOUSING ASSOCIATION,C-HC7440-C801,DFG.96.Act-Grants,28-Jan-11,"6,162.75"
http://statistics.data.gov.uk/id/local-authority-district/23UB,Cheltenham Borough Council,439604,HWP29,HESTERS WAY PARTNERSHIP LIMITED,C-D21950-3501,Community Plan-Hire of outside services,07-Jan-11,"1,250.00"
http://statistics.data.gov.uk/id/local-authority-district/23UB,Cheltenham Borough Council,441102,HWP32-10,HESTERS WAY PARTNERSHIP LIMITED,C-Z13500-3501,LAA - ASBO Rev-Hire of outside services,28-Jan-11,650.00
http://statistics.data.gov.uk/id/local-authority-district/23UB,Cheltenham Borough Council,440559,6689535,HEWLETT PACKARD LIMITED,C-DC3211-C101,WorkingFlexibly-Project Est for this Yea,21-Jan-11,"2,354.94"
http://statistics.data.gov.uk/id/local-authority-district/23UB,Cheltenham Borough Council,439740,IUG00003209,HYDER ENVIRONMENT,C-E61600-3179,Contaminatd Lnd-Marle Hill revenue expen,12-Jan-11,"1,037.60"
http://statistics.data.gov.uk/id/local-authority-district/23UB,Cheltenham Borough Council,439996,4743,ICON NET LIMITED,C-L41100-3401,AG & M-Printing - general,14-Jan-11,"1,400.00"
http://statistics.data.gov.uk/id/local-authority-district/23UB,Cheltenham Borough Council,440397,4739,ICON NET LIMITED,C-L41100-3599,AG & M-Special Project,19-Jan-11,"1,050.00"
http://statistics.data.gov.uk/id/local-authority-district/23UB,Cheltenham Borough Council,439478,PSI013409,INTRINSIC TECHNOLOGY LIMITED,C-D11800-3660,IT Services-Hardware PC & Servers,05-Jan-11,"4,647.99"
http://statistics.data.gov.uk/id/local-authority-district/23UB,Cheltenham Borough Council,439478,PSI013409,INTRINSIC TECHNOLOGY LIMITED,C-D11800-3660,IT Services-Hardware PC & Servers,05-Jan-11,654.28
http://statistics.data.gov.uk/id/local-authority-district/23UB,Cheltenham Borough Council,439478,PSI013409,INTRINSIC TECHNOLOGY LIMITED,C-D11800-3660,IT Services-Hardware PC & Servers,05-Jan-11,216.30
http://statistics.data.gov.uk/id/local-authority-district/23UB,Cheltenham Borough Council,439478,PSI013409,INTRINSIC TECHNOLOGY LIMITED,C-D11800-3660,IT Services-Hardware PC & Servers,05-Jan-11,"1,250.00"
http://statistics.data.gov.uk/id/local-authority-district/23UB,Cheltenham Borough Council,439478,PSI013409,INTRINSIC TECHNOLOGY LIMITED,C-D11800-3660,IT Services-Hardware PC & Servers,05-Jan-11,850.00
http://statistics.data.gov.uk/id/local-authority-district/23UB,Cheltenham Borough Council,439478,PSI013409,INTRINSIC TECHNOLOGY LIMITED,C-D11800-3660,IT Services-Hardware PC & Servers,05-Jan-11,216.52
http://statistics.data.gov.uk/id/local-authority-district/23UB,Cheltenham Borough Council,439478,PSI013409,INTRINSIC TECHNOLOGY LIMITED,C-D11800-3660,IT Services-Hardware PC & Servers,05-Jan-11,10.33
http://statistics.data.gov.uk/id/local-authority-district/23UB,Cheltenham Borough Council,439746,PSI013509,INTRINSIC TECHNOLOGY LIMITED,C-GCERP-3623,GO capital cost-Cmpter-sftware lic purch,12-Jan-11,"1,623.31"
http://statistics.data.gov.uk/id/local-authority-district/23UB,Cheltenham Borough Council,439746,PSI013509,INTRINSIC TECHNOLOGY LIMITED,C-GCERP-3623,GO capital cost-Cmpter-sftware lic purch,12-Jan-11,78.74
http://statistics.data.gov.uk/id/local-authority-district/23UB,Cheltenham Borough Council,439862,31750,JADU LTD,C-D12600-3623,Service Develop-Cmpter-sftwre lic purch,12-Jan-11,"10,000.00"
http://statistics.data.gov.uk/id/local-authority-district/23UB,Cheltenham Borough Council,439818,31740,JADU LTD,C-D12600-3623,Service Develop-Cmpter-sftwre lic purch,14-Jan-11,"5,400.00"
http://statistics.data.gov.uk/id/local-authority-district/23UB,Cheltenham Borough Council,439861,1011014,JCA OCCUPATIONAL PSYCHOLOGISTS LIMITED,C-D12300-0204,Personnel and P-Training fees/exp (Prof),12-Jan-11,"3,000.00"
http://statistics.data.gov.uk/id/local-authority-district/23UB,Cheltenham Borough Council,439606,ENT1497,JETHRO ENTERPRISES LTD,C-0T20H1-3568,Artist Fees,07-Jan-11,"9,465.55"
http://statistics.data.gov.uk/id/local-authority-district/23UB,Cheltenham Borough Council,440855,PT/30663,REDACTED,C-C23160-3934,Env Maint Divn-TP Gen-Imprest/Excess,26-Jan-11,"1,000.00"
http://statistics.data.gov.uk/id/local-authority-district/23UB,Cheltenham Borough Council,440673,H1425,P H JONES LIMITED,C-H46100-1104,Cen.Heat.Serv-Council House repairs,21-Jan-11,"33,850.07"
http://statistics.data.gov.uk/id/local-authority-district/23UB,Cheltenham Borough Council,440673,H1425,P H JONES LIMITED,C-HC4061-C302,New Heating Ins-Building Contractor,21-Jan-11,"5,627.94"
http://statistics.data.gov.uk/id/local-authority-district/23UB,Cheltenham Borough Council,440673,H1425,P H JONES LIMITED,C-HC4079-C302,Gas - void-Building Contractor,21-Jan-11,"1,676.51"
http://statistics.data.gov.uk/id/local-authority-district/23UB,Cheltenham Borough Council,440558,INO035388,KALAMAZOO LTD,C-D11300-3623,Accountancy-Cmpter-sftwre lic purch,21-Jan-11,675.00
http://statistics.data.gov.uk/id/local-authority-district/23UB,Cheltenham Borough Council,440558,INO035388,KALAMAZOO LTD,C-D11300-3623,Accountancy-Cmpter-sftwre lic purch,21-Jan-11,694.22
http://statistics.data.gov.uk/id/local-authority-district/23UB,Cheltenham Borough Council,440558,INO035388,KALAMAZOO LTD,C-D11300-3623,Accountancy-Cmpter-sftwre lic purch,21-Jan-11,225.00
http://statistics.data.gov.uk/id/local-authority-district/23UB,Cheltenham Borough Council,439524,895,K B BUILDING SERVICES UK LIMITED,C-C22110-1804,Parks & Gardens-RM-External structures,07-Jan-11,340.00
http://statistics.data.gov.uk/id/local-authority-district/23UB,Cheltenham Borough Council,439616,903,K B BUILDING SERVICES UK LIMITED,C-H4206V-1104,Voids 2206-Council House repairs,07-Jan-11,335.00
http://statistics.data.gov.uk/id/local-authority-district/23UB,Cheltenham Borough Council,439524,895,K B BUILDING SERVICES UK LIMITED,C-N11250-9227,Excluded,07-Jan-11,-64.00
http://statistics.data.gov.uk/id/local-authority-district/23UB,Cheltenham Borough Council,439625,896,K B BUILDING SERVICES UK LIMITED,C-N11250-9227,Excluded,07-Jan-11,-16.00
http://statistics.data.gov.uk/id/local-authority-district/23UB,Cheltenham Borough Council,439616,903,K B BUILDING SERVICES UK LIMITED,C-N11250-9227,Excluded,07-Jan-11,-56.00
http://statistics.data.gov.uk/id/local-authority-district/23UB,Cheltenham Borough Council,439625,896,K B BUILDING SERVICES UK LIMITED,C-PM0042-R040,Pavillions-Internal Redecoration,07-Jan-11,80.00
http://statistics.data.gov.uk/id/local-authority-district/23UB,Cheltenham Borough Council,439827,911,K B BUILDING SERVICES UK LIMITED,C-C22120-1807,Sports & Open S-RM-Vandalism,12-Jan-11,457.00
http://statistics.data.gov.uk/id/local-authority-district/23UB,Cheltenham Borough Council,439826,909,K B BUILDING SERVICES UK LIMITED,C-H13200-1805,Rents Rates Tax-RM-Int. fixtures/fitting,12-Jan-11,650.00
http://statistics.data.gov.uk/id/local-authority-district/23UB,Cheltenham Borough Council,439826,909,K B BUILDING SERVICES UK LIMITED,C-N11250-9227,Excluded,12-Jan-11,-88.00
http://statistics.data.gov.uk/id/local-authority-district/23UB,Cheltenham Borough Council,439827,911,K B BUILDING SERVICES UK LIMITED,C-N11250-9227,Excluded,12-Jan-11,-48.00
http://statistics.data.gov.uk/id/local-authority-district/23UB,Cheltenham Borough Council,440271,901,K B BUILDING SERVICES UK LIMITED,C-H4201G-1104,Gen Wks 2201-Council House repairs,19-Jan-11,"2,516.00"
http://statistics.data.gov.uk/id/local-authority-district/23UB,Cheltenham Borough Council,440272,906,K B BUILDING SERVICES UK LIMITED,C-H4201G-1104,Gen Wks 2201-Council House repairs,19-Jan-11,"1,210.00"
http://statistics.data.gov.uk/id/local-authority-district/23UB,Cheltenham Borough Council,440272,906,K B BUILDING SERVICES UK LIMITED,C-H4201G-1104,Gen Wks 2201-Council House repairs,19-Jan-11,-192.00
http://statistics.data.gov.uk/id/local-authority-district/23UB,Cheltenham Borough Council,440274,905,K B BUILDING SERVICES UK LIMITED,C-H4206G-1104,Gen Wks 2206-Council House repairs,19-Jan-11,"1,495.00"
http://statistics.data.gov.uk/id/local-authority-district/23UB,Cheltenham Borough Council,440273,904,K B BUILDING SERVICES UK LIMITED,C-H4211G-1104,Gen Wks 2211-Council House repairs,19-Jan-11,695.00
http://statistics.data.gov.uk/id/local-authority-district/23UB,Cheltenham Borough Council,440312,907,K B BUILDING SERVICES UK LIMITED,C-HC4050-C302,Major Voids-Building Contractor,19-Jan-11,"4,000.00"
http://statistics.data.gov.uk/id/local-authority-district/23UB,Cheltenham Borough Council,440271,901,K B BUILDING SERVICES UK LIMITED,C-N11250-9227,Excluded,19-Jan-11,-380.00
http://statistics.data.gov.uk/id/local-authority-district/23UB,Cheltenham Borough Council,440274,905,K B BUILDING SERVICES UK LIMITED,C-N11250-9227,Excluded,19-Jan-11,-270.00
http://statistics.data.gov.uk/id/local-authority-district/23UB,Cheltenham Borough Council,440273,904,K B BUILDING SERVICES UK LIMITED,C-N11250-9227,Excluded,19-Jan-11,-128.00
http://statistics.data.gov.uk/id/local-authority-district/23UB,Cheltenham Borough Council,440312,907,K B BUILDING SERVICES UK LIMITED,C-N11250-9227,Excluded,19-Jan-11,-690.00
http://statistics.data.gov.uk/id/local-authority-district/23UB,Cheltenham Borough Council,441307,924,K B BUILDING SERVICES UK LIMITED,C-C23110-3501,Street Cleaning-Hire of outside services,28-Jan-11,400.00
http://statistics.data.gov.uk/id/local-authority-district/23UB,Cheltenham Borough Council,441308,925,K B BUILDING SERVICES UK LIMITED,C-C23110-3501,Street Cleaning-Hire of outside services,28-Jan-11,310.00
http://statistics.data.gov.uk/id/local-authority-district/23UB,Cheltenham Borough Council,441137,926,K B BUILDING SERVICES UK LIMITED,C-HC4020-C820,St Pauls NAR-Demolition,28-Jan-11,"1,031.00"
http://statistics.data.gov.uk/id/local-authority-district/23UB,Cheltenham Borough Council,441138,922,K B BUILDING SERVICES UK LIMITED,C-HC4020-C820,St Pauls NAR-Demolition,28-Jan-11,"2,085.00"
http://statistics.data.gov.uk/id/local-authority-district/23UB,Cheltenham Borough Council,441140,927,K B BUILDING SERVICES UK LIMITED,C-HC4020-C820,St Pauls NAR-Demolition,28-Jan-11,846.00
http://statistics.data.gov.uk/id/local-authority-district/23UB,Cheltenham Borough Council,441139,918,K B BUILDING SERVICES UK LIMITED,C-HC4020-C820,St Pauls NAR-Demolition,28-Jan-11,430.00
http://statistics.data.gov.uk/id/local-authority-district/23UB,Cheltenham Borough Council,441308,925,K B BUILDING SERVICES UK LIMITED,C-N11250-9227,Excluded,28-Jan-11,-50.00
http://statistics.data.gov.uk/id/local-authority-district/23UB,Cheltenham Borough Council,441137,926,K B BUILDING SERVICES UK LIMITED,C-N11250-9227,Excluded,28-Jan-11,-128.00
http://statistics.data.gov.uk/id/local-authority-district/23UB,Cheltenham Borough Council,441140,927,K B BUILDING SERVICES UK LIMITED,C-N11250-9227,Excluded,28-Jan-11,-128.00
http://statistics.data.gov.uk/id/local-authority-district/23UB,Cheltenham Borough Council,441139,918,K B BUILDING SERVICES UK LIMITED,C-N11250-9227,Excluded,28-Jan-11,-64.00
http://statistics.data.gov.uk/id/local-authority-district/23UB,Cheltenham Borough Council,441138,922,K B BUILDING SERVICES UK LIMITED,C-N11250-9227,Excluded,28-Jan-11,-320.00
http://statistics.data.gov.uk/id/local-authority-district/23UB,Cheltenham Borough Council,441307,924,K B BUILDING SERVICES UK LIMITED,C-N11250-9227,Excluded,28-Jan-11,-64.00
http://statistics.data.gov.uk/id/local-authority-district/23UB,Cheltenham Borough Council,439266,1366 27 ,KERRY PLUMBING LIMITED,C-H44752-1104,Dis Adapts-Tech-Council House repairs,05-Jan-11,"1,420.00"
http://statistics.data.gov.uk/id/local-authority-district/23UB,Cheltenham Borough Council,439267,1365 23 ,KERRY PLUMBING LIMITED,C-H44752-1104,Dis Adapts-Tech-Council House repairs,05-Jan-11,820.00
http://statistics.data.gov.uk/id/local-authority-district/23UB,Cheltenham Borough Council,439266,1366 27 ,KERRY PLUMBING LIMITED,C-N11250-9227,Excluded,05-Jan-11,-124.00
http://statistics.data.gov.uk/id/local-authority-district/23UB,Cheltenham Borough Council,439267,1365,KERRY PLUMBING LIMITED,C-N11250-9227,Excluded,05-Jan-11,-120.00
http://statistics.data.gov.uk/id/local-authority-district/23UB,Cheltenham Borough Council,439313,REDACTED,KIRKHAM PRYER,C-HC7400-C801,H&S Grant-Grants,05-Jan-11,"1,233.16"
http://statistics.data.gov.uk/id/local-authority-district/23UB,Cheltenham Borough Council,440905,75YRTO11,TOM KITCHING ,C-0T70L0-3568,Folk Festival-Artist Fees,26-Jan-11,500.00
http://statistics.data.gov.uk/id/local-authority-district/23UB,Cheltenham Borough Council,439599,5500306683,KPMG LLP,C-D21200-3507,Corp Mgt-Audit Commission fees,07-Jan-11,"26,232.00"
http://statistics.data.gov.uk/id/local-authority-district/23UB,Cheltenham Borough Council,440693,5500307468,KPMG LLP,C-D21200-3507,Corp Mgt-Audit Commission fees,26-Jan-11,"29,747.25"
http://statistics.data.gov.uk/id/local-authority-district/23UB,Cheltenham Borough Council,439366,341,G GARDINER T/A LABURNUM LODGE,C-H22400-5204,Homelessness-Provision of accommo(B&B),05-Jan-11,405.45
http://statistics.data.gov.uk/id/local-authority-district/23UB,Cheltenham Borough Council,439619,343,G GARDINER T/A LABURNUM LODGE,C-H22400-5204,Homelessness-Provision of accommo(B&B),07-Jan-11,328.22
http://statistics.data.gov.uk/id/local-authority-district/23UB,Cheltenham Borough Council,439618,342,G GARDINER T/A LABURNUM LODGE,C-H22400-5204,Homelessness-Provision of accommo(B&B),07-Jan-11,405.45
http://statistics.data.gov.uk/id/local-authority-district/23UB,Cheltenham Borough Council,440351,344,G GARDINER T/A LABURNUM LODGE,C-H22400-5204,Homelessness-Provision of accommo(B&B),19-Jan-11,270.30
http://statistics.data.gov.uk/id/local-authority-district/23UB,Cheltenham Borough Council,440352,345,G GARDINER T/A LABURNUM LODGE,C-H22400-5204,Homelessness-Provision of accommo(B&B),19-Jan-11,270.30
http://statistics.data.gov.uk/id/local-authority-district/23UB,Cheltenham Borough Council,441154,347,G GARDINER T/A LABURNUM LODGE,C-H22400-5204,Homelessness-Provision of accommo(B&B),28-Jan-11,405.45
http://statistics.data.gov.uk/id/local-authority-district/23UB,Cheltenham Borough Council,441153,346,G GARDINER T/A LABURNUM LODGE,C-H22400-5204,Homelessness-Provision of accommo(B&B),28-Jan-11,270.30
http://statistics.data.gov.uk/id/local-authority-district/23UB,Cheltenham Borough Council,441195,17676,IMPERIAL CIVIL ENFORCEMENT SOLUTIONS LTD,C-E36200-3501,On-St Car Prkng-Hire of outside services,28-Jan-11,53.10
http://statistics.data.gov.uk/id/local-authority-district/23UB,Cheltenham Borough Council,441312,17787,IMPERIAL CIVIL ENFORCEMENT SOLUTIONS LTD,C-E36300-3623,On-Street Enfor-Cmpter-sftwre lic purch,28-Jan-11,"2,324.95"
http://statistics.data.gov.uk/id/local-authority-district/23UB,Cheltenham Borough Council,441312,17787,IMPERIAL CIVIL ENFORCEMENT SOLUTIONS LTD,C-E36300-3623,On-Street Enfor-Cmpter-sftwre lic purch,28-Jan-11,"1,465.58"
http://statistics.data.gov.uk/id/local-authority-district/23UB,Cheltenham Borough Council,441312,17787,IMPERIAL CIVIL ENFORCEMENT SOLUTIONS LTD,C-E36300-3623,On-Street Enfor-Cmpter-sftwre lic purch,28-Jan-11,103.31
http://statistics.data.gov.uk/id/local-authority-district/23UB,Cheltenham Borough Council,441312,17787,IMPERIAL CIVIL ENFORCEMENT SOLUTIONS LTD,C-E36300-3623,On-Street Enfor-Cmpter-sftwre lic purch,28-Jan-11,"5,062.12"
http://statistics.data.gov.uk/id/local-authority-district/23UB,Cheltenham Borough Council,441312,17787,IMPERIAL CIVIL ENFORCEMENT SOLUTIONS LTD,C-E36300-3623,On-Street Enfor-Cmpter-sftwre lic purch,28-Jan-11,284.10
http://statistics.data.gov.uk/id/local-authority-district/23UB,Cheltenham Borough Council,441312,17787,IMPERIAL CIVIL ENFORCEMENT SOLUTIONS LTD,C-E36300-3623,On-Street Enfor-Cmpter-sftwre lic purch,28-Jan-11,542.37
http://statistics.data.gov.uk/id/local-authority-district/23UB,Cheltenham Borough Council,441312,17787,IMPERIAL CIVIL ENFORCEMENT SOLUTIONS LTD,C-E36300-3623,On-Street Enfor-Cmpter-sftwre lic purch,28-Jan-11,46.00
http://statistics.data.gov.uk/id/local-authority-district/23UB,Cheltenham Borough Council,441312,17787,IMPERIAL CIVIL ENFORCEMENT SOLUTIONS LTD,C-E36300-3623,On-Street Enfor-Cmpter-sftwre lic purch,28-Jan-11,567.37
http://statistics.data.gov.uk/id/local-authority-district/23UB,Cheltenham Borough Council,441312,17787,IMPERIAL CIVIL ENFORCEMENT SOLUTIONS LTD,C-E36300-3623,On-Street Enfor-Cmpter-sftwre lic purch,28-Jan-11,363.77
http://statistics.data.gov.uk/id/local-authority-district/23UB,Cheltenham Borough Council,441312,17787,IMPERIAL CIVIL ENFORCEMENT SOLUTIONS LTD,C-E36300-3623,On-Street Enfor-Cmpter-sftwre lic purch,28-Jan-11,750.00
http://statistics.data.gov.uk/id/local-authority-district/23UB,Cheltenham Borough Council,441312,17787,IMPERIAL CIVIL ENFORCEMENT SOLUTIONS LTD,C-E36300-3623,On-Street Enfor-Cmpter-sftwre lic purch,28-Jan-11,"1,493.52"
http://statistics.data.gov.uk/id/local-authority-district/23UB,Cheltenham Borough Council,440369, 6718,LONDON MOZART PLAYERS,C-0T22K1-3568,Artist Fees,19-Jan-11,"6,000.00"
http://statistics.data.gov.uk/id/local-authority-district/23UB,Cheltenham Borough Council,440780,L229,MR M J LOVERIDGE,C-H44600-1104,J D Court-Council House repairs,26-Jan-11,32.51
http://statistics.data.gov.uk/id/local-authority-district/23UB,Cheltenham Borough Council,440795,L217,MR M J LOVERIDGE,C-H44600-1104,J D Court-Council House repairs,26-Jan-11,32.51
http://statistics.data.gov.uk/id/local-authority-district/23UB,Cheltenham Borough Council,440967,L227,MR M J LOVERIDGE,C-H46300-1104,Comm.Light.Mtce-Council House repairs,26-Jan-11,32.51
http://statistics.data.gov.uk/id/local-authority-district/23UB,Cheltenham Borough Council,440968,L218,MR M J LOVERIDGE,C-H46300-1104,Comm.Light.Mtce-Council House repairs,26-Jan-11,32.36
http://statistics.data.gov.uk/id/local-authority-district/23UB,Cheltenham Borough Council,440969,L244,MR M J LOVERIDGE,C-H46300-1104,Comm.Light.Mtce-Council House repairs,26-Jan-11,41.29
http://statistics.data.gov.uk/id/local-authority-district/23UB,Cheltenham Borough Council,440971,L226,MR M J LOVERIDGE,C-H46300-1104,Comm.Light.Mtce-Council House repairs,26-Jan-11,32.51
http://statistics.data.gov.uk/id/local-authority-district/23UB,Cheltenham Borough Council,440973,L225,MR M J LOVERIDGE,C-H46300-1104,Comm.Light.Mtce-Council House repairs,26-Jan-11,32.51
http://statistics.data.gov.uk/id/local-authority-district/23UB,Cheltenham Borough Council,440975,L237,MR M J LOVERIDGE,C-H46300-1104,Comm.Light.Mtce-Council House repairs,26-Jan-11,36.90
http://statistics.data.gov.uk/id/local-authority-district/23UB,Cheltenham Borough Council,440977,L243,MR M J LOVERIDGE,C-H46300-1104,Comm.Light.Mtce-Council House repairs,26-Jan-11,41.29
http://statistics.data.gov.uk/id/local-authority-district/23UB,Cheltenham Borough Council,440994,L145,MR M J LOVERIDGE,C-H46300-1104,Comm.Light.Mtce-Council House repairs,26-Jan-11,32.36
http://statistics.data.gov.uk/id/local-authority-district/23UB,Cheltenham Borough Council,440993,L168,MR M J LOVERIDGE,C-H46300-1104,Comm.Light.Mtce-Council House repairs,26-Jan-11,53.08
http://statistics.data.gov.uk/id/local-authority-district/23UB,Cheltenham Borough Council,440992,L1563,MR M J LOVERIDGE,C-H46300-1104,Comm.Light.Mtce-Council House repairs,26-Jan-11,32.51
http://statistics.data.gov.uk/id/local-authority-district/23UB,Cheltenham Borough Council,440991,L154,MR M J LOVERIDGE,C-H46300-1104,Comm.Light.Mtce-Council House repairs,26-Jan-11,32.51
http://statistics.data.gov.uk/id/local-authority-district/23UB,Cheltenham Borough Council,440990,L152,MR M J LOVERIDGE,C-H46300-1104,Comm.Light.Mtce-Council House repairs,26-Jan-11,32.51
http://statistics.data.gov.uk/id/local-authority-district/23UB,Cheltenham Borough Council,440989,L133,MR M J LOVERIDGE,C-H46300-1104,Comm.Light.Mtce-Council House repairs,26-Jan-11,32.51
http://statistics.data.gov.uk/id/local-authority-district/23UB,Cheltenham Borough Council,440988,L134,MR M J LOVERIDGE,C-H46300-1104,Comm.Light.Mtce-Council House repairs,26-Jan-11,32.51
http://statistics.data.gov.uk/id/local-authority-district/23UB,Cheltenham Borough Council,440987,L139,MR M J LOVERIDGE,C-H46300-1104,Comm.Light.Mtce-Council House repairs,26-Jan-11,45.68
http://statistics.data.gov.uk/id/local-authority-district/23UB,Cheltenham Borough Council,440986,L143,MR M J LOVERIDGE,C-H46300-1104,Comm.Light.Mtce-Council House repairs,26-Jan-11,75.90
http://statistics.data.gov.uk/id/local-authority-district/23UB,Cheltenham Borough Council,440731,L189,MR M J LOVERIDGE,C-H46300-1104,Comm.Light.Mtce-Council House repairs,26-Jan-11,36.90
http://statistics.data.gov.uk/id/local-authority-district/23UB,Cheltenham Borough Council,440730,L188,MR M J LOVERIDGE,C-H46300-1104,Comm.Light.Mtce-Council House repairs,26-Jan-11,36.90
http://statistics.data.gov.uk/id/local-authority-district/23UB,Cheltenham Borough Council,440729,L146,MR M J LOVERIDGE,C-H46300-1104,Comm.Light.Mtce-Council House repairs,26-Jan-11,32.51
http://statistics.data.gov.uk/id/local-authority-district/23UB,Cheltenham Borough Council,440728,L155,MR M J LOVERIDGE,C-H46300-1104,Comm.Light.Mtce-Council House repairs,26-Jan-11,36.90
http://statistics.data.gov.uk/id/local-authority-district/23UB,Cheltenham Borough Council,440727,L173,MR M J LOVERIDGE,C-H46300-1104,Comm.Light.Mtce-Council House repairs,26-Jan-11,92.02
http://statistics.data.gov.uk/id/local-authority-district/23UB,Cheltenham Borough Council,440726,L165,MR M J LOVERIDGE,C-H46300-1104,Comm.Light.Mtce-Council House repairs,26-Jan-11,45.68
http://statistics.data.gov.uk/id/local-authority-district/23UB,Cheltenham Borough Council,440725,L169,MR M J LOVERIDGE,C-H46300-1104,Comm.Light.Mtce-Council House repairs,26-Jan-11,54.46
http://statistics.data.gov.uk/id/local-authority-district/23UB,Cheltenham Borough Council,440724,L172,MR M J LOVERIDGE,C-H46300-1104,Comm.Light.Mtce-Council House repairs,26-Jan-11,92.02
http://statistics.data.gov.uk/id/local-authority-district/23UB,Cheltenham Borough Council,440723,L164,MR M J LOVERIDGE,C-H46300-1104,Comm.Light.Mtce-Council House repairs,26-Jan-11,45.68
http://statistics.data.gov.uk/id/local-authority-district/23UB,Cheltenham Borough Council,440748,L266,MR M J LOVERIDGE,C-H46300-1104,Comm.Light.Mtce-Council House repairs,26-Jan-11,36.90
http://statistics.data.gov.uk/id/local-authority-district/23UB,Cheltenham Borough Council,440747,L253,MR M J LOVERIDGE,C-H46300-1104,Comm.Light.Mtce-Council House repairs,26-Jan-11,32.51
http://statistics.data.gov.uk/id/local-authority-district/23UB,Cheltenham Borough Council,440746,L255,MR M J LOVERIDGE,C-H46300-1104,Comm.Light.Mtce-Council House repairs,26-Jan-11,32.51
http://statistics.data.gov.uk/id/local-authority-district/23UB,Cheltenham Borough Council,440745,L211,MR M J LOVERIDGE,C-H46300-1104,Comm.Light.Mtce-Council House repairs,26-Jan-11,36.90
http://statistics.data.gov.uk/id/local-authority-district/23UB,Cheltenham Borough Council,440744,L205,MR M J LOVERIDGE,C-H46300-1104,Comm.Light.Mtce-Council House repairs,26-Jan-11,32.51
http://statistics.data.gov.uk/id/local-authority-district/23UB,Cheltenham Borough Council,440743,L206,MR M J LOVERIDGE,C-H46300-1104,Comm.Light.Mtce-Council House repairs,26-Jan-11,32.51
http://statistics.data.gov.uk/id/local-authority-district/23UB,Cheltenham Borough Council,440742,L204,MR M J LOVERIDGE,C-H46300-1104,Comm.Light.Mtce-Council House repairs,26-Jan-11,32.51
http://statistics.data.gov.uk/id/local-authority-district/23UB,Cheltenham Borough Council,440741,L203,MR M J LOVERIDGE,C-H46300-1104,Comm.Light.Mtce-Council House repairs,26-Jan-11,32.51
http://statistics.data.gov.uk/id/local-authority-district/23UB,Cheltenham Borough Council,440740,L186,MR M J LOVERIDGE,C-H46300-1104,Comm.Light.Mtce-Council House repairs,26-Jan-11,32.51
http://statistics.data.gov.uk/id/local-authority-district/23UB,Cheltenham Borough Council,440817,L130,MR M J LOVERIDGE,C-H46300-1104,Comm.Light.Mtce-Council House repairs,26-Jan-11,32.51
http://statistics.data.gov.uk/id/local-authority-district/23UB,Cheltenham Borough Council,440816,L131,MR M J LOVERIDGE,C-H46300-1104,Comm.Light.Mtce-Council House repairs,26-Jan-11,32.51
http://statistics.data.gov.uk/id/local-authority-district/23UB,Cheltenham Borough Council,440815,L132,MR M J LOVERIDGE,C-H46300-1104,Comm.Light.Mtce-Council House repairs,26-Jan-11,32.51
http://statistics.data.gov.uk/id/local-authority-district/23UB,Cheltenham Borough Council,440814,L137,MR M J LOVERIDGE,C-H46300-1104,Comm.Light.Mtce-Council House repairs,26-Jan-11,41.29
http://statistics.data.gov.uk/id/local-authority-district/23UB,Cheltenham Borough Council,440813,4240,MR M J LOVERIDGE,C-H46300-1104,Comm.Light.Mtce-Council House repairs,26-Jan-11,36.90
http://statistics.data.gov.uk/id/local-authority-district/23UB,Cheltenham Borough Council,440812,L246,MR M J LOVERIDGE,C-H46300-1104,Comm.Light.Mtce-Council House repairs,26-Jan-11,54.46
http://statistics.data.gov.uk/id/local-authority-district/23UB,Cheltenham Borough Council,440811,L239,MR M J LOVERIDGE,C-H46300-1104,Comm.Light.Mtce-Council House repairs,26-Jan-11,36.90
http://statistics.data.gov.uk/id/local-authority-district/23UB,Cheltenham Borough Council,440810,L251,MR M J LOVERIDGE,C-H46300-1104,Comm.Light.Mtce-Council House repairs,26-Jan-11,100.80
http://statistics.data.gov.uk/id/local-authority-district/23UB,Cheltenham Borough Council,440809,L157,MR M J LOVERIDGE,C-H46300-1104,Comm.Light.Mtce-Council House repairs,26-Jan-11,36.90
http://statistics.data.gov.uk/id/local-authority-district/23UB,Cheltenham Borough Council,440808,L163,MR M J LOVERIDGE,C-H46300-1104,Comm.Light.Mtce-Council House repairs,26-Jan-11,45.68
http://statistics.data.gov.uk/id/local-authority-district/23UB,Cheltenham Borough Council,440807,L178,MR M J LOVERIDGE,C-H46300-1104,Comm.Light.Mtce-Council House repairs,26-Jan-11,125.76
http://statistics.data.gov.uk/id/local-authority-district/23UB,Cheltenham Borough Council,440806,L175,MR M J LOVERIDGE,C-H46300-1104,Comm.Light.Mtce-Council House repairs,26-Jan-11,105.19
http://statistics.data.gov.uk/id/local-authority-district/23UB,Cheltenham Borough Council,440805,L158,MR M J LOVERIDGE,C-H46300-1104,Comm.Light.Mtce-Council House repairs,26-Jan-11,36.90
http://statistics.data.gov.uk/id/local-authority-district/23UB,Cheltenham Borough Council,440804,L156,MR M J LOVERIDGE,C-H46300-1104,Comm.Light.Mtce-Council House repairs,26-Jan-11,36.90
http://statistics.data.gov.uk/id/local-authority-district/23UB,Cheltenham Borough Council,440803,L151,MR M J LOVERIDGE,C-H46300-1104,Comm.Light.Mtce-Council House repairs,26-Jan-11,32.51
http://statistics.data.gov.uk/id/local-authority-district/23UB,Cheltenham Borough Council,440802,L150,MR M J LOVERIDGE,C-H46300-1104,Comm.Light.Mtce-Council House repairs,26-Jan-11,32.51
http://statistics.data.gov.uk/id/local-authority-district/23UB,Cheltenham Borough Council,440801,L149,MR M J LOVERIDGE,C-H46300-1104,Comm.Light.Mtce-Council House repairs,26-Jan-11,32.51
http://statistics.data.gov.uk/id/local-authority-district/23UB,Cheltenham Borough Council,440800,L148,MR M J LOVERIDGE,C-H46300-1104,Comm.Light.Mtce-Council House repairs,26-Jan-11,32.51
http://statistics.data.gov.uk/id/local-authority-district/23UB,Cheltenham Borough Council,440799,L147,MR M J LOVERIDGE,C-H46300-1104,Comm.Light.Mtce-Council House repairs,26-Jan-11,32.51
http://statistics.data.gov.uk/id/local-authority-district/23UB,Cheltenham Borough Council,440798,L124,MR M J LOVERIDGE,C-H46300-1104,Comm.Light.Mtce-Council House repairs,26-Jan-11,32.51
http://statistics.data.gov.uk/id/local-authority-district/23UB,Cheltenham Borough Council,440797,L125,MR M J LOVERIDGE,C-H46300-1104,Comm.Light.Mtce-Council House repairs,26-Jan-11,32.51
http://statistics.data.gov.uk/id/local-authority-district/23UB,Cheltenham Borough Council,440796,L126,MR M J LOVERIDGE,C-H46300-1104,Comm.Light.Mtce-Council House repairs,26-Jan-11,32.51
http://statistics.data.gov.uk/id/local-authority-district/23UB,Cheltenham Borough Council,440794,L128,MR M J LOVERIDGE,C-H46300-1104,Comm.Light.Mtce-Council House repairs,26-Jan-11,32.51
http://statistics.data.gov.uk/id/local-authority-district/23UB,Cheltenham Borough Council,440793,L123,MR M J LOVERIDGE,C-H46300-1104,Comm.Light.Mtce-Council House repairs,26-Jan-11,32.36
http://statistics.data.gov.uk/id/local-authority-district/23UB,Cheltenham Borough Council,440792,L141,MR M J LOVERIDGE,C-H46300-1104,Comm.Light.Mtce-Council House repairs,26-Jan-11,62.12
http://statistics.data.gov.uk/id/local-authority-district/23UB,Cheltenham Borough Council,440791,L129,MR M J LOVERIDGE,C-H46300-1104,Comm.Light.Mtce-Council House repairs,26-Jan-11,32.51
http://statistics.data.gov.uk/id/local-authority-district/23UB,Cheltenham Borough Council,440790,L166,MR M J LOVERIDGE,C-H46300-1104,Comm.Light.Mtce-Council House repairs,26-Jan-11,45.68
http://statistics.data.gov.uk/id/local-authority-district/23UB,Cheltenham Borough Council,440789,L245,MR M J LOVERIDGE,C-H46300-1104,Comm.Light.Mtce-Council House repairs,26-Jan-11,41.29
http://statistics.data.gov.uk/id/local-authority-district/23UB,Cheltenham Borough Council,440788,L247,MR M J LOVERIDGE,C-H46300-1104,Comm.Light.Mtce-Council House repairs,26-Jan-11,67.63
http://statistics.data.gov.uk/id/local-authority-district/23UB,Cheltenham Borough Council,440787,L222,MR M J LOVERIDGE,C-H46300-1104,Comm.Light.Mtce-Council House repairs,26-Jan-11,32.36
http://statistics.data.gov.uk/id/local-authority-district/23UB,Cheltenham Borough Council,440786,L214,MR M J LOVERIDGE,C-H46300-1104,Comm.Light.Mtce-Council House repairs,26-Jan-11,45.68
http://statistics.data.gov.uk/id/local-authority-district/23UB,Cheltenham Borough Council,440785,L213,MR M J LOVERIDGE,C-H46300-1104,Comm.Light.Mtce-Council House repairs,26-Jan-11,41.29
http://statistics.data.gov.uk/id/local-authority-district/23UB,Cheltenham Borough Council,440784,L212,MR M J LOVERIDGE,C-H46300-1104,Comm.Light.Mtce-Council House repairs,26-Jan-11,41.29
http://statistics.data.gov.uk/id/local-authority-district/23UB,Cheltenham Borough Council,440783,L219,MR M J LOVERIDGE,C-H46300-1104,Comm.Light.Mtce-Council House repairs,26-Jan-11,32.36
http://statistics.data.gov.uk/id/local-authority-district/23UB,Cheltenham Borough Council,440782,L228,MR M J LOVERIDGE,C-H46300-1104,Comm.Light.Mtce-Council House repairs,26-Jan-11,32.51
http://statistics.data.gov.uk/id/local-authority-district/23UB,Cheltenham Borough Council,440781,L220,MR M J LOVERIDGE,C-H46300-1104,Comm.Light.Mtce-Council House repairs,26-Jan-11,32.36
http://statistics.data.gov.uk/id/local-authority-district/23UB,Cheltenham Borough Council,440779,L230,MR M J LOVERIDGE,C-H46300-1104,Comm.Light.Mtce-Council House repairs,26-Jan-11,32.51
http://statistics.data.gov.uk/id/local-authority-district/23UB,Cheltenham Borough Council,440778,L250,MR M J LOVERIDGE,C-H46300-1104,Comm.Light.Mtce-Council House repairs,26-Jan-11,97.85
http://statistics.data.gov.uk/id/local-authority-district/23UB,Cheltenham Borough Council,440777,L231,MR M J LOVERIDGE,C-H46300-1104,Comm.Light.Mtce-Council House repairs,26-Jan-11,32.51
http://statistics.data.gov.uk/id/local-authority-district/23UB,Cheltenham Borough Council,440776,L221,MR M J LOVERIDGE,C-H46300-1104,Comm.Light.Mtce-Council House repairs,26-Jan-11,32.36
http://statistics.data.gov.uk/id/local-authority-district/23UB,Cheltenham Borough Council,440775,L232,MR M J LOVERIDGE,C-H46300-1104,Comm.Light.Mtce-Council House repairs,26-Jan-11,32.51
http://statistics.data.gov.uk/id/local-authority-district/23UB,Cheltenham Borough Council,440774,L242,MR M J LOVERIDGE,C-H46300-1104,Comm.Light.Mtce-Council House repairs,26-Jan-11,41.29
http://statistics.data.gov.uk/id/local-authority-district/23UB,Cheltenham Borough Council,440773,L236,MR M J LOVERIDGE,C-H46300-1104,Comm.Light.Mtce-Council House repairs,26-Jan-11,36.90
http://statistics.data.gov.uk/id/local-authority-district/23UB,Cheltenham Borough Council,440772,L235,MR M J LOVERIDGE,C-H46300-1104,Comm.Light.Mtce-Council House repairs,26-Jan-11,32.51
http://statistics.data.gov.uk/id/local-authority-district/23UB,Cheltenham Borough Council,440771,L421,MR M J LOVERIDGE,C-H46300-1104,Comm.Light.Mtce-Council House repairs,26-Jan-11,36.90
http://statistics.data.gov.uk/id/local-authority-district/23UB,Cheltenham Borough Council,440770,L223,MR M J LOVERIDGE,C-H46300-1104,Comm.Light.Mtce-Council House repairs,26-Jan-11,32.51
http://statistics.data.gov.uk/id/local-authority-district/23UB,Cheltenham Borough Council,440769,L136,MR M J LOVERIDGE,C-H46300-1104,Comm.Light.Mtce-Council House repairs,26-Jan-11,41.29
http://statistics.data.gov.uk/id/local-authority-district/23UB,Cheltenham Borough Council,440768,L142,MR M J LOVERIDGE,C-H46300-1104,Comm.Light.Mtce-Council House repairs,26-Jan-11,75.90
http://statistics.data.gov.uk/id/local-authority-district/23UB,Cheltenham Borough Council,440767,L210,MR M J LOVERIDGE,C-H46300-1104,Comm.Light.Mtce-Council House repairs,26-Jan-11,36.90
http://statistics.data.gov.uk/id/local-authority-district/23UB,Cheltenham Borough Council,440766,L209,MR M J LOVERIDGE,C-H46300-1104,Comm.Light.Mtce-Council House repairs,26-Jan-11,36.90
http://statistics.data.gov.uk/id/local-authority-district/23UB,Cheltenham Borough Council,440765,L207,MR M J LOVERIDGE,C-H46300-1104,Comm.Light.Mtce-Council House repairs,26-Jan-11,36.90
http://statistics.data.gov.uk/id/local-authority-district/23UB,Cheltenham Borough Council,440764,L208,MR M J LOVERIDGE,C-H46300-1104,Comm.Light.Mtce-Council House repairs,26-Jan-11,36.90
http://statistics.data.gov.uk/id/local-authority-district/23UB,Cheltenham Borough Council,440763,L256,MR M J LOVERIDGE,C-H46300-1104,Comm.Light.Mtce-Council House repairs,26-Jan-11,32.51
http://statistics.data.gov.uk/id/local-authority-district/23UB,Cheltenham Borough Council,440762,L262,MR M J LOVERIDGE,C-H46300-1104,Comm.Light.Mtce-Council House repairs,26-Jan-11,32.36
http://statistics.data.gov.uk/id/local-authority-district/23UB,Cheltenham Borough Council,440761,L260,MR M J LOVERIDGE,C-H46300-1104,Comm.Light.Mtce-Council House repairs,26-Jan-11,32.36
http://statistics.data.gov.uk/id/local-authority-district/23UB,Cheltenham Borough Council,440760,L261,MR M J LOVERIDGE,C-H46300-1104,Comm.Light.Mtce-Council House repairs,26-Jan-11,32.36
http://statistics.data.gov.uk/id/local-authority-district/23UB,Cheltenham Borough Council,440759,L258,MR M J LOVERIDGE,C-H46300-1104,Comm.Light.Mtce-Council House repairs,26-Jan-11,32.51
http://statistics.data.gov.uk/id/local-authority-district/23UB,Cheltenham Borough Council,440758,L259,MR M J LOVERIDGE,C-H46300-1104,Comm.Light.Mtce-Council House repairs,26-Jan-11,32.36
http://statistics.data.gov.uk/id/local-authority-district/23UB,Cheltenham Borough Council,440757,L257,MR M J LOVERIDGE,C-H46300-1104,Comm.Light.Mtce-Council House repairs,26-Jan-11,32.51
http://statistics.data.gov.uk/id/local-authority-district/23UB,Cheltenham Borough Council,440756,L267,MR M J LOVERIDGE,C-H46300-1104,Comm.Light.Mtce-Council House repairs,26-Jan-11,45.53
http://statistics.data.gov.uk/id/local-authority-district/23UB,Cheltenham Borough Council,440755,L269,MR M J LOVERIDGE,C-H46300-1104,Comm.Light.Mtce-Council House repairs,26-Jan-11,92.02
http://statistics.data.gov.uk/id/local-authority-district/23UB,Cheltenham Borough Council,440754,L254,MR M J LOVERIDGE,C-H46300-1104,Comm.Light.Mtce-Council House repairs,26-Jan-11,32.51
http://statistics.data.gov.uk/id/local-authority-district/23UB,Cheltenham Borough Council,440753,L270,MR M J LOVERIDGE,C-H46300-1104,Comm.Light.Mtce-Council House repairs,26-Jan-11,241.28
http://statistics.data.gov.uk/id/local-authority-district/23UB,Cheltenham Borough Council,440752,L268,MR M J LOVERIDGE,C-H46300-1104,Comm.Light.Mtce-Council House repairs,26-Jan-11,45.68
http://statistics.data.gov.uk/id/local-authority-district/23UB,Cheltenham Borough Council,440751,L263,MR M J LOVERIDGE,C-H46300-1104,Comm.Light.Mtce-Council House repairs,26-Jan-11,36.90
http://statistics.data.gov.uk/id/local-authority-district/23UB,Cheltenham Borough Council,440750,L264,MR M J LOVERIDGE,C-H46300-1104,Comm.Light.Mtce-Council House repairs,26-Jan-11,36.90
http://statistics.data.gov.uk/id/local-authority-district/23UB,Cheltenham Borough Council,440749,L265,MR M J LOVERIDGE,C-H46300-1104,Comm.Light.Mtce-Council House repairs,26-Jan-11,36.90
http://statistics.data.gov.uk/id/local-authority-district/23UB,Cheltenham Borough Council,440739,L185,MR M J LOVERIDGE,C-H46300-1104,Comm.Light.Mtce-Council House repairs,26-Jan-11,32.51
http://statistics.data.gov.uk/id/local-authority-district/23UB,Cheltenham Borough Council,440738,L184,MR M J LOVERIDGE,C-H46300-1104,Comm.Light.Mtce-Council House repairs,26-Jan-11,32.51
http://statistics.data.gov.uk/id/local-authority-district/23UB,Cheltenham Borough Council,440737,L183,MR M J LOVERIDGE,C-H46300-1104,Comm.Light.Mtce-Council House repairs,26-Jan-11,32.51
http://statistics.data.gov.uk/id/local-authority-district/23UB,Cheltenham Borough Council,440736,L182,MR M J LOVERIDGE,C-H46300-1104,Comm.Light.Mtce-Council House repairs,26-Jan-11,32.51
http://statistics.data.gov.uk/id/local-authority-district/23UB,Cheltenham Borough Council,440735,L181,MR M J LOVERIDGE,C-H46300-1104,Comm.Light.Mtce-Council House repairs,26-Jan-11,32.51
http://statistics.data.gov.uk/id/local-authority-district/23UB,Cheltenham Borough Council,440734,L180,MR M J LOVERIDGE,C-H46300-1104,Comm.Light.Mtce-Council House repairs,26-Jan-11,32.36
http://statistics.data.gov.uk/id/local-authority-district/23UB,Cheltenham Borough Council,440733,L190,MR M J LOVERIDGE,C-H46300-1104,Comm.Light.Mtce-Council House repairs,26-Jan-11,64.72
http://statistics.data.gov.uk/id/local-authority-district/23UB,Cheltenham Borough Council,440732,L191,MR M J LOVERIDGE,C-H46300-1104,Comm.Light.Mtce-Council House repairs,26-Jan-11,75.90
http://statistics.data.gov.uk/id/local-authority-district/23UB,Cheltenham Borough Council,440722,L174,MR M J LOVERIDGE,C-H46300-1104,Comm.Light.Mtce-Council House repairs,26-Jan-11,96.41
http://statistics.data.gov.uk/id/local-authority-district/23UB,Cheltenham Borough Council,440721,L140,MR M J LOVERIDGE,C-H46300-1104,Comm.Light.Mtce-Council House repairs,26-Jan-11,45.68
http://statistics.data.gov.uk/id/local-authority-district/23UB,Cheltenham Borough Council,440720,L135,MR M J LOVERIDGE,C-H46300-1104,Comm.Light.Mtce-Council House repairs,26-Jan-11,36.90
http://statistics.data.gov.uk/id/local-authority-district/23UB,Cheltenham Borough Council,440719,L177,MR M J LOVERIDGE,C-H46300-1104,Comm.Light.Mtce-Council House repairs,26-Jan-11,109.58
http://statistics.data.gov.uk/id/local-authority-district/23UB,Cheltenham Borough Council,440718,L167,MR M J LOVERIDGE,C-H46300-1104,Comm.Light.Mtce-Council House repairs,26-Jan-11,48.69
http://statistics.data.gov.uk/id/local-authority-district/23UB,Cheltenham Borough Council,440997,L162,MR M J LOVERIDGE,C-H46300-1104,Comm.Light.Mtce-Council House repairs,26-Jan-11,41.29
http://statistics.data.gov.uk/id/local-authority-district/23UB,Cheltenham Borough Council,440996,L161,MR M J LOVERIDGE,C-H46300-1104,Comm.Light.Mtce-Council House repairs,26-Jan-11,36.90
http://statistics.data.gov.uk/id/local-authority-district/23UB,Cheltenham Borough Council,440995,L176,MR M J LOVERIDGE,C-H46300-1104,Comm.Light.Mtce-Council House repairs,26-Jan-11,107.04
http://statistics.data.gov.uk/id/local-authority-district/23UB,Cheltenham Borough Council,440985,L234,MR M J LOVERIDGE,C-H46300-1104,Comm.Light.Mtce-Council House repairs,26-Jan-11,32.51
http://statistics.data.gov.uk/id/local-authority-district/23UB,Cheltenham Borough Council,440984,L233,MR M J LOVERIDGE,C-H46300-1104,Comm.Light.Mtce-Council House repairs,26-Jan-11,32.51
http://statistics.data.gov.uk/id/local-authority-district/23UB,Cheltenham Borough Council,440983,L187,MR M J LOVERIDGE,C-H46300-1104,Comm.Light.Mtce-Council House repairs,26-Jan-11,36.90
http://statistics.data.gov.uk/id/local-authority-district/23UB,Cheltenham Borough Council,440982,L179,MR M J LOVERIDGE,C-H46300-1104,Comm.Light.Mtce-Council House repairs,26-Jan-11,32.36
http://statistics.data.gov.uk/id/local-authority-district/23UB,Cheltenham Borough Council,440981,L159,MR M J LOVERIDGE,C-H46300-1104,Comm.Light.Mtce-Council House repairs,26-Jan-11,36.90
http://statistics.data.gov.uk/id/local-authority-district/23UB,Cheltenham Borough Council,440980,L171,MR M J LOVERIDGE,C-H46300-1104,Comm.Light.Mtce-Council House repairs,26-Jan-11,80.80
http://statistics.data.gov.uk/id/local-authority-district/23UB,Cheltenham Borough Council,440979,L170,MR M J LOVERIDGE,C-H46300-1104,Comm.Light.Mtce-Council House repairs,26-Jan-11,75.90
http://statistics.data.gov.uk/id/local-authority-district/23UB,Cheltenham Borough Council,440978,L160,MR M J LOVERIDGE,C-H46300-1104,Comm.Light.Mtce-Council House repairs,26-Jan-11,36.90
http://statistics.data.gov.uk/id/local-authority-district/23UB,Cheltenham Borough Council,440976,L248,MR M J LOVERIDGE,C-H46300-1104,Comm.Light.Mtce-Council House repairs,26-Jan-11,84.68
http://statistics.data.gov.uk/id/local-authority-district/23UB,Cheltenham Borough Council,440974,L224,MR M J LOVERIDGE,C-H46300-1104,Comm.Light.Mtce-Council House repairs,26-Jan-11,32.51
http://statistics.data.gov.uk/id/local-authority-district/23UB,Cheltenham Borough Council,440972,L217,MR M J LOVERIDGE,C-H46300-1104,Comm.Light.Mtce-Council House repairs,26-Jan-11,32.36
http://statistics.data.gov.uk/id/local-authority-district/23UB,Cheltenham Borough Council,440970,L238,MR M J LOVERIDGE,C-H46300-1104,Comm.Light.Mtce-Council House repairs,26-Jan-11,36.90
http://statistics.data.gov.uk/id/local-authority-district/23UB,Cheltenham Borough Council,440910,0985239,LUNASA,C-0T70L0-3568,Folk Festival-Artist Fees,26-Jan-11,"2,000.00"
http://statistics.data.gov.uk/id/local-authority-district/23UB,Cheltenham Borough Council,439511,57937,MAIGRET CHEMICALS LIMITED,C-E21100-3101,Car Prks-Off St-Equipment purchases,07-Jan-11,"1,110.00"
http://statistics.data.gov.uk/id/local-authority-district/23UB,Cheltenham Borough Council,439511,57937,MAIGRET CHEMICALS LIMITED,C-E21100-3101,Car Prks-Off St-Equipment purchases,07-Jan-11,45.00
http://statistics.data.gov.uk/id/local-authority-district/23UB,Cheltenham Borough Council,439621,070,MISS A MARAFFI,C-H22400-5204,Homelessness-Provision of accommo(B&B),07-Jan-11,360.00
http://statistics.data.gov.uk/id/local-authority-district/23UB,Cheltenham Borough Council,439623,062,MISS A MARAFFI,C-H22400-5204,Homelessness-Provision of accommo(B&B),07-Jan-11,240.00
http://statistics.data.gov.uk/id/local-authority-district/23UB,Cheltenham Borough Council,439624,069,MISS A MARAFFI,C-H22400-5204,Homelessness-Provision of accommo(B&B),07-Jan-11,240.00
http://statistics.data.gov.uk/id/local-authority-district/23UB,Cheltenham Borough Council,439622,071,MISS A MARAFFI,C-H22400-5204,Homelessness-Provision of accommo(B&B),07-Jan-11,480.00
http://statistics.data.gov.uk/id/local-authority-district/23UB,Cheltenham Borough Council,439620,061,MISS A MARAFFI,C-H22400-5204,Homelessness-Provision of accommo(B&B),07-Jan-11,240.00
http://statistics.data.gov.uk/id/local-authority-district/23UB,Cheltenham Borough Council,441151,074,MISS A MARAFFI,C-H22400-5204,Homelessness-Provision of accommo(B&B),28-Jan-11,360.00
http://statistics.data.gov.uk/id/local-authority-district/23UB,Cheltenham Borough Council,441150,073,MISS A MARAFFI,C-H22400-5204,Homelessness-Provision of accommo(B&B),28-Jan-11,240.00
http://statistics.data.gov.uk/id/local-authority-district/23UB,Cheltenham Borough Council,441149,072,MISS A MARAFFI,C-H22400-5204,Homelessness-Provision of accommo(B&B),28-Jan-11,240.00
http://statistics.data.gov.uk/id/local-authority-district/23UB,Cheltenham Borough Council,439779,8761,MASSIE ELECTRICS,C-C22120-1801,Sports & Open S-RM-Electrical repairs,12-Jan-11,88.00
http://statistics.data.gov.uk/id/local-authority-district/23UB,Cheltenham Borough Council,439777,8759,MASSIE ELECTRICS,C-D13100-1801,Muni Off Blgs-RM-Electrical repairs,12-Jan-11,288.00
http://statistics.data.gov.uk/id/local-authority-district/23UB,Cheltenham Borough Council,439783,8766,MASSIE ELECTRICS,C-D13100-1805,Muni Off Blgs-RM-Int. fixtures/fittings,12-Jan-11,144.00
http://statistics.data.gov.uk/id/local-authority-district/23UB,Cheltenham Borough Council,439778,8762,MASSIE ELECTRICS,C-D30200-1801,Misc Props & Ld-RM-Electrical repairs,12-Jan-11,22.50
http://statistics.data.gov.uk/id/local-authority-district/23UB,Cheltenham Borough Council,439781,8763,MASSIE ELECTRICS,C-EC0006-C101,CCTV/TC inits-Project Est for this Year,12-Jan-11,275.00
http://statistics.data.gov.uk/id/local-authority-district/23UB,Cheltenham Borough Council,439780,8760,MASSIE ELECTRICS,C-L41100-1801,AG & M-RM-Electrical repairs,12-Jan-11,101.50
http://statistics.data.gov.uk/id/local-authority-district/23UB,Cheltenham Borough Council,439782,8765,MASSIE ELECTRICS,C-PM0040-R022,Recreation Cent-Electrical Works,12-Jan-11,"1,884.00"
http://statistics.data.gov.uk/id/local-authority-district/23UB,Cheltenham Borough Council,439727,0013,MARK MASTERS,C-L11500-3522,Rec Facilities-Coaching scheme,12-Jan-11,126.00
http://statistics.data.gov.uk/id/local-authority-district/23UB,Cheltenham Borough Council,439727,0013,MARK MASTERS,C-L11500-3522,Rec Facilities-Coaching scheme,12-Jan-11,105.00
http://statistics.data.gov.uk/id/local-authority-district/23UB,Cheltenham Borough Council,439727,0013,MARK MASTERS,C-L11500-3522,Rec Facilities-Coaching scheme,12-Jan-11,21.00
http://statistics.data.gov.uk/id/local-authority-district/23UB,Cheltenham Borough Council,439727,0013,MARK MASTERS,C-L11500-3522,Rec Facilities-Coaching scheme,12-Jan-11,42.00
http://statistics.data.gov.uk/id/local-authority-district/23UB,Cheltenham Borough Council,439727,0013,MARK MASTERS,C-L11500-3522,Rec Facilities-Coaching scheme,12-Jan-11,42.00
http://statistics.data.gov.uk/id/local-authority-district/23UB,Cheltenham Borough Council,439727,0013,MARK MASTERS,C-L11500-3522,Rec Facilities-Coaching scheme,12-Jan-11,84.00
http://statistics.data.gov.uk/id/local-authority-district/23UB,Cheltenham Borough Council,439727,0013,MARK MASTERS,C-L11500-3522,Rec Facilities-Coaching scheme,12-Jan-11,105.00
http://statistics.data.gov.uk/id/local-authority-district/23UB,Cheltenham Borough Council,439727,0013,MARK MASTERS,C-L11500-3522,Rec Facilities-Coaching scheme,12-Jan-11,50.00
http://statistics.data.gov.uk/id/local-authority-district/23UB,Cheltenham Borough Council,439370,01831,MG WINDOWS CHELTENHAM LIMITED,C-H44350-1104,Window Repairs-Council House repairs,05-Jan-11,59.20
http://statistics.data.gov.uk/id/local-authority-district/23UB,Cheltenham Borough Council,439372,01841,MG WINDOWS CHELTENHAM LIMITED,C-H44350-1104,Window Repairs-Council House repairs,05-Jan-11,44.32
http://statistics.data.gov.uk/id/local-authority-district/23UB,Cheltenham Borough Council,439373,01839,MG WINDOWS CHELTENHAM LIMITED,C-H44350-1104,Window Repairs-Council House repairs,05-Jan-11,20.75
http://statistics.data.gov.uk/id/local-authority-district/23UB,Cheltenham Borough Council,439374,01838,MG WINDOWS CHELTENHAM LIMITED,C-H44350-1104,Window Repairs-Council House repairs,05-Jan-11,30.00
http://statistics.data.gov.uk/id/local-authority-district/23UB,Cheltenham Borough Council,439376,01836,MG WINDOWS CHELTENHAM LIMITED,C-H44350-1104,Window Repairs-Council House repairs,05-Jan-11,132.75
http://statistics.data.gov.uk/id/local-authority-district/23UB,Cheltenham Borough Council,439378,01834,MG WINDOWS CHELTENHAM LIMITED,C-H44350-1104,Window Repairs-Council House repairs,05-Jan-11,56.30
http://statistics.data.gov.uk/id/local-authority-district/23UB,Cheltenham Borough Council,439403,01807,MG WINDOWS CHELTENHAM LIMITED,C-H44350-1104,Window Repairs-Council House repairs,05-Jan-11,53.42
http://statistics.data.gov.uk/id/local-authority-district/23UB,Cheltenham Borough Council,439402,01808,MG WINDOWS CHELTENHAM LIMITED,C-H44350-1104,Window Repairs-Council House repairs,05-Jan-11,50.48
http://statistics.data.gov.uk/id/local-authority-district/23UB,Cheltenham Borough Council,439401,01809,MG WINDOWS CHELTENHAM LIMITED,C-H44350-1104,Window Repairs-Council House repairs,05-Jan-11,82.07
http://statistics.data.gov.uk/id/local-authority-district/23UB,Cheltenham Borough Council,439400,01810,MG WINDOWS CHELTENHAM LIMITED,C-H44350-1104,Window Repairs-Council House repairs,05-Jan-11,10.85
http://statistics.data.gov.uk/id/local-authority-district/23UB,Cheltenham Borough Council,439399,01811,MG WINDOWS CHELTENHAM LIMITED,C-H44350-1104,Window Repairs-Council House repairs,05-Jan-11,39.30
http://statistics.data.gov.uk/id/local-authority-district/23UB,Cheltenham Borough Council,439398,01812,MG WINDOWS CHELTENHAM LIMITED,C-H44350-1104,Window Repairs-Council House repairs,05-Jan-11,34.92
http://statistics.data.gov.uk/id/local-authority-district/23UB,Cheltenham Borough Council,439397,01813,MG WINDOWS CHELTENHAM LIMITED,C-H44350-1104,Window Repairs-Council House repairs,05-Jan-11,85.79
http://statistics.data.gov.uk/id/local-authority-district/23UB,Cheltenham Borough Council,439396,01814,MG WINDOWS CHELTENHAM LIMITED,C-H44350-1104,Window Repairs-Council House repairs,05-Jan-11,22.70
http://statistics.data.gov.uk/id/local-authority-district/23UB,Cheltenham Borough Council,439395,01818,MG WINDOWS CHELTENHAM LIMITED,C-H44350-1104,Window Repairs-Council House repairs,05-Jan-11,20.00
http://statistics.data.gov.uk/id/local-authority-district/23UB,Cheltenham Borough Council,439413,01952,MG WINDOWS CHELTENHAM LIMITED,C-H44350-1104,Window Repairs-Council House repairs,05-Jan-11,23.80
http://statistics.data.gov.uk/id/local-authority-district/23UB,Cheltenham Borough Council,439411,01825,MG WINDOWS CHELTENHAM LIMITED,C-H44350-1104,Window Repairs-Council House repairs,05-Jan-11,26.74
http://statistics.data.gov.uk/id/local-authority-district/23UB,Cheltenham Borough Council,439410,01819,MG WINDOWS CHELTENHAM LIMITED,C-H44350-1104,Window Repairs-Council House repairs,05-Jan-11,128.60
http://statistics.data.gov.uk/id/local-authority-district/23UB,Cheltenham Borough Council,439409,01805,MG WINDOWS CHELTENHAM LIMITED,C-H44350-1104,Window Repairs-Council House repairs,05-Jan-11,41.20
http://statistics.data.gov.uk/id/local-authority-district/23UB,Cheltenham Borough Council,439408,01821,MG WINDOWS CHELTENHAM LIMITED,C-H44350-1104,Window Repairs-Council House repairs,05-Jan-11,107.14
http://statistics.data.gov.uk/id/local-authority-district/23UB,Cheltenham Borough Council,439407,01822,MG WINDOWS CHELTENHAM LIMITED,C-H44350-1104,Window Repairs-Council House repairs,05-Jan-11,80.88
http://statistics.data.gov.uk/id/local-authority-district/23UB,Cheltenham Borough Council,439406,01823,MG WINDOWS CHELTENHAM LIMITED,C-H44350-1104,Window Repairs-Council House repairs,05-Jan-11,33.55
http://statistics.data.gov.uk/id/local-authority-district/23UB,Cheltenham Borough Council,439405,01800,MG WINDOWS CHELTENHAM LIMITED,C-H44350-1104,Window Repairs-Council House repairs,05-Jan-11,28.40
http://statistics.data.gov.uk/id/local-authority-district/23UB,Cheltenham Borough Council,439404,01806,MG WINDOWS CHELTENHAM LIMITED,C-H44350-1104,Window Repairs-Council House repairs,05-Jan-11,58.80
http://statistics.data.gov.uk/id/local-authority-district/23UB,Cheltenham Borough Council,439422,01951,MG WINDOWS CHELTENHAM LIMITED,C-H44350-1104,Window Repairs-Council House repairs,05-Jan-11,13.50
http://statistics.data.gov.uk/id/local-authority-district/23UB,Cheltenham Borough Council,439421,01881,MG WINDOWS CHELTENHAM LIMITED,C-H44350-1104,Window Repairs-Council House repairs,05-Jan-11,25.40
http://statistics.data.gov.uk/id/local-authority-district/23UB,Cheltenham Borough Council,439420,01920,MG WINDOWS CHELTENHAM LIMITED,C-H44350-1104,Window Repairs-Council House repairs,05-Jan-11,39.50
http://statistics.data.gov.uk/id/local-authority-district/23UB,Cheltenham Borough Council,439419,01918,MG WINDOWS CHELTENHAM LIMITED,C-H44350-1104,Window Repairs-Council House repairs,05-Jan-11,30.00
http://statistics.data.gov.uk/id/local-authority-district/23UB,Cheltenham Borough Council,439418,01928,MG WINDOWS CHELTENHAM LIMITED,C-H44350-1104,Window Repairs-Council House repairs,05-Jan-11,34.32
http://statistics.data.gov.uk/id/local-authority-district/23UB,Cheltenham Borough Council,439417,01932,MG WINDOWS CHELTENHAM LIMITED,C-H44350-1104,Window Repairs-Council House repairs,05-Jan-11,41.90
http://statistics.data.gov.uk/id/local-authority-district/23UB,Cheltenham Borough Council,439416,01927,MG WINDOWS CHELTENHAM LIMITED,C-H44350-1104,Window Repairs-Council House repairs,05-Jan-11,35.20
http://statistics.data.gov.uk/id/local-authority-district/23UB,Cheltenham Borough Council,439415,01947,MG WINDOWS CHELTENHAM LIMITED,C-H44350-1104,Window Repairs-Council House repairs,05-Jan-11,94.95
http://statistics.data.gov.uk/id/local-authority-district/23UB,Cheltenham Borough Council,439414,01921,MG WINDOWS CHELTENHAM LIMITED,C-H44350-1104,Window Repairs-Council House repairs,05-Jan-11,19.90
http://statistics.data.gov.uk/id/local-authority-district/23UB,Cheltenham Borough Council,439439,01916,MG WINDOWS CHELTENHAM LIMITED,C-H44350-1104,Window Repairs-Council House repairs,05-Jan-11,31.40
http://statistics.data.gov.uk/id/local-authority-district/23UB,Cheltenham Borough Council,439438,01935,MG WINDOWS CHELTENHAM LIMITED,C-H44350-1104,Window Repairs-Council House repairs,05-Jan-11,216.44
http://statistics.data.gov.uk/id/local-authority-district/23UB,Cheltenham Borough Council,439437,01907,MG WINDOWS CHELTENHAM LIMITED,C-H44350-1104,Window Repairs-Council House repairs,05-Jan-11,45.00
http://statistics.data.gov.uk/id/local-authority-district/23UB,Cheltenham Borough Council,439436,01910,MG WINDOWS CHELTENHAM LIMITED,C-H44350-1104,Window Repairs-Council House repairs,05-Jan-11,42.14
http://statistics.data.gov.uk/id/local-authority-district/23UB,Cheltenham Borough Council,439435,01914,MG WINDOWS CHELTENHAM LIMITED,C-H44350-1104,Window Repairs-Council House repairs,05-Jan-11,10.00
http://statistics.data.gov.uk/id/local-authority-district/23UB,Cheltenham Borough Council,439434,01908,MG WINDOWS CHELTENHAM LIMITED,C-H44350-1104,Window Repairs-Council House repairs,05-Jan-11,219.08
http://statistics.data.gov.uk/id/local-authority-district/23UB,Cheltenham Borough Council,439433,01950,MG WINDOWS CHELTENHAM LIMITED,C-H44350-1104,Window Repairs-Council House repairs,05-Jan-11,32.49
http://statistics.data.gov.uk/id/local-authority-district/23UB,Cheltenham Borough Council,439432,01913,MG WINDOWS CHELTENHAM LIMITED,C-H44350-1104,Window Repairs-Council House repairs,05-Jan-11,33.80
http://statistics.data.gov.uk/id/local-authority-district/23UB,Cheltenham Borough Council,439431,01926,MG WINDOWS CHELTENHAM LIMITED,C-H44350-1104,Window Repairs-Council House repairs,05-Jan-11,46.80
http://statistics.data.gov.uk/id/local-authority-district/23UB,Cheltenham Borough Council,439456,01937,MG WINDOWS CHELTENHAM LIMITED,C-H44350-1104,Window Repairs-Council House repairs,05-Jan-11,110.55
http://statistics.data.gov.uk/id/local-authority-district/23UB,Cheltenham Borough Council,439455,01906,MG WINDOWS CHELTENHAM LIMITED,C-H44350-1104,Window Repairs-Council House repairs,05-Jan-11,32.80
http://statistics.data.gov.uk/id/local-authority-district/23UB,Cheltenham Borough Council,439454,01917,MG WINDOWS CHELTENHAM LIMITED,C-H44350-1104,Window Repairs-Council House repairs,05-Jan-11,23.80
http://statistics.data.gov.uk/id/local-authority-district/23UB,Cheltenham Borough Council,439453,01925,MG WINDOWS CHELTENHAM LIMITED,C-H44350-1104,Window Repairs-Council House repairs,05-Jan-11,28.90
http://statistics.data.gov.uk/id/local-authority-district/23UB,Cheltenham Borough Council,439452,01923,MG WINDOWS CHELTENHAM LIMITED,C-H44350-1104,Window Repairs-Council House repairs,05-Jan-11,31.06
http://statistics.data.gov.uk/id/local-authority-district/23UB,Cheltenham Borough Council,439451,01905,MG WINDOWS CHELTENHAM LIMITED,C-H44350-1104,Window Repairs-Council House repairs,05-Jan-11,17.50
http://statistics.data.gov.uk/id/local-authority-district/23UB,Cheltenham Borough Council,439450,01901,MG WINDOWS CHELTENHAM LIMITED,C-H44350-1104,Window Repairs-Council House repairs,05-Jan-11,121.96
http://statistics.data.gov.uk/id/local-authority-district/23UB,Cheltenham Borough Council,439449,01931,MG WINDOWS CHELTENHAM LIMITED,C-H44350-1104,Window Repairs-Council House repairs,05-Jan-11,25.20
http://statistics.data.gov.uk/id/local-authority-district/23UB,Cheltenham Borough Council,439448,01943,MG WINDOWS CHELTENHAM LIMITED,C-H44350-1104,Window Repairs-Council House repairs,05-Jan-11,2.50
http://statistics.data.gov.uk/id/local-authority-district/23UB,Cheltenham Borough Council,439464,01942,MG WINDOWS CHELTENHAM LIMITED,C-H44350-1104,Window Repairs-Council House repairs,05-Jan-11,23.90
http://statistics.data.gov.uk/id/local-authority-district/23UB,Cheltenham Borough Council,439463,01946,MG WINDOWS CHELTENHAM LIMITED,C-H44350-1104,Window Repairs-Council House repairs,05-Jan-11,20.00
http://statistics.data.gov.uk/id/local-authority-district/23UB,Cheltenham Borough Council,439462,01945,MG WINDOWS CHELTENHAM LIMITED,C-H44350-1104,Window Repairs-Council House repairs,05-Jan-11,25.40
http://statistics.data.gov.uk/id/local-authority-district/23UB,Cheltenham Borough Council,439461,01924,MG WINDOWS CHELTENHAM LIMITED,C-H44350-1104,Window Repairs-Council House repairs,05-Jan-11,38.84
http://statistics.data.gov.uk/id/local-authority-district/23UB,Cheltenham Borough Council,439460,01930,MG WINDOWS CHELTENHAM LIMITED,C-H44350-1104,Window Repairs-Council House repairs,05-Jan-11,21.44
http://statistics.data.gov.uk/id/local-authority-district/23UB,Cheltenham Borough Council,439459,01919,MG WINDOWS CHELTENHAM LIMITED,C-H44350-1104,Window Repairs-Council House repairs,05-Jan-11,98.07
http://statistics.data.gov.uk/id/local-authority-district/23UB,Cheltenham Borough Council,439458,01938,MG WINDOWS CHELTENHAM LIMITED,C-H44350-1104,Window Repairs-Council House repairs,05-Jan-11,40.90
http://statistics.data.gov.uk/id/local-authority-district/23UB,Cheltenham Borough Council,439457,01939,MG WINDOWS CHELTENHAM LIMITED,C-H44350-1104,Window Repairs-Council House repairs,05-Jan-11,26.55
http://statistics.data.gov.uk/id/local-authority-district/23UB,Cheltenham Borough Council,439447,01909,MG WINDOWS CHELTENHAM LIMITED,C-H44350-1104,Window Repairs-Council House repairs,05-Jan-11,92.73
http://statistics.data.gov.uk/id/local-authority-district/23UB,Cheltenham Borough Council,439446,01900,MG WINDOWS CHELTENHAM LIMITED,C-H44350-1104,Window Repairs-Council House repairs,05-Jan-11,201.88
http://statistics.data.gov.uk/id/local-authority-district/23UB,Cheltenham Borough Council,439445,01941,MG WINDOWS CHELTENHAM LIMITED,C-H44350-1104,Window Repairs-Council House repairs,05-Jan-11,28.40
http://statistics.data.gov.uk/id/local-authority-district/23UB,Cheltenham Borough Council,439444,01902,MG WINDOWS CHELTENHAM LIMITED,C-H44350-1104,Window Repairs-Council House repairs,05-Jan-11,10.00
http://statistics.data.gov.uk/id/local-authority-district/23UB,Cheltenham Borough Council,439443,01936,MG WINDOWS CHELTENHAM LIMITED,C-H44350-1104,Window Repairs-Council House repairs,05-Jan-11,49.71
http://statistics.data.gov.uk/id/local-authority-district/23UB,Cheltenham Borough Council,439442,01929,MG WINDOWS CHELTENHAM LIMITED,C-H44350-1104,Window Repairs-Council House repairs,05-Jan-11,11.90
http://statistics.data.gov.uk/id/local-authority-district/23UB,Cheltenham Borough Council,439441,01922,MG WINDOWS CHELTENHAM LIMITED,C-H44350-1104,Window Repairs-Council House repairs,05-Jan-11,40.49
http://statistics.data.gov.uk/id/local-authority-district/23UB,Cheltenham Borough Council,439440,01915,MG WINDOWS CHELTENHAM LIMITED,C-H44350-1104,Window Repairs-Council House repairs,05-Jan-11,34.53
http://statistics.data.gov.uk/id/local-authority-district/23UB,Cheltenham Borough Council,439430,01903,MG WINDOWS CHELTENHAM LIMITED,C-H44350-1104,Window Repairs-Council House repairs,05-Jan-11,29.60
http://statistics.data.gov.uk/id/local-authority-district/23UB,Cheltenham Borough Council,439429,01944,MG WINDOWS CHELTENHAM LIMITED,C-H44350-1104,Window Repairs-Council House repairs,05-Jan-11,25.70
http://statistics.data.gov.uk/id/local-authority-district/23UB,Cheltenham Borough Council,439428,01949,MG WINDOWS CHELTENHAM LIMITED,C-H44350-1104,Window Repairs-Council House repairs,05-Jan-11,28.40
http://statistics.data.gov.uk/id/local-authority-district/23UB,Cheltenham Borough Council,439427,01940,MG WINDOWS CHELTENHAM LIMITED,C-H44350-1104,Window Repairs-Council House repairs,05-Jan-11,20.00
http://statistics.data.gov.uk/id/local-authority-district/23UB,Cheltenham Borough Council,439426,01934,MG WINDOWS CHELTENHAM LIMITED,C-H44350-1104,Window Repairs-Council House repairs,05-Jan-11,139.85
http://statistics.data.gov.uk/id/local-authority-district/23UB,Cheltenham Borough Council,439425,01912,MG WINDOWS CHELTENHAM LIMITED,C-H44350-1104,Window Repairs-Council House repairs,05-Jan-11,198.22
http://statistics.data.gov.uk/id/local-authority-district/23UB,Cheltenham Borough Council,439424,01911,MG WINDOWS CHELTENHAM LIMITED,C-H44350-1104,Window Repairs-Council House repairs,05-Jan-11,10.00
http://statistics.data.gov.uk/id/local-authority-district/23UB,Cheltenham Borough Council,439423,01869,MG WINDOWS CHELTENHAM LIMITED,C-H44350-1104,Window Repairs-Council House repairs,05-Jan-11,2.50
http://statistics.data.gov.uk/id/local-authority-district/23UB,Cheltenham Borough Council,439255,01801,MG WINDOWS CHELTENHAM LIMITED,C-H44350-1104,Window Repairs-Council House repairs,05-Jan-11,31.20
http://statistics.data.gov.uk/id/local-authority-district/23UB,Cheltenham Borough Council,439254,01833,MG WINDOWS CHELTENHAM LIMITED,C-H44350-1104,Window Repairs-Council House repairs,05-Jan-11,192.66
http://statistics.data.gov.uk/id/local-authority-district/23UB,Cheltenham Borough Council,439253,01832,MG WINDOWS CHELTENHAM LIMITED,C-H44350-1104,Window Repairs-Council House repairs,05-Jan-11,20.00
http://statistics.data.gov.uk/id/local-authority-district/23UB,Cheltenham Borough Council,439252,01802,MG WINDOWS CHELTENHAM LIMITED,C-H44350-1104,Window Repairs-Council House repairs,05-Jan-11,85.30
http://statistics.data.gov.uk/id/local-authority-district/23UB,Cheltenham Borough Council,439251,01803,MG WINDOWS CHELTENHAM LIMITED,C-H44350-1104,Window Repairs-Council House repairs,05-Jan-11,54.29
http://statistics.data.gov.uk/id/local-authority-district/23UB,Cheltenham Borough Council,439250,01804,MG WINDOWS CHELTENHAM LIMITED,C-H44350-1104,Window Repairs-Council House repairs,05-Jan-11,115.03
http://statistics.data.gov.uk/id/local-authority-district/23UB,Cheltenham Borough Council,439249,01824,MG WINDOWS CHELTENHAM LIMITED,C-H44350-1104,Window Repairs-Council House repairs,05-Jan-11,33.55
http://statistics.data.gov.uk/id/local-authority-district/23UB,Cheltenham Borough Council,439394,01817,MG WINDOWS CHELTENHAM LIMITED,C-H44350-1104,Window Repairs-Council House repairs,05-Jan-11,10.00
http://statistics.data.gov.uk/id/local-authority-district/23UB,Cheltenham Borough Council,439393,01815,MG WINDOWS CHELTENHAM LIMITED,C-H44350-1104,Window Repairs-Council House repairs,05-Jan-11,68.40
http://statistics.data.gov.uk/id/local-authority-district/23UB,Cheltenham Borough Council,439392,01820,MG WINDOWS CHELTENHAM LIMITED,C-H44350-1104,Window Repairs-Council House repairs,05-Jan-11,245.71
http://statistics.data.gov.uk/id/local-authority-district/23UB,Cheltenham Borough Council,439391,01816,MG WINDOWS CHELTENHAM LIMITED,C-H44350-1104,Window Repairs-Council House repairs,05-Jan-11,225.21
http://statistics.data.gov.uk/id/local-authority-district/23UB,Cheltenham Borough Council,439390,01843,MG WINDOWS CHELTENHAM LIMITED,C-H44350-1104,Window Repairs-Council House repairs,05-Jan-11,30.00
http://statistics.data.gov.uk/id/local-authority-district/23UB,Cheltenham Borough Council,439389,01844,MG WINDOWS CHELTENHAM LIMITED,C-H44350-1104,Window Repairs-Council House repairs,05-Jan-11,23.75
http://statistics.data.gov.uk/id/local-authority-district/23UB,Cheltenham Borough Council,439388,01845,MG WINDOWS CHELTENHAM LIMITED,C-H44350-1104,Window Repairs-Council House repairs,05-Jan-11,40.95
http://statistics.data.gov.uk/id/local-authority-district/23UB,Cheltenham Borough Council,439387,01846,MG WINDOWS CHELTENHAM LIMITED,C-H44350-1104,Window Repairs-Council House repairs,05-Jan-11,90.70
http://statistics.data.gov.uk/id/local-authority-district/23UB,Cheltenham Borough Council,439386,01847,MG WINDOWS CHELTENHAM LIMITED,C-H44350-1104,Window Repairs-Council House repairs,05-Jan-11,120.78
http://statistics.data.gov.uk/id/local-authority-district/23UB,Cheltenham Borough Council,439385,01848,MG WINDOWS CHELTENHAM LIMITED,C-H44350-1104,Window Repairs-Council House repairs,05-Jan-11,56.91
http://statistics.data.gov.uk/id/local-authority-district/23UB,Cheltenham Borough Council,439384,01853,MG WINDOWS CHELTENHAM LIMITED,C-H44350-1104,Window Repairs-Council House repairs,05-Jan-11,57.60
http://statistics.data.gov.uk/id/local-authority-district/23UB,Cheltenham Borough Council,439383,01829,MG WINDOWS CHELTENHAM LIMITED,C-H44350-1104,Window Repairs-Council House repairs,05-Jan-11,54.13
http://statistics.data.gov.uk/id/local-authority-district/23UB,Cheltenham Borough Council,439382,01826,MG WINDOWS CHELTENHAM LIMITED,C-H44350-1104,Window Repairs-Council House repairs,05-Jan-11,35.04
http://statistics.data.gov.uk/id/local-authority-district/23UB,Cheltenham Borough Council,439381,01840,MG WINDOWS CHELTENHAM LIMITED,C-H44350-1104,Window Repairs-Council House repairs,05-Jan-11,43.25
http://statistics.data.gov.uk/id/local-authority-district/23UB,Cheltenham Borough Council,439380,01827,MG WINDOWS CHELTENHAM LIMITED,C-H44350-1104,Window Repairs-Council House repairs,05-Jan-11,95.70
http://statistics.data.gov.uk/id/local-authority-district/23UB,Cheltenham Borough Council,439379,01828,MG WINDOWS CHELTENHAM LIMITED,C-H44350-1104,Window Repairs-Council House repairs,05-Jan-11,39.53
http://statistics.data.gov.uk/id/local-authority-district/23UB,Cheltenham Borough Council,439377,01835,MG WINDOWS CHELTENHAM LIMITED,C-H44350-1104,Window Repairs-Council House repairs,05-Jan-11,24.25
http://statistics.data.gov.uk/id/local-authority-district/23UB,Cheltenham Borough Council,439375,01837,MG WINDOWS CHELTENHAM LIMITED,C-H44350-1104,Window Repairs-Council House repairs,05-Jan-11,38.40
http://statistics.data.gov.uk/id/local-authority-district/23UB,Cheltenham Borough Council,439371,01830,MG WINDOWS CHELTENHAM LIMITED,C-H44350-1104,Window Repairs-Council House repairs,05-Jan-11,100.89
http://statistics.data.gov.uk/id/local-authority-district/23UB,Cheltenham Borough Council,440115,01842,MG WINDOWS CHELTENHAM LIMITED,C-H33700-1402,Window Repairs-Council House repairs,14-Jan-11,529.00
http://statistics.data.gov.uk/id/local-authority-district/23UB,Cheltenham Borough Council,440113,01899,MG WINDOWS CHELTENHAM LIMITED,C-HC4075-C302,Window Renewals-Building Contractor,14-Jan-11,735.00
http://statistics.data.gov.uk/id/local-authority-district/23UB,Cheltenham Borough Council,440114,01849,MG WINDOWS CHELTENHAM LIMITED,C-HC4075-C302,Window Renewals-Building Contractor,14-Jan-11,"1,849.00"
http://statistics.data.gov.uk/id/local-authority-district/23UB,Cheltenham Borough Council,440116,01851,MG WINDOWS CHELTENHAM LIMITED,C-HC4075-C302,Window Renewals-Building Contractor,14-Jan-11,"1,672.00"
http://statistics.data.gov.uk/id/local-authority-district/23UB,Cheltenham Borough Council,440257,01446,MG WINDOWS CHELTENHAM LIMITED,C-H44350-1104,Window Repairs-Council House repairs,19-Jan-11,531.88
http://statistics.data.gov.uk/id/local-authority-district/23UB,Cheltenham Borough Council,440260,01891,MG WINDOWS CHELTENHAM LIMITED,C-H44350-1104,Window Repairs-Council House repairs,19-Jan-11,39.50
http://statistics.data.gov.uk/id/local-authority-district/23UB,Cheltenham Borough Council,440444,01981,MG WINDOWS CHELTENHAM LIMITED,C-H44350-1104,Window Repairs-Council House repairs,19-Jan-11,35.53
http://statistics.data.gov.uk/id/local-authority-district/23UB,Cheltenham Borough Council,440446,01962,MG WINDOWS CHELTENHAM LIMITED,C-H44350-1104,Window Repairs-Council House repairs,19-Jan-11,35.75
http://statistics.data.gov.uk/id/local-authority-district/23UB,Cheltenham Borough Council,440448,01965,MG WINDOWS CHELTENHAM LIMITED,C-H44350-1104,Window Repairs-Council House repairs,19-Jan-11,40.80
http://statistics.data.gov.uk/id/local-authority-district/23UB,Cheltenham Borough Council,440470,01991,MG WINDOWS CHELTENHAM LIMITED,C-H44350-1104,Window Repairs-Council House repairs,19-Jan-11,214.10
http://statistics.data.gov.uk/id/local-authority-district/23UB,Cheltenham Borough Council,440469,01967,MG WINDOWS CHELTENHAM LIMITED,C-H44350-1104,Window Repairs-Council House repairs,19-Jan-11,38.28
http://statistics.data.gov.uk/id/local-authority-district/23UB,Cheltenham Borough Council,440468,01984,MG WINDOWS CHELTENHAM LIMITED,C-H44350-1104,Window Repairs-Council House repairs,19-Jan-11,175.62
http://statistics.data.gov.uk/id/local-authority-district/23UB,Cheltenham Borough Council,440467,01982,MG WINDOWS CHELTENHAM LIMITED,C-H44350-1104,Window Repairs-Council House repairs,19-Jan-11,11.90
http://statistics.data.gov.uk/id/local-authority-district/23UB,Cheltenham Borough Council,440466,01969,MG WINDOWS CHELTENHAM LIMITED,C-H44350-1104,Window Repairs-Council House repairs,19-Jan-11,47.60
http://statistics.data.gov.uk/id/local-authority-district/23UB,Cheltenham Borough Council,440465,01956,MG WINDOWS CHELTENHAM LIMITED,C-H44350-1104,Window Repairs-Council House repairs,19-Jan-11,11.90
http://statistics.data.gov.uk/id/local-authority-district/23UB,Cheltenham Borough Council,440464,01966,MG WINDOWS CHELTENHAM LIMITED,C-H44350-1104,Window Repairs-Council House repairs,19-Jan-11,33.80
http://statistics.data.gov.uk/id/local-authority-district/23UB,Cheltenham Borough Council,440463,01958,MG WINDOWS CHELTENHAM LIMITED,C-H44350-1104,Window Repairs-Council House repairs,19-Jan-11,28.40
http://statistics.data.gov.uk/id/local-authority-district/23UB,Cheltenham Borough Council,440462,1983,MG WINDOWS CHELTENHAM LIMITED,C-H44350-1104,Window Repairs-Council House repairs,19-Jan-11,22.55
http://statistics.data.gov.uk/id/local-authority-district/23UB,Cheltenham Borough Council,440461,01957,MG WINDOWS CHELTENHAM LIMITED,C-H44350-1104,Window Repairs-Council House repairs,19-Jan-11,48.40
http://statistics.data.gov.uk/id/local-authority-district/23UB,Cheltenham Borough Council,440460,01955,MG WINDOWS CHELTENHAM LIMITED,C-H44350-1104,Window Repairs-Council House repairs,19-Jan-11,60.00
http://statistics.data.gov.uk/id/local-authority-district/23UB,Cheltenham Borough Council,440459,01968,MG WINDOWS CHELTENHAM LIMITED,C-H44350-1104,Window Repairs-Council House repairs,19-Jan-11,30.58
http://statistics.data.gov.uk/id/local-authority-district/23UB,Cheltenham Borough Council,440458,01989,MG WINDOWS CHELTENHAM LIMITED,C-H44350-1104,Window Repairs-Council House repairs,19-Jan-11,27.55
http://statistics.data.gov.uk/id/local-authority-district/23UB,Cheltenham Borough Council,440457,01963,MG WINDOWS CHELTENHAM LIMITED,C-H44350-1104,Window Repairs-Council House repairs,19-Jan-11,30.95
http://statistics.data.gov.uk/id/local-authority-district/23UB,Cheltenham Borough Council,440456,07959,MG WINDOWS CHELTENHAM LIMITED,C-H44350-1104,Window Repairs-Council House repairs,19-Jan-11,2.50
http://statistics.data.gov.uk/id/local-authority-district/23UB,Cheltenham Borough Council,440455,07986,MG WINDOWS CHELTENHAM LIMITED,C-H44350-1104,Window Repairs-Council House repairs,19-Jan-11,77.75
http://statistics.data.gov.uk/id/local-authority-district/23UB,Cheltenham Borough Council,440454,01988,MG WINDOWS CHELTENHAM LIMITED,C-H44350-1104,Window Repairs-Council House repairs,19-Jan-11,125.70
http://statistics.data.gov.uk/id/local-authority-district/23UB,Cheltenham Borough Council,440453,01964,MG WINDOWS CHELTENHAM LIMITED,C-H44350-1104,Window Repairs-Council House repairs,19-Jan-11,49.24
http://statistics.data.gov.uk/id/local-authority-district/23UB,Cheltenham Borough Council,440452,01987,MG WINDOWS CHELTENHAM LIMITED,C-H44350-1104,Window Repairs-Council House repairs,19-Jan-11,13.50
http://statistics.data.gov.uk/id/local-authority-district/23UB,Cheltenham Borough Council,440451,01954,MG WINDOWS CHELTENHAM LIMITED,C-H44350-1104,Window Repairs-Council House repairs,19-Jan-11,2.50
http://statistics.data.gov.uk/id/local-authority-district/23UB,Cheltenham Borough Council,440450,01961,MG WINDOWS CHELTENHAM LIMITED,C-H44350-1104,Window Repairs-Council House repairs,19-Jan-11,27.00
http://statistics.data.gov.uk/id/local-authority-district/23UB,Cheltenham Borough Council,440449,01990,MG WINDOWS CHELTENHAM LIMITED,C-H44350-1104,Window Repairs-Council House repairs,19-Jan-11,46.80
http://statistics.data.gov.uk/id/local-authority-district/23UB,Cheltenham Borough Council,440447,01960,MG WINDOWS CHELTENHAM LIMITED,C-H44350-1104,Window Repairs-Council House repairs,19-Jan-11,36.40
http://statistics.data.gov.uk/id/local-authority-district/23UB,Cheltenham Borough Council,440445,01985,MG WINDOWS CHELTENHAM LIMITED,C-H44350-1104,Window Repairs-Council House repairs,19-Jan-11,37.17
http://statistics.data.gov.uk/id/local-authority-district/23UB,Cheltenham Borough Council,440258,01888,MG WINDOWS CHELTENHAM LIMITED,C-H44350-1104,Window Repairs-Council House repairs,19-Jan-11,13.50
http://statistics.data.gov.uk/id/local-authority-district/23UB,Cheltenham Borough Council,440259,01868,MG WINDOWS CHELTENHAM LIMITED,C-H44350-1104,Window Repairs-Council House repairs,19-Jan-11,2.50
http://statistics.data.gov.uk/id/local-authority-district/23UB,Cheltenham Borough Council,440443,07850,MG WINDOWS CHELTENHAM LIMITED,C-HC4075-C302,Window Renewals-Building Contractor,19-Jan-11,123.00
http://statistics.data.gov.uk/id/local-authority-district/23UB,Cheltenham Borough Council,440999,H443501104/02050,MG WINDOWS CHELTENHAM LIMITED,C-H44350-1104,Window Repairs-Council House repairs,26-Jan-11,58.40
http://statistics.data.gov.uk/id/local-authority-district/23UB,Cheltenham Borough Council,440684,02000,MG WINDOWS CHELTENHAM LIMITED,C-H44350-1104,Window Repairs-Council House repairs,26-Jan-11,68.80
http://statistics.data.gov.uk/id/local-authority-district/23UB,Cheltenham Borough Council,440917,02028,MG WINDOWS CHELTENHAM LIMITED,C-H44350-1104,Window Repairs-Council House repairs,26-Jan-11,30.02
http://statistics.data.gov.uk/id/local-authority-district/23UB,Cheltenham Borough Council,440919,02030,MG WINDOWS CHELTENHAM LIMITED,C-H44350-1104,Window Repairs-Council House repairs,26-Jan-11,63.80
http://statistics.data.gov.uk/id/local-authority-district/23UB,Cheltenham Borough Council,440946,02019,MG WINDOWS CHELTENHAM LIMITED,C-H44350-1104,Window Repairs-Council House repairs,26-Jan-11,111.23
http://statistics.data.gov.uk/id/local-authority-district/23UB,Cheltenham Borough Council,440945,02036,MG WINDOWS CHELTENHAM LIMITED,C-H44350-1104,Window Repairs-Council House repairs,26-Jan-11,217.75
http://statistics.data.gov.uk/id/local-authority-district/23UB,Cheltenham Borough Council,440944,02021,MG WINDOWS CHELTENHAM LIMITED,C-H44350-1104,Window Repairs-Council House repairs,26-Jan-11,57.38
http://statistics.data.gov.uk/id/local-authority-district/23UB,Cheltenham Borough Council,440943,02022,MG WINDOWS CHELTENHAM LIMITED,C-H44350-1104,Window Repairs-Council House repairs,26-Jan-11,33.55
http://statistics.data.gov.uk/id/local-authority-district/23UB,Cheltenham Borough Council,440942,01978,MG WINDOWS CHELTENHAM LIMITED,C-H44350-1104,Window Repairs-Council House repairs,26-Jan-11,10.00
http://statistics.data.gov.uk/id/local-authority-district/23UB,Cheltenham Borough Council,440941,01972,MG WINDOWS CHELTENHAM LIMITED,C-H44350-1104,Window Repairs-Council House repairs,26-Jan-11,25.40
